Body Name,Body,Organisational unit,Service division,Expenditure category,Date,Transacton number,Net amount,Supplier,Narrative
Tendring DC,http://statistics.data.gov.uk/id/local-authority-district/22UN,Corporate Services,7716 - Jaywick Team,4800 - Hospitality,08/01/2013,2104519-1,0.52,REDACTED PERSONAL DATA,REDACTED PERSONAL DATA
Tendring DC,http://statistics.data.gov.uk/id/local-authority-district/22UN,Corporate Services,7716 - Jaywick Team,4800 - Hospitality,08/01/2013,2104519-2,8.27,REDACTED PERSONAL DATA,REDACTED PERSONAL DATA
Tendring DC,http://statistics.data.gov.uk/id/local-authority-district/22UN,Corporate Services,1880 - Office Accommodation Expenses,2100 - Building Repairs,15/01/2013,2104814-1,550,2100061 - A R & J Pardoe,AR & J Pardoe
Tendring DC,http://statistics.data.gov.uk/id/local-authority-district/22UN,Corporate Services,1880 - Office Accommodation Expenses,2100 - Building Repairs,15/01/2013,2104814-2,170,2100061 - A R & J Pardoe,AR & J Pardoe
Tendring DC,http://statistics.data.gov.uk/id/local-authority-district/22UN,Corporate Services,1880 - Office Accommodation Expenses,4000 - Furniture,02/01/2013,2104319-1,299.99,2112525 - Acorn Essex Ltd,Acorn
Tendring DC,http://statistics.data.gov.uk/id/local-authority-district/22UN,Corporate Services,1880 - Office Accommodation Expenses,4000 - Furniture,02/01/2013,2104320-1,19.88,2112525 - Acorn Essex Ltd,Acorn
Tendring DC,http://statistics.data.gov.uk/id/local-authority-district/22UN,Corporate Services,8125 - Horticultural Services,4080 - Materials & Consumables,22/01/2013,2105157-1,125,2112525 - Acorn Essex Ltd,Acorn Essex
Tendring DC,http://statistics.data.gov.uk/id/local-authority-district/22UN,Corporate Services,1880 - Office Accommodation Expenses,4000 - Furniture,29/01/2013,2105246-1,219,2112525 - Acorn Essex Ltd,Acorn Essex
Tendring DC,http://statistics.data.gov.uk/id/local-authority-district/22UN,Corporate Services,1880 - Office Accommodation Expenses,4000 - Furniture,29/01/2013,2105247-1,69.99,2112525 - Acorn Essex Ltd,Acorn Essex
Tendring DC,http://statistics.data.gov.uk/id/local-authority-district/22UN,Corporate Services,1880 - Office Accommodation Expenses,4000 - Furniture,29/01/2013,2105254-1,9.9,2112525 - Acorn Essex Ltd,Acorn
Tendring DC,http://statistics.data.gov.uk/id/local-authority-district/22UN,Corporate Services,1880 - Office Accommodation Expenses,2100 - Building Repairs,22/01/2013,2105151-1,62,2101609 - Adcock Refrigeration & Air Conditioning Ltd,Adcock
Tendring DC,http://statistics.data.gov.uk/id/local-authority-district/22UN,Corporate Services,1880 - Office Accommodation Expenses,2100 - Building Repairs,22/01/2013,2105152-1,75,2101609 - Adcock Refrigeration & Air Conditioning Ltd,Adcock
Tendring DC,http://statistics.data.gov.uk/id/local-authority-district/22UN,Corporate Services,1880 - Office Accommodation Expenses,2100 - Building Repairs,22/01/2013,2105153-1,96,2101609 - Adcock Refrigeration & Air Conditioning Ltd,Adcock
Tendring DC,http://statistics.data.gov.uk/id/local-authority-district/22UN,Corporate Services,1880 - Office Accommodation Expenses,2500 - Water Services - Metered,02/01/2013,2104323-1,39.51,2112518 - Affinity Water Ltd (East Region),Affinity - Frinton
Tendring DC,http://statistics.data.gov.uk/id/local-authority-district/22UN,Corporate Services,1880 - Office Accommodation Expenses,2520 - Sewerage & Environmental Charges,02/01/2013,2104323-2,90.75,2112518 - Affinity Water Ltd (East Region),Affinity - Frinton
Tendring DC,http://statistics.data.gov.uk/id/local-authority-district/22UN,Corporate Services,1860 - Depots General,2500 - Water Services - Metered,15/01/2013,2104632-1,276.27,REDACTED PERSONAL DATA,REDACTED PERSONAL DATA
Tendring DC,http://statistics.data.gov.uk/id/local-authority-district/22UN,Corporate Services,1860 - Depots General,2520 - Sewerage & Environmental Charges,15/01/2013,2104632-2,286.51,REDACTED PERSONAL DATA,REDACTED PERSONAL DATA
Tendring DC,http://statistics.data.gov.uk/id/local-authority-district/22UN,Corporate Services,1880 - Office Accommodation Expenses,2100 - Building Repairs,02/01/2013,2104318-1,240,2102096 - Alan Lillington,ALS - Cleaning
Tendring DC,http://statistics.data.gov.uk/id/local-authority-district/22UN,Corporate Services,7716 - Jaywick Team,3060 - Running Costs - Diesel,15/01/2013,2104617-1,111,REDACTED PERSONAL DATA,REDACTED PERSONAL DATA
Tendring DC,http://statistics.data.gov.uk/id/local-authority-district/22UN,Corporate Services,1950 - Transport,3062 - Running Costs - Petrol,15/01/2013,2104621-1,184.16,2101825 - Allstar Business Solutions Ltd,Courier Fuel
Tendring DC,http://statistics.data.gov.uk/id/local-authority-district/22UN,Corporate Services,8510 - Dovercourt Swimming Pool & All Weather Facilities,4000 - Furniture,29/01/2013,2105358-1,110.8,2104777 - ANI Ltd,Dovercourt Pool
Tendring DC,http://statistics.data.gov.uk/id/local-authority-district/22UN,Corporate Services,1880 - Office Accommodation Expenses,2100 - Building Repairs,29/01/2013,2105270-1,126,REDACTED PERSONAL DATA,REDACTED PERSONAL DATA
Tendring DC,http://statistics.data.gov.uk/id/local-authority-district/22UN,Corporate Services,6560 - Other Democratic Costs,4110 - General Provisions,02/01/2013,2104410-1,84.82,REDACTED PERSONAL DATA,REDACTED PERSONAL DATA
Tendring DC,http://statistics.data.gov.uk/id/local-authority-district/22UN,Corporate Services,6560 - Other Democratic Costs,4110 - General Provisions,02/01/2013,2104410-2,2.04,REDACTED PERSONAL DATA,REDACTED PERSONAL DATA
Tendring DC,http://statistics.data.gov.uk/id/local-authority-district/22UN,Corporate Services,1320 - Print Unit Service Unit,4302 - External Print Unit Expenses,15/01/2013,2104771-1,211,2100069 - Autoprint,Job 451
Tendring DC,http://statistics.data.gov.uk/id/local-authority-district/22UN,Corporate Services,1880 - Office Accommodation Expenses,4080 - Materials & Consumables,02/01/2013,2104321-1,20.84,2100099 - B & Q Trade Account,B&Q
Tendring DC,http://statistics.data.gov.uk/id/local-authority-district/22UN,Corporate Services,1880 - Office Accommodation Expenses,4080 - Materials & Consumables,15/01/2013,2104637-1,25.78,REDACTED PERSONAL DATA,REDACTED PERSONAL DATA
Tendring DC,http://statistics.data.gov.uk/id/local-authority-district/22UN,Corporate Services,7100 - Community Health/Safety,4300 - Printing & Stationery,15/01/2013,2104618-1,46.96,2100111 - Banner Business Supplies Ltd,Banner - Stationery
Tendring DC,http://statistics.data.gov.uk/id/local-authority-district/22UN,Corporate Services,1100 - Head of Corporate Services and Admin Service Unit,4300 - Printing & Stationery,15/01/2013,2104620-1,21.22,2100111 - Banner Business Supplies Ltd,Stationery
Tendring DC,http://statistics.data.gov.uk/id/local-authority-district/22UN,Corporate Services,6580 - Member Support Cost,4300 - Printing & Stationery,15/01/2013,2104620-2,46.36,2100111 - Banner Business Supplies Ltd,Stationery
Tendring DC,http://statistics.data.gov.uk/id/local-authority-district/22UN,Corporate Services,1150 - Other Corporate Services Mgt & Central Admin Service Unit,4300 - Printing & Stationery,22/01/2013,2105037-1,117.3,2100111 - Banner Business Supplies Ltd,Banner  Stationery Order 04/01/13
Tendring DC,http://statistics.data.gov.uk/id/local-authority-district/22UN,Corporate Services,1100 - Head of Corporate Services and Admin Service Unit,4300 - Printing & Stationery,29/01/2013,2105309-1,9.71,REDACTED COMMERCIAL CONFIDENTIALITY,REDACTED COMMERCIAL CONFIDENTIALITY
Tendring DC,http://statistics.data.gov.uk/id/local-authority-district/22UN,Corporate Services,6580 - Member Support Cost,4300 - Printing & Stationery,29/01/2013,2105309-2,175.54,REDACTED COMMERCIAL CONFIDENTIALITY,REDACTED COMMERCIAL CONFIDENTIALITY
Tendring DC,http://statistics.data.gov.uk/id/local-authority-district/22UN,Corporate Services,1150 - Other Corporate Services Mgt & Central Admin Service Unit,4300 - Printing & Stationery,29/01/2013,2105310-1,100.05,REDACTED COMMERCIAL CONFIDENTIALITY,REDACTED COMMERCIAL CONFIDENTIALITY
Tendring DC,http://statistics.data.gov.uk/id/local-authority-district/22UN,Corporate Services,1320 - Print Unit Service Unit,4080 - Materials & Consumables,29/01/2013,2105384-1,87.9,2100111 - Banner Business Supplies Ltd,Envelopes
Tendring DC,http://statistics.data.gov.uk/id/local-authority-district/22UN,Corporate Services,1320 - Print Unit Service Unit,4080 - Materials & Consumables,29/01/2013,2105385-1,210.96,2100111 - Banner Business Supplies Ltd,Envelopes
Tendring DC,http://statistics.data.gov.uk/id/local-authority-district/22UN,Corporate Services,1320 - Print Unit Service Unit,4080 - Materials & Consumables,29/01/2013,2105386-1,77.18,2100111 - Banner Business Supplies Ltd,Stationery
Tendring DC,http://statistics.data.gov.uk/id/local-authority-district/22UN,Corporate Services,1880 - Office Accommodation Expenses,2300 - Energy Costs - Fuel Oil,22/01/2013,2105146-1,1690.88,2112681 - BIRLEM Ltd,BIRLEM
Tendring DC,http://statistics.data.gov.uk/id/local-authority-district/22UN,Corporate Services,1880 - Office Accommodation Expenses,2300 - Energy Costs - Fuel Oil,29/01/2013,2105245-1,1020,2112681 - BIRLEM Ltd,Birlem Ltd
Tendring DC,http://statistics.data.gov.uk/id/local-authority-district/22UN,Corporate Services,H805 - Major Refurbishment of Heating,C200 - Main Contractor,08/01/2013,7008689-1,20006.41,2100155 - Blue Flame (Colchester) Ltd,Heater Refurbishment Contract 09/12
Tendring DC,http://statistics.data.gov.uk/id/local-authority-district/22UN,Corporate Services,5480 - HRA - Repair & Maintenance,2071 - Electric Installation Testing,08/01/2013,7008690-1,1829.34,2100155 - Blue Flame (Colchester) Ltd,Work as Attached Valuation No 19
Tendring DC,http://statistics.data.gov.uk/id/local-authority-district/22UN,Corporate Services,5480 - HRA - Repair & Maintenance,2072 - Planned Partial Refurbishment To Electrical Instal,08/01/2013,7008690-2,7540.18,2100155 - Blue Flame (Colchester) Ltd,Work as Attached Valuation No 19
Tendring DC,http://statistics.data.gov.uk/id/local-authority-district/22UN,Corporate Services,H805 - Major Refurbishment of Heating,C200 - Main Contractor,08/01/2013,7008691-1,14999.55,2100155 - Blue Flame (Colchester) Ltd,Heater Refurbishment and Upgrade Term Contract 12/15
Tendring DC,http://statistics.data.gov.uk/id/local-authority-district/22UN,Corporate Services,1200 - Exchequer Service Unit,1700 - Training - Courses,22/01/2013,2105072-1,140,REDACTED PERSONAL DATA,REDACTED PERSONAL DATA
Tendring DC,http://statistics.data.gov.uk/id/local-authority-district/22UN,Corporate Services,9900 - General Fund Balance Sheet,B382 - Rechargeable Works - Other,22/01/2013,2105234-1,1600,2112759 - Brentwood Borough Council,Safer Essex Grant Funding
Tendring DC,http://statistics.data.gov.uk/id/local-authority-district/22UN,Corporate Services,1880 - Office Accommodation Expenses,2304 - Energy Costs - Electricity,29/01/2013,2104626-1,149.02,2100197 - British Gas Trading Ltd,British Gas
Tendring DC,http://statistics.data.gov.uk/id/local-authority-district/22UN,Corporate Services,1880 - Office Accommodation Expenses,2304 - Energy Costs - Electricity,29/01/2013,2104626-10,-80.55,2100197 - British Gas Trading Ltd,British Gas
Tendring DC,http://statistics.data.gov.uk/id/local-authority-district/22UN,Corporate Services,1880 - Office Accommodation Expenses,2304 - Energy Costs - Electricity,29/01/2013,2104626-2,73.01,2100197 - British Gas Trading Ltd,British Gas
Tendring DC,http://statistics.data.gov.uk/id/local-authority-district/22UN,Corporate Services,1880 - Office Accommodation Expenses,2304 - Energy Costs - Electricity,29/01/2013,2104626-3,91.13,2100197 - British Gas Trading Ltd,British Gas
Tendring DC,http://statistics.data.gov.uk/id/local-authority-district/22UN,Corporate Services,1880 - Office Accommodation Expenses,2304 - Energy Costs - Electricity,29/01/2013,2104626-4,703.51,2100197 - British Gas Trading Ltd,British Gas
Tendring DC,http://statistics.data.gov.uk/id/local-authority-district/22UN,Corporate Services,1880 - Office Accommodation Expenses,2304 - Energy Costs - Electricity,29/01/2013,2104626-5,1574.06,2100197 - British Gas Trading Ltd,British Gas
Tendring DC,http://statistics.data.gov.uk/id/local-authority-district/22UN,Corporate Services,1880 - Office Accommodation Expenses,2304 - Energy Costs - Electricity,29/01/2013,2104626-6,1173.94,2100197 - British Gas Trading Ltd,British Gas
Tendring DC,http://statistics.data.gov.uk/id/local-authority-district/22UN,Corporate Services,1880 - Office Accommodation Expenses,2304 - Energy Costs - Electricity,29/01/2013,2104626-7,145.72,2100197 - British Gas Trading Ltd,British Gas
Tendring DC,http://statistics.data.gov.uk/id/local-authority-district/22UN,Corporate Services,1860 - Depots General,2304 - Energy Costs - Electricity,29/01/2013,2104626-8,131.36,2100197 - British Gas Trading Ltd,British Gas
Tendring DC,http://statistics.data.gov.uk/id/local-authority-district/22UN,Corporate Services,1860 - Depots General,2304 - Energy Costs - Electricity,29/01/2013,2104626-9,493.01,2100197 - British Gas Trading Ltd,British Gas
Tendring DC,http://statistics.data.gov.uk/id/local-authority-district/22UN,Corporate Services,7746 - Town Centres & Jaywick Business Support,4710 - Telephones - Charges,08/01/2013,2104499-1,11.64,2100168 - British Telecommunications plc,Calls & Early Termination Charge
Tendring DC,http://statistics.data.gov.uk/id/local-authority-district/22UN,Corporate Services,7746 - Town Centres & Jaywick Business Support,4710 - Telephones - Charges,08/01/2013,2104499-2,170.96,2100168 - British Telecommunications plc,Calls & Early Termination Charge
Tendring DC,http://statistics.data.gov.uk/id/local-authority-district/22UN,Corporate Services,1760 - IT Direct Service Costs,4715 - Data Communication Charge,22/01/2013,2105015-1,78,2100168 - British Telecommunications plc,BT Internet Services
Tendring DC,http://statistics.data.gov.uk/id/local-authority-district/22UN,Corporate Services,8150 - Office Cleaning,4080 - Materials & Consumables,22/01/2013,2105156-1,124.52,2101624 - Bunzl,Bunzl
Tendring DC,http://statistics.data.gov.uk/id/local-authority-district/22UN,Corporate Services,8150 - Office Cleaning,4080 - Materials & Consumables,29/01/2013,2105250-1,351.12,2101624 - Bunzl,Bunzl
Tendring DC,http://statistics.data.gov.uk/id/local-authority-district/22UN,Corporate Services,8150 - Office Cleaning,4080 - Materials & Consumables,29/01/2013,2105255-1,169.79,2101624 - Bunzl,Bunzl
Tendring DC,http://statistics.data.gov.uk/id/local-authority-district/22UN,Corporate Services,9900 - General Fund Balance Sheet,B879 - Charges made by Merchant Acquirer,18/01/2013,2105172-1,25.02,REDACTED COMMERCIAL CONFIDENTIALITY,REDACTED COMMERCIAL CONFIDENTIALITY
Tendring DC,http://statistics.data.gov.uk/id/local-authority-district/22UN,Corporate Services,9900 - General Fund Balance Sheet,B879 - Charges made by Merchant Acquirer,18/01/2013,2105172-2,64.29,REDACTED COMMERCIAL CONFIDENTIALITY,REDACTED COMMERCIAL CONFIDENTIALITY
Tendring DC,http://statistics.data.gov.uk/id/local-authority-district/22UN,Corporate Services,9900 - General Fund Balance Sheet,B879 - Charges made by Merchant Acquirer,18/01/2013,2105172-3,198,REDACTED COMMERCIAL CONFIDENTIALITY,REDACTED COMMERCIAL CONFIDENTIALITY
Tendring DC,http://statistics.data.gov.uk/id/local-authority-district/22UN,Corporate Services,9900 - General Fund Balance Sheet,B879 - Charges made by Merchant Acquirer,18/01/2013,2105172-4,285.32,REDACTED COMMERCIAL CONFIDENTIALITY,REDACTED COMMERCIAL CONFIDENTIALITY
Tendring DC,http://statistics.data.gov.uk/id/local-authority-district/22UN,Corporate Services,9900 - General Fund Balance Sheet,B879 - Charges made by Merchant Acquirer,18/01/2013,2105172-5,286.92,REDACTED COMMERCIAL CONFIDENTIALITY,REDACTED COMMERCIAL CONFIDENTIALITY
Tendring DC,http://statistics.data.gov.uk/id/local-authority-district/22UN,Corporate Services,9900 - General Fund Balance Sheet,B879 - Charges made by Merchant Acquirer,18/01/2013,2105172-6,280.21,REDACTED COMMERCIAL CONFIDENTIALITY,REDACTED COMMERCIAL CONFIDENTIALITY
Tendring DC,http://statistics.data.gov.uk/id/local-authority-district/22UN,Corporate Services,9900 - General Fund Balance Sheet,B879 - Charges made by Merchant Acquirer,18/01/2013,2105172-7,279.18,REDACTED COMMERCIAL CONFIDENTIALITY,REDACTED COMMERCIAL CONFIDENTIALITY
Tendring DC,http://statistics.data.gov.uk/id/local-authority-district/22UN,Corporate Services,9900 - General Fund Balance Sheet,B879 - Charges made by Merchant Acquirer,18/01/2013,2105172-8,282.21,REDACTED COMMERCIAL CONFIDENTIALITY,REDACTED COMMERCIAL CONFIDENTIALITY
Tendring DC,http://statistics.data.gov.uk/id/local-authority-district/22UN,Corporate Services,1860 - Depots General,2100 - Building Repairs,29/01/2013,2105251-1,245,2100858 - Chelmer Electrical Ltd,Chelmer
Tendring DC,http://statistics.data.gov.uk/id/local-authority-district/22UN,Corporate Services,9900 - General Fund Balance Sheet,B382 - Rechargeable Works - Other,08/01/2013,7008684-1,350,2112387 - Clyde & Co LLP,1220005?MXL/EMS PL11-10 CRISP
Tendring DC,http://statistics.data.gov.uk/id/local-authority-district/22UN,Corporate Services,9900 - General Fund Balance Sheet,B382 - Rechargeable Works - Other,08/01/2013,7008684-2,-350,2112387 - Clyde & Co LLP,1220005?MXL/EMS PL11-10 CRISP
Tendring DC,http://statistics.data.gov.uk/id/local-authority-district/22UN,Corporate Services,"1580 - Benefits, Revenues and Customer Contact SU",5190 - Bank Commission Charges,18/01/2013,2105180-1,1847.55,REDACTED COMMERCIAL CONFIDENTIALITY,REDACTED COMMERCIAL CONFIDENTIALITY
Tendring DC,http://statistics.data.gov.uk/id/local-authority-district/22UN,Corporate Services,6740 - Careline,5190 - Bank Commission Charges,18/01/2013,2105180-2,99.52,REDACTED COMMERCIAL CONFIDENTIALITY,REDACTED COMMERCIAL CONFIDENTIALITY
Tendring DC,http://statistics.data.gov.uk/id/local-authority-district/22UN,Corporate Services,6620 - Corporate Management - General,5190 - Bank Commission Charges,18/01/2013,2105180-3,4291.05,REDACTED COMMERCIAL CONFIDENTIALITY,REDACTED COMMERCIAL CONFIDENTIALITY
Tendring DC,http://statistics.data.gov.uk/id/local-authority-district/22UN,Corporate Services,8901 - Interest Payable and similar charges,7570 - Interest Payments,18/01/2013,2105180-4,47.77,REDACTED COMMERCIAL CONFIDENTIALITY,REDACTED COMMERCIAL CONFIDENTIALITY
Tendring DC,http://statistics.data.gov.uk/id/local-authority-district/22UN,Corporate Services,5260 - HRA - Rent Collection And Accounting,5190 - Bank Commission Charges,18/01/2013,2105180-5,45.54,REDACTED COMMERCIAL CONFIDENTIALITY,REDACTED COMMERCIAL CONFIDENTIALITY
Tendring DC,http://statistics.data.gov.uk/id/local-authority-district/22UN,Corporate Services,"1580 - Benefits, Revenues and Customer Contact SU",5190 - Bank Commission Charges,18/01/2013,2105180-6,888.78,REDACTED COMMERCIAL CONFIDENTIALITY,REDACTED COMMERCIAL CONFIDENTIALITY
Tendring DC,http://statistics.data.gov.uk/id/local-authority-district/22UN,Corporate Services,5880 - Management Of Sport & Leisure Facilities,5190 - Bank Commission Charges,18/01/2013,2105180-7,88.2,REDACTED COMMERCIAL CONFIDENTIALITY,REDACTED COMMERCIAL CONFIDENTIALITY
Tendring DC,http://statistics.data.gov.uk/id/local-authority-district/22UN,Corporate Services,1760 - IT Direct Service Costs,4753 - Computer - Application Software,29/01/2013,1050777-1,21.99,2110686 - Computer Bookshops Ltd,PHOTOSHOP
Tendring DC,http://statistics.data.gov.uk/id/local-authority-district/22UN,Corporate Services,1760 - IT Direct Service Costs,4715 - Data Communication Charge,15/01/2013,2104704-1,10.55,2100304 - CO-OP Bank,TalkTalk/S Monkey
Tendring DC,http://statistics.data.gov.uk/id/local-authority-district/22UN,Corporate Services,1760 - IT Direct Service Costs,4753 - Computer - Application Software,15/01/2013,2104704-2,199,2100304 - CO-OP Bank,TalkTalk/S Monkey
Tendring DC,http://statistics.data.gov.uk/id/local-authority-district/22UN,Corporate Services,6620 - Corporate Management - General,5190 - Bank Commission Charges,15/01/2013,2104704-3,2,2100304 - CO-OP Bank,TalkTalk/S Monkey
Tendring DC,http://statistics.data.gov.uk/id/local-authority-district/22UN,Corporate Services,6620 - Corporate Management - General,5190 - Bank Commission Charges,15/01/2013,2104705-1,2,2100304 - CO-OP Bank,Card Fee
Tendring DC,http://statistics.data.gov.uk/id/local-authority-district/22UN,Corporate Services,6620 - Corporate Management - General,5190 - Bank Commission Charges,15/01/2013,2104706-1,2,2100304 - CO-OP Bank,Card Fee
Tendring DC,http://statistics.data.gov.uk/id/local-authority-district/22UN,Corporate Services,1760 - IT Direct Service Costs,4715 - Data Communication Charge,15/01/2013,2104707-1,30,2100304 - CO-OP Bank,TalkTalk
Tendring DC,http://statistics.data.gov.uk/id/local-authority-district/22UN,Corporate Services,1760 - IT Direct Service Costs,4715 - Data Communication Charge,15/01/2013,2104707-2,8.9,2100304 - CO-OP Bank,TalkTalk
Tendring DC,http://statistics.data.gov.uk/id/local-authority-district/22UN,Corporate Services,6620 - Corporate Management - General,5190 - Bank Commission Charges,18/01/2013,2105171-1,2,REDACTED COMMERCIAL CONFIDENTIALITY,REDACTED COMMERCIAL CONFIDENTIALITY
Tendring DC,http://statistics.data.gov.uk/id/local-authority-district/22UN,Corporate Services,6640 - Treasury Management,5192 - Brokerage,30/01/2013,2105362-1,49,2100304 - CO-OP Bank,FD Dec 2012
Tendring DC,http://statistics.data.gov.uk/id/local-authority-district/22UN,Corporate Services,6620 - Corporate Management - General,5190 - Bank Commission Charges,30/01/2013,2105362-2,257,2100304 - CO-OP Bank,FD Dec 2012
Tendring DC,http://statistics.data.gov.uk/id/local-authority-district/22UN,Corporate Services,1560 - Cashiers Service Unit,5186 - Paypoint/post office charges,30/01/2013,2105362-3,835.2,2100304 - CO-OP Bank,FD Dec 2012
Tendring DC,http://statistics.data.gov.uk/id/local-authority-district/22UN,Corporate Services,1560 - Cashiers Service Unit,5186 - Paypoint/post office charges,30/01/2013,2105362-4,2406.72,2100304 - CO-OP Bank,FD Dec 2012
Tendring DC,http://statistics.data.gov.uk/id/local-authority-district/22UN,Corporate Services,1860 - Depots General,2100 - Building Repairs,29/01/2013,2105282-1,332.8,REDACTED PERSONAL DATA,REDACTED PERSONAL DATA
Tendring DC,http://statistics.data.gov.uk/id/local-authority-district/22UN,Corporate Services,1880 - Office Accommodation Expenses,2308 - Energy Costs - Gas (Including LPG),29/01/2013,2105319-1,107.45,2104620 - Corona Energy Retail 4 Limited,Corona Energy
Tendring DC,http://statistics.data.gov.uk/id/local-authority-district/22UN,Corporate Services,1860 - Depots General,2308 - Energy Costs - Gas (Including LPG),29/01/2013,2105319-2,443.57,2104620 - Corona Energy Retail 4 Limited,Corona Energy
Tendring DC,http://statistics.data.gov.uk/id/local-authority-district/22UN,Corporate Services,1880 - Office Accommodation Expenses,2308 - Energy Costs - Gas (Including LPG),29/01/2013,2105319-3,88.4,2104620 - Corona Energy Retail 4 Limited,Corona Energy
Tendring DC,http://statistics.data.gov.uk/id/local-authority-district/22UN,Corporate Services,1880 - Office Accommodation Expenses,2308 - Energy Costs - Gas (Including LPG),29/01/2013,2105319-4,200.52,2104620 - Corona Energy Retail 4 Limited,Corona Energy
Tendring DC,http://statistics.data.gov.uk/id/local-authority-district/22UN,Corporate Services,1880 - Office Accommodation Expenses,2308 - Energy Costs - Gas (Including LPG),29/01/2013,2105319-5,1502.38,2104620 - Corona Energy Retail 4 Limited,616
Tendring DC,http://statistics.data.gov.uk/id/local-authority-district/22UN,Corporate Services,6160 - Princes Theatre,2308 - Energy Costs - Gas (Including LPG),29/01/2013,2105319-6,166.93,2104620 - Corona Energy Retail 4 Limited,616
Tendring DC,http://statistics.data.gov.uk/id/local-authority-district/22UN,Corporate Services,9900 - General Fund Balance Sheet,B460 - Criminal Records Bureau,18/01/2013,2105186-1,730,2100395 - Criminal Records Bureau,Criminal Records Check
Tendring DC,http://statistics.data.gov.uk/id/local-authority-district/22UN,Corporate Services,6480 - Emergency Planning,4597 - Hired Services - Payments to Contractors,29/01/2013,2105256-1,260,2102038 - Crispins Sandwich Bar Ltd,Crispins
Tendring DC,http://statistics.data.gov.uk/id/local-authority-district/22UN,Corporate Services,1760 - IT Direct Service Costs,4715 - Data Communication Charge,22/01/2013,2105014-1,5830,2106704 - Daisy Communications Ltd,Daisy - Service Charges
Tendring DC,http://statistics.data.gov.uk/id/local-authority-district/22UN,Corporate Services,1880 - Office Accommodation Expenses,2100 - Building Repairs,22/01/2013,2105147-1,78,2108384 - DC Drains & Plumbing Services,D C Drains
Tendring DC,http://statistics.data.gov.uk/id/local-authority-district/22UN,Corporate Services,1880 - Office Accommodation Expenses,2100 - Building Repairs,22/01/2013,2105148-1,122.36,2108384 - DC Drains & Plumbing Services,D C Drains
Tendring DC,http://statistics.data.gov.uk/id/local-authority-district/22UN,Corporate Services,1880 - Office Accommodation Expenses,2100 - Building Repairs,22/01/2013,2105148-2,122.36,2108384 - DC Drains & Plumbing Services,D C Drains
Tendring DC,http://statistics.data.gov.uk/id/local-authority-district/22UN,Corporate Services,1880 - Office Accommodation Expenses,2100 - Building Repairs,22/01/2013,2105148-3,122.38,2108384 - DC Drains & Plumbing Services,D C Drains
Tendring DC,http://statistics.data.gov.uk/id/local-authority-district/22UN,Corporate Services,1880 - Office Accommodation Expenses,2100 - Building Repairs,22/01/2013,2105148-4,122.36,2108384 - DC Drains & Plumbing Services,D C Drains
Tendring DC,http://statistics.data.gov.uk/id/local-authority-district/22UN,Corporate Services,1880 - Office Accommodation Expenses,2100 - Building Repairs,22/01/2013,2105149-1,158.22,2108384 - DC Drains & Plumbing Services,D C Drains
Tendring DC,http://statistics.data.gov.uk/id/local-authority-district/22UN,Corporate Services,1880 - Office Accommodation Expenses,2100 - Building Repairs,22/01/2013,2105149-2,158.22,2108384 - DC Drains & Plumbing Services,D C Drains
Tendring DC,http://statistics.data.gov.uk/id/local-authority-district/22UN,Corporate Services,1880 - Office Accommodation Expenses,2100 - Building Repairs,22/01/2013,2105150-1,473,2108384 - DC Drains & Plumbing Services,D C Drains
Tendring DC,http://statistics.data.gov.uk/id/local-authority-district/22UN,Corporate Services,7400 - Jaywick Enterprise Centre (Starter Units),4350 - Photocopier Hire,08/01/2013,2104498-1,69,2110757 - Digital Copier Systems (Eastern) Ltd,Quarterly Dec 12 - March 13
Tendring DC,http://statistics.data.gov.uk/id/local-authority-district/22UN,Corporate Services,1100 - Head of Corporate Services and Admin Service Unit,4400 - Maintenance Under Service Agreements,22/01/2013,2104999-1,15.44,2102826 - Eden Springs UK Ltd,Bottled Water
Tendring DC,http://statistics.data.gov.uk/id/local-authority-district/22UN,Corporate Services,1880 - Office Accommodation Expenses,2304 - Energy Costs - Electricity,22/01/2013,2105141-1,4876.38,2105146 - EDF Energy 1 Ltd,EDF
Tendring DC,http://statistics.data.gov.uk/id/local-authority-district/22UN,Corporate Services,6160 - Princes Theatre,2304 - Energy Costs - Electricity,22/01/2013,2105141-2,541.82,2105146 - EDF Energy 1 Ltd,EDF
Tendring DC,http://statistics.data.gov.uk/id/local-authority-district/22UN,Corporate Services,7240 - Electoral Registration Expenses,4300 - Printing & Stationery,15/01/2013,2104627-1,251.5,2107541 - Electoral Reform Services,Electoral ERS
Tendring DC,http://statistics.data.gov.uk/id/local-authority-district/22UN,Corporate Services,1815 - Personnel and Human Resources Issues,4460 - Legal & Professional Expenses,29/01/2013,2105292-1,250,2109294 - Ellisons Solicitors,Compromise Agreement
Tendring DC,http://statistics.data.gov.uk/id/local-authority-district/22UN,Corporate Services,1815 - Personnel and Human Resources Issues,4460 - Legal & Professional Expenses,29/01/2013,2105293-1,250,2109294 - Ellisons Solicitors,Compromise Agreement
Tendring DC,http://statistics.data.gov.uk/id/local-authority-district/22UN,Corporate Services,1815 - Personnel and Human Resources Issues,4460 - Legal & Professional Expenses,29/01/2013,2105294-1,250,2109294 - Ellisons Solicitors,Compromise Agreement
Tendring DC,http://statistics.data.gov.uk/id/local-authority-district/22UN,Corporate Services,1815 - Personnel and Human Resources Issues,4460 - Legal & Professional Expenses,29/01/2013,2105295-1,250,2109294 - Ellisons Solicitors,Compromise Agreement
Tendring DC,http://statistics.data.gov.uk/id/local-authority-district/22UN,Corporate Services,1815 - Personnel and Human Resources Issues,4460 - Legal & Professional Expenses,29/01/2013,2105296-1,250,2109294 - Ellisons Solicitors,Compromise Agreement
Tendring DC,http://statistics.data.gov.uk/id/local-authority-district/22UN,Corporate Services,6620 - Corporate Management - General,5180 - External Audit Fees,22/01/2013,2105163-1,25469,2112514 - Ernst & Young,Audit Fee 2012/13
Tendring DC,http://statistics.data.gov.uk/id/local-authority-district/22UN,Corporate Services,9880 - Collection Fund - Council Tax,R100 - Precept - ECC,18/01/2013,2104599-1,5596643,REDACTED PERSONAL DATA,REDACTED PERSONAL DATA
Tendring DC,http://statistics.data.gov.uk/id/local-authority-district/22UN,Corporate Services,9880 - Collection Fund - Council Tax,R110 - Council Tax Balance - ECC,18/01/2013,2104599-2,49150,REDACTED PERSONAL DATA,REDACTED PERSONAL DATA
Tendring DC,http://statistics.data.gov.uk/id/local-authority-district/22UN,Corporate Services,6683 - Second Homes Discount Scheme,8109 - Second Homes Discount Scheme - ECC Contribution,18/01/2013,2104599-3,-35298,REDACTED PERSONAL DATA,REDACTED PERSONAL DATA
Tendring DC,http://statistics.data.gov.uk/id/local-authority-district/22UN,Corporate Services,8660 - Fit for Purpose,5500 - Miscellaneous Expenses,15/01/2013,2104718-1,2795.07,REDACTED PERSONAL DATA,REDACTED PERSONAL DATA
Tendring DC,http://statistics.data.gov.uk/id/local-authority-district/22UN,Corporate Services,8660 - Fit for Purpose,5500 - Miscellaneous Expenses,22/01/2013,2105022-1,4695.93,REDACTED PERSONAL DATA,REDACTED PERSONAL DATA
Tendring DC,http://statistics.data.gov.uk/id/local-authority-district/22UN,Corporate Services,8660 - Fit for Purpose,5500 - Miscellaneous Expenses,22/01/2013,2105023-1,67769.28,REDACTED PERSONAL DATA,REDACTED PERSONAL DATA
Tendring DC,http://statistics.data.gov.uk/id/local-authority-district/22UN,Corporate Services,9880 - Collection Fund - Council Tax,R100 - Precept - ECC,18/01/2013,2105175-1,5596643,REDACTED COMMERCIAL CONFIDENTIALITY,REDACTED COMMERCIAL CONFIDENTIALITY
Tendring DC,http://statistics.data.gov.uk/id/local-authority-district/22UN,Corporate Services,9880 - Collection Fund - Council Tax,R110 - Council Tax Balance - ECC,18/01/2013,2105175-2,49150,REDACTED COMMERCIAL CONFIDENTIALITY,REDACTED COMMERCIAL CONFIDENTIALITY
Tendring DC,http://statistics.data.gov.uk/id/local-authority-district/22UN,Corporate Services,6683 - Second Homes Discount Scheme,8109 - Second Homes Discount Scheme - ECC Contribution,18/01/2013,2105175-3,-35298,REDACTED COMMERCIAL CONFIDENTIALITY,REDACTED COMMERCIAL CONFIDENTIALITY
Tendring DC,http://statistics.data.gov.uk/id/local-authority-district/22UN,Corporate Services,1180 - Benefit Fraud Investigation Service Unit,5500 - Miscellaneous Expenses,29/01/2013,2105333-1,10,2100429 - Essex County Council,Birth Certificate for Fraud Investigation
Tendring DC,http://statistics.data.gov.uk/id/local-authority-district/22UN,Corporate Services,8971 - MIRS - Contributions Payable to the Pension Scheme,1816 - Superannuation Deficiency Contribution,08/01/2013,7008670-4,137750,2100419 - Essex County Council,Pension 00013
Tendring DC,http://statistics.data.gov.uk/id/local-authority-district/22UN,Corporate Services,8971 - MIRS - Contributions Payable to the Pension Scheme,1810 - Superannuation - Financial Strain/Added Years,08/01/2013,7008670-5,17418.24,2100419 - Essex County Council,Pension 00013
Tendring DC,http://statistics.data.gov.uk/id/local-authority-district/22UN,Corporate Services,8971 - MIRS - Contributions Payable to the Pension Scheme,1822 - Superannuation - Port Health Pensions etc.,08/01/2013,7008675-1,779.07,2100419 - Essex County Council,Port Health Authority
Tendring DC,http://statistics.data.gov.uk/id/local-authority-district/22UN,Corporate Services,9880 - Collection Fund - Council Tax,R101 - Precept - Essex Fire,18/01/2013,2104601-1,342056,REDACTED PERSONAL DATA,REDACTED PERSONAL DATA
Tendring DC,http://statistics.data.gov.uk/id/local-authority-district/22UN,Corporate Services,9880 - Collection Fund - Council Tax,R111 - Council Tax Balance - Essex Fire,18/01/2013,2104601-2,3004,REDACTED PERSONAL DATA,REDACTED PERSONAL DATA
Tendring DC,http://statistics.data.gov.uk/id/local-authority-district/22UN,Corporate Services,9880 - Collection Fund - Council Tax,R101 - Precept - Essex Fire,18/01/2013,2105173-1,342056,REDACTED COMMERCIAL CONFIDENTIALITY,REDACTED COMMERCIAL CONFIDENTIALITY
Tendring DC,http://statistics.data.gov.uk/id/local-authority-district/22UN,Corporate Services,9880 - Collection Fund - Council Tax,R111 - Council Tax Balance - Essex Fire,18/01/2013,2105173-2,3004,REDACTED COMMERCIAL CONFIDENTIALITY,REDACTED COMMERCIAL CONFIDENTIALITY
Tendring DC,http://statistics.data.gov.uk/id/local-authority-district/22UN,Corporate Services,1860 - Depots General,2100 - Building Repairs,22/01/2013,2105145-1,1633,2100489 - Essex Industrial Doors Ltd,Essex Industrial Doors
Tendring DC,http://statistics.data.gov.uk/id/local-authority-district/22UN,Corporate Services,9880 - Collection Fund - Council Tax,R102 - Precept - Essex Police,18/01/2013,2104600-1,704042,REDACTED PERSONAL DATA,REDACTED PERSONAL DATA
Tendring DC,http://statistics.data.gov.uk/id/local-authority-district/22UN,Corporate Services,9880 - Collection Fund - Council Tax,R112 - Council Tax Balance - Essex Police,18/01/2013,2104600-2,5976,REDACTED PERSONAL DATA,REDACTED PERSONAL DATA
Tendring DC,http://statistics.data.gov.uk/id/local-authority-district/22UN,Corporate Services,9880 - Collection Fund - Council Tax,R102 - Precept - Essex Police,18/01/2013,2105174-1,704042,REDACTED COMMERCIAL CONFIDENTIALITY,REDACTED COMMERCIAL CONFIDENTIALITY
Tendring DC,http://statistics.data.gov.uk/id/local-authority-district/22UN,Corporate Services,9880 - Collection Fund - Council Tax,R112 - Council Tax Balance - Essex Police,18/01/2013,2105174-2,5976,REDACTED COMMERCIAL CONFIDENTIALITY,REDACTED COMMERCIAL CONFIDENTIALITY
Tendring DC,http://statistics.data.gov.uk/id/local-authority-district/22UN,Corporate Services,1660 - Other Apportionable Overheads,4609 - Child Care Vouchers Management Fee,08/01/2013,7008685-2,57.36,2104459 - Fideliti Ltd,Jan 13 vouchers
Tendring DC,http://statistics.data.gov.uk/id/local-authority-district/22UN,Corporate Services,1880 - Office Accommodation Expenses,4632 - Security,15/01/2013,2104639-1,125,REDACTED PERSONAL DATA,REDACTED PERSONAL DATA
Tendring DC,http://statistics.data.gov.uk/id/local-authority-district/22UN,Corporate Services,7000 - CCTV,4400 - Maintenance Under Service Agreements,15/01/2013,2104786-1,50,2100546 - GCS Alarms,Dovercourt Cams Dec
Tendring DC,http://statistics.data.gov.uk/id/local-authority-district/22UN,Corporate Services,7025 - CDRP Support,4900 - Grants,22/01/2013,2105060-1,150,REDACTED PERSONAL DATA,REDACTED PERSONAL DATA
Tendring DC,http://statistics.data.gov.uk/id/local-authority-district/22UN,Corporate Services,1860 - Depots General,4632 - Security,29/01/2013,2105248-1,40,2100546 - GCS Alarms,GCS
Tendring DC,http://statistics.data.gov.uk/id/local-authority-district/22UN,Corporate Services,1880 - Office Accommodation Expenses,4632 - Security,29/01/2013,2105249-1,61,2100546 - GCS Alarms,GCS
Tendring DC,http://statistics.data.gov.uk/id/local-authority-district/22UN,Corporate Services,1120 - Accountancy Service Unit,4596 - Hired Services - Mortgage Administration,29/01/2013,2105355-1,60,2100576 - Gemini Consultants Ltd,Redemption Fee Lamac
Tendring DC,http://statistics.data.gov.uk/id/local-authority-district/22UN,Corporate Services,1930 - Asset Management Service Unit,4460 - Legal & Professional Expenses,22/01/2013,2105048-1,333.33,2106398 - Goody Burrett,Goody Burrett - Rectification of title
Tendring DC,http://statistics.data.gov.uk/id/local-authority-district/22UN,Corporate Services,8150 - Office Cleaning,4040 - Equipment & Tools,02/01/2013,2104267-1,91.66,2100588 - Grantleys,Grantleys
Tendring DC,http://statistics.data.gov.uk/id/local-authority-district/22UN,Corporate Services,1880 - Office Accommodation Expenses,2100 - Building Repairs,02/01/2013,2104317-1,180,2106272 - Greenleaf Pest Control Services,GPCS
Tendring DC,http://statistics.data.gov.uk/id/local-authority-district/22UN,Corporate Services,1880 - Office Accommodation Expenses,2100 - Building Repairs,22/01/2013,2105155-1,686,2112468 - Henry Ashe Projects Ltd,Henry Ashe
Tendring DC,http://statistics.data.gov.uk/id/local-authority-district/22UN,Corporate Services,1300 - Legal Services Service Unit,4466 - Legal & Professional Expenses - Land Registry,18/01/2013,2105189-1,11,2100636 - HM Land Registry,Land Registry Enquiries
Tendring DC,http://statistics.data.gov.uk/id/local-authority-district/22UN,Corporate Services,4660 - Public Health,5500 - Miscellaneous Expenses,18/01/2013,2105189-2,9,2100636 - HM Land Registry,Land Registry Enquiries
Tendring DC,http://statistics.data.gov.uk/id/local-authority-district/22UN,Corporate Services,"1580 - Benefits, Revenues and Customer Contact SU",4462 - Legal Fees incl. Bailiffs re debt recovery,18/01/2013,2105189-3,72,2100636 - HM Land Registry,Land Registry Enquiries
Tendring DC,http://statistics.data.gov.uk/id/local-authority-district/22UN,Corporate Services,"1580 - Benefits, Revenues and Customer Contact SU",4462 - Legal Fees incl. Bailiffs re debt recovery,18/01/2013,2105189-4,15,2100636 - HM Land Registry,Land Registry Enquiries
Tendring DC,http://statistics.data.gov.uk/id/local-authority-district/22UN,Corporate Services,1520 - Head of Planning and Customer Services,4624 - Hired Services - Land Registry,18/01/2013,2105189-5,28,2100636 - HM Land Registry,Land Registry Enquiries
Tendring DC,http://statistics.data.gov.uk/id/local-authority-district/22UN,Corporate Services,1930 - Asset Management Service Unit,4460 - Legal & Professional Expenses,18/01/2013,2105189-6,38,2100636 - HM Land Registry,Land Registry Enquiries
Tendring DC,http://statistics.data.gov.uk/id/local-authority-district/22UN,Corporate Services,H920 - DFGs,C400 - Grant payments,18/01/2013,2105189-7,45,2100636 - HM Land Registry,Land Registry Enquiries
Tendring DC,http://statistics.data.gov.uk/id/local-authority-district/22UN,Corporate Services,4750 - Housing Disrepair,4080 - Materials & Consumables,18/01/2013,2105189-8,33,2100636 - HM Land Registry,Land Registry Enquiries
Tendring DC,http://statistics.data.gov.uk/id/local-authority-district/22UN,Corporate Services,5140 - Homelessness,4680 - Bed & Breakfast Accommodation,18/01/2013,2105189-9,12,2100636 - HM Land Registry,Land Registry Enquiries
Tendring DC,http://statistics.data.gov.uk/id/local-authority-district/22UN,Corporate Services,1880 - Office Accommodation Expenses,4666 - Hygiene Services,02/01/2013,2104322-1,22.22,2104976 - Initial Washroom Solutions,Initial
Tendring DC,http://statistics.data.gov.uk/id/local-authority-district/22UN,Corporate Services,1860 - Depots General,4666 - Hygiene Services,02/01/2013,2104322-2,11.11,2104976 - Initial Washroom Solutions,Initial
Tendring DC,http://statistics.data.gov.uk/id/local-authority-district/22UN,Corporate Services,1880 - Office Accommodation Expenses,4666 - Hygiene Services,02/01/2013,2104322-3,22.22,2104976 - Initial Washroom Solutions,Initial
Tendring DC,http://statistics.data.gov.uk/id/local-authority-district/22UN,Corporate Services,1880 - Office Accommodation Expenses,4666 - Hygiene Services,02/01/2013,2104322-4,93.13,2104976 - Initial Washroom Solutions,Initial
Tendring DC,http://statistics.data.gov.uk/id/local-authority-district/22UN,Corporate Services,1880 - Office Accommodation Expenses,4666 - Hygiene Services,02/01/2013,2104322-5,33.33,2104976 - Initial Washroom Solutions,Initial
Tendring DC,http://statistics.data.gov.uk/id/local-authority-district/22UN,Corporate Services,1880 - Office Accommodation Expenses,4666 - Hygiene Services,02/01/2013,2104322-6,11.11,2104976 - Initial Washroom Solutions,Initial
Tendring DC,http://statistics.data.gov.uk/id/local-authority-district/22UN,Corporate Services,1880 - Office Accommodation Expenses,4666 - Hygiene Services,02/01/2013,2104322-7,10.74,2104976 - Initial Washroom Solutions,Initial
Tendring DC,http://statistics.data.gov.uk/id/local-authority-district/22UN,Corporate Services,1880 - Office Accommodation Expenses,4666 - Hygiene Services,29/01/2013,2105257-1,22.22,2104976 - Initial Washroom Solutions,Initial
Tendring DC,http://statistics.data.gov.uk/id/local-authority-district/22UN,Corporate Services,1860 - Depots General,4666 - Hygiene Services,29/01/2013,2105257-2,11.11,2104976 - Initial Washroom Solutions,Initial
Tendring DC,http://statistics.data.gov.uk/id/local-authority-district/22UN,Corporate Services,1880 - Office Accommodation Expenses,4666 - Hygiene Services,29/01/2013,2105257-3,22.22,2104976 - Initial Washroom Solutions,Initial
Tendring DC,http://statistics.data.gov.uk/id/local-authority-district/22UN,Corporate Services,1880 - Office Accommodation Expenses,4666 - Hygiene Services,29/01/2013,2105257-4,93.13,2104976 - Initial Washroom Solutions,Initial
Tendring DC,http://statistics.data.gov.uk/id/local-authority-district/22UN,Corporate Services,1880 - Office Accommodation Expenses,4666 - Hygiene Services,29/01/2013,2105257-5,72.21,2104976 - Initial Washroom Solutions,Initial
Tendring DC,http://statistics.data.gov.uk/id/local-authority-district/22UN,Corporate Services,1880 - Office Accommodation Expenses,4666 - Hygiene Services,29/01/2013,2105257-6,11.11,2104976 - Initial Washroom Solutions,Initial
Tendring DC,http://statistics.data.gov.uk/id/local-authority-district/22UN,Corporate Services,1070 - Head of Public Experience and Administration Service Unit,5500 - Miscellaneous Expenses,29/01/2013,2105392-1,73.7,2100782 - Insight Direct (uk) Limited,Insight Provacy Screen
Tendring DC,http://statistics.data.gov.uk/id/local-authority-district/22UN,Corporate Services,1880 - Office Accommodation Expenses,4448 - Confidential Waste,22/01/2013,2105154-1,65.8,2110936 - IPPlus (UK) Ltd,Ancora
Tendring DC,http://statistics.data.gov.uk/id/local-authority-district/22UN,Corporate Services,1210 - Facilities Management Service Unit,3302 - Car Allowances - Officers,02/01/2013,2104452-1,50,REDACTED PERSONAL DATA,REDACTED PERSONAL DATA
Tendring DC,http://statistics.data.gov.uk/id/local-authority-district/22UN,Corporate Services,1210 - Facilities Management Service Unit,3302 - Car Allowances - Officers,29/01/2013,7008804-1,60,REDACTED PERSONAL DATA,REDACTED PERSONAL DATA
Tendring DC,http://statistics.data.gov.uk/id/local-authority-district/22UN,Corporate Services,1565 - Careline / CCTV Service Unit,3302 - Car Allowances - Officers,08/01/2013,7008686-1,6.4,2112682 - K Williams,Career Track Mileage - Katie Williams
Tendring DC,http://statistics.data.gov.uk/id/local-authority-district/22UN,Corporate Services,1880 - Office Accommodation Expenses,4632 - Security,02/01/2013,2104268-1,30,2100890 - Kirby Locks Ltd,Kirby Locks Ltd
Tendring DC,http://statistics.data.gov.uk/id/local-authority-district/22UN,Corporate Services,1760 - IT Direct Service Costs,6325 - Additional ICT Services,08/01/2013,7008696-1,3794.17,2100894 - Liberata UK Ltd,Various Works
Tendring DC,http://statistics.data.gov.uk/id/local-authority-district/22UN,Corporate Services,1300 - Legal Services Service Unit,1700 - Training - Courses,08/01/2013,7008696-2,30,2100894 - Liberata UK Ltd,Various Works
Tendring DC,http://statistics.data.gov.uk/id/local-authority-district/22UN,Corporate Services,1760 - IT Direct Service Costs,6320 - IT Services Agreements Payment,08/01/2013,7008696-3,10620,2100894 - Liberata UK Ltd,Various Works
Tendring DC,http://statistics.data.gov.uk/id/local-authority-district/22UN,Corporate Services,1120 - Accountancy Service Unit,4596 - Hired Services - Mortgage Administration,29/01/2013,2105339-1,60,REDACTED PERSONAL DATA,REDACTED PERSONAL DATA
Tendring DC,http://statistics.data.gov.uk/id/local-authority-district/22UN,Corporate Services,1090 - Chief Executive and Support Service Unit,4300 - Printing & Stationery,15/01/2013,2104647-1,60.15,REDACTED PERSONAL DATA,REDACTED PERSONAL DATA
Tendring DC,http://statistics.data.gov.uk/id/local-authority-district/22UN,Corporate Services,1100 - Head of Corporate Services and Admin Service Unit,4355 - Books & Periodicals,15/01/2013,2104647-2,34.3,REDACTED PERSONAL DATA,REDACTED PERSONAL DATA
Tendring DC,http://statistics.data.gov.uk/id/local-authority-district/22UN,Corporate Services,7720 - Regeneration Projects,5500 - Miscellaneous Expenses,15/01/2013,2104647-3,16.5,REDACTED PERSONAL DATA,REDACTED PERSONAL DATA
Tendring DC,http://statistics.data.gov.uk/id/local-authority-district/22UN,Corporate Services,"1580 - Benefits, Revenues and Customer Contact SU",4355 - Books & Periodicals,15/01/2013,2104647-4,16.5,REDACTED PERSONAL DATA,REDACTED PERSONAL DATA
Tendring DC,http://statistics.data.gov.uk/id/local-authority-district/22UN,Corporate Services,7746 - Town Centres & Jaywick Business Support,4810 - Conference Bookings,15/01/2013,2104660-1,100,2111881 - NABMA,Portas-Ideas & Innovation
Tendring DC,http://statistics.data.gov.uk/id/local-authority-district/22UN,Corporate Services,1320 - Print Unit Service Unit,4080 - Materials & Consumables,15/01/2013,2104608-1,130.68,REDACTED PERSONAL DATA,REDACTED PERSONAL DATA
Tendring DC,http://statistics.data.gov.uk/id/local-authority-district/22UN,Corporate Services,1320 - Print Unit Service Unit,4302 - External Print Unit Expenses,29/01/2013,2105383-1,30,2111844 - Optimumprint,Job 493
Tendring DC,http://statistics.data.gov.uk/id/local-authority-district/22UN,Corporate Services,1330 - Human Resources Service Unit,1700 - Training - Courses,29/01/2013,2105354-1,12,2112880 - Park City Consulting Ltd,Practical Seminar
Tendring DC,http://statistics.data.gov.uk/id/local-authority-district/22UN,Corporate Services,C367 - Application Interfacing,C276 - Licences for Software,15/01/2013,2104666-1,540,2101038 - Phoenix Software Limited,Photoshop Licence
Tendring DC,http://statistics.data.gov.uk/id/local-authority-district/22UN,Corporate Services,C367 - Application Interfacing,C276 - Licences for Software,22/01/2013,2105013-1,20,2101038 - Phoenix Software Limited,P Software Photoshop CS6 DVD
Tendring DC,http://statistics.data.gov.uk/id/local-authority-district/22UN,Corporate Services,1661 - Other Apportionable Overheads - Corporate Support,4700 - Postage,18/01/2013,2105185-1,834,2103866 - Pitney Bowes Finance plc,Franking machine contract
Tendring DC,http://statistics.data.gov.uk/id/local-authority-district/22UN,Corporate Services,1661 - Other Apportionable Overheads - Corporate Support,4700 - Postage,29/01/2013,7008802-1,5050,2104077 - Pitney Bowes Ltd,RE  CREDITING FRANKING MACHINE CLACTON PBP A/C 10113561
Tendring DC,http://statistics.data.gov.uk/id/local-authority-district/22UN,Corporate Services,1661 - Other Apportionable Overheads - Corporate Support,4700 - Postage,29/01/2013,7008803-1,5050,2104077 - Pitney Bowes Ltd,RE CREDITING FRANKING MACHINE CLACTON PBA A/C 10113561
Tendring DC,http://statistics.data.gov.uk/id/local-authority-district/22UN,Corporate Services,"1580 - Benefits, Revenues and Customer Contact SU",4718 - Fixed Communication Lines,22/01/2013,2105016-1,10.5,2106860 - ProcessFlows UK Ltd,Process Flows -Local text MSG
Tendring DC,http://statistics.data.gov.uk/id/local-authority-district/22UN,Corporate Services,8901 - Interest Payable and similar charges,7570 - Interest Payments,18/01/2013,2105179-2,5878.06,REDACTED COMMERCIAL CONFIDENTIALITY,REDACTED COMMERCIAL CONFIDENTIALITY
Tendring DC,http://statistics.data.gov.uk/id/local-authority-district/22UN,Corporate Services,9930 - Loans Fund Balance Sheet,B551 - Loans Maturing Within One Year - HRA,18/01/2013,2105179-3,166666.67,REDACTED COMMERCIAL CONFIDENTIALITY,REDACTED COMMERCIAL CONFIDENTIALITY
Tendring DC,http://statistics.data.gov.uk/id/local-authority-district/22UN,Corporate Services,5760 - HRA - Capital & Interest Charges,9831 - Item 8 Interest Charge in HRA,18/01/2013,2105179-4,149383.33,REDACTED COMMERCIAL CONFIDENTIALITY,REDACTED COMMERCIAL CONFIDENTIALITY
Tendring DC,http://statistics.data.gov.uk/id/local-authority-district/22UN,Corporate Services,9900 - General Fund Balance Sheet,B886 - Rail Warrants Allocation Holding Account,15/01/2013,2104708-1,809,2101174 - R S P Ltd,Rail Warrants
Tendring DC,http://statistics.data.gov.uk/id/local-authority-district/22UN,Corporate Services,1880 - Office Accommodation Expenses,2100 - Building Repairs,15/01/2013,2104636-1,75,REDACTED PERSONAL DATA,REDACTED PERSONAL DATA
Tendring DC,http://statistics.data.gov.uk/id/local-authority-district/22UN,Corporate Services,6580 - Member Support Cost,4350 - Photocopier Hire,22/01/2013,2105067-1,32.05,REDACTED PERSONAL DATA,REDACTED PERSONAL DATA
Tendring DC,http://statistics.data.gov.uk/id/local-authority-district/22UN,Corporate Services,1210 - Facilities Management Service Unit,4400 - Maintenance Under Service Agreements,29/01/2013,2105258-1,276.8,2101090 - Ricoh UK Ltd,Ricoh
Tendring DC,http://statistics.data.gov.uk/id/local-authority-district/22UN,Corporate Services,1210 - Facilities Management Service Unit,4400 - Maintenance Under Service Agreements,29/01/2013,2105259-1,694.84,2101090 - Ricoh UK Ltd,Ricoh
Tendring DC,http://statistics.data.gov.uk/id/local-authority-district/22UN,Corporate Services,7240 - Electoral Registration Expenses,4700 - Postage,29/01/2013,2105301-1,198.38,2101139 - Royal Mail,Electoral Postage
Tendring DC,http://statistics.data.gov.uk/id/local-authority-district/22UN,Corporate Services,1815 - Personnel and Human Resources Issues,1600 - Medical Expenses,22/01/2013,2104975-1,580,2112524 - RPS Business Healthcare,Occupational Health
Tendring DC,http://statistics.data.gov.uk/id/local-authority-district/22UN,Corporate Services,8125 - Horticultural Services,5500 - Miscellaneous Expenses,22/01/2013,2104975-2,580,2112524 - RPS Business Healthcare,Occupational Health
Tendring DC,http://statistics.data.gov.uk/id/local-authority-district/22UN,Corporate Services,1620 - Corporate Performance - IT Section Service Unit,4880 - Subscriptions Paid,22/01/2013,2105017-1,140,2101296 - SOCITM Limited,Socitm - Membership 2013
Tendring DC,http://statistics.data.gov.uk/id/local-authority-district/22UN,Corporate Services,1760 - IT Direct Service Costs,6325 - Additional ICT Services,22/01/2013,2105018-1,2950,2101296 - SOCITM Limited,Insight Benchmarking Group 9
Tendring DC,http://statistics.data.gov.uk/id/local-authority-district/22UN,Corporate Services,1880 - Office Accommodation Expenses,2100 - Building Repairs,22/01/2013,2105164-1,11.08,2101370 - Stannah Lift Services Ltd,Stannah
Tendring DC,http://statistics.data.gov.uk/id/local-authority-district/22UN,Corporate Services,1880 - Office Accommodation Expenses,2100 - Building Repairs,22/01/2013,2105164-2,11.08,2101370 - Stannah Lift Services Ltd,Stannah
Tendring DC,http://statistics.data.gov.uk/id/local-authority-district/22UN,Corporate Services,9900 - General Fund Balance Sheet,B382 - Rechargeable Works - Other,02/01/2013,2104388-1,60,REDACTED PERSONAL DATA,REDACTED PERSONAL DATA
Tendring DC,http://statistics.data.gov.uk/id/local-authority-district/22UN,Corporate Services,9900 - General Fund Balance Sheet,B382 - Rechargeable Works - Other,02/01/2013,2104389-1,60,REDACTED PERSONAL DATA,REDACTED PERSONAL DATA
Tendring DC,http://statistics.data.gov.uk/id/local-authority-district/22UN,Corporate Services,9900 - General Fund Balance Sheet,B382 - Rechargeable Works - Other,29/01/2013,7008793-1,97.5,REDACTED PERSONAL DATA,REDACTED PERSONAL DATA
Tendring DC,http://statistics.data.gov.uk/id/local-authority-district/22UN,Corporate Services,9900 - General Fund Balance Sheet,B382 - Rechargeable Works - Other,29/01/2013,7008794-1,82.5,2101314 - T V Licensing,BELMANS CRT
Tendring DC,http://statistics.data.gov.uk/id/local-authority-district/22UN,Corporate Services,7025 - CDRP Support,4900 - Grants,08/01/2013,2104545-1,62,2109877 - Tenbac Ltd,Tenbac - VAT
Tendring DC,http://statistics.data.gov.uk/id/local-authority-district/22UN,Corporate Services,8150 - Office Cleaning,4080 - Materials & Consumables,02/01/2013,2104454-1,15,REDACTED PERSONAL DATA,REDACTED PERSONAL DATA
Tendring DC,http://statistics.data.gov.uk/id/local-authority-district/22UN,Corporate Services,1100 - Head of Corporate Services and Admin Service Unit,4300 - Printing & Stationery,02/01/2013,2104454-10,3.33,REDACTED PERSONAL DATA,REDACTED PERSONAL DATA
Tendring DC,http://statistics.data.gov.uk/id/local-authority-district/22UN,Corporate Services,8150 - Office Cleaning,4080 - Materials & Consumables,02/01/2013,2104454-11,4.16,REDACTED PERSONAL DATA,REDACTED PERSONAL DATA
Tendring DC,http://statistics.data.gov.uk/id/local-authority-district/22UN,Corporate Services,1100 - Head of Corporate Services and Admin Service Unit,4800 - Hospitality,02/01/2013,2104454-12,2.08,REDACTED PERSONAL DATA,REDACTED PERSONAL DATA
Tendring DC,http://statistics.data.gov.uk/id/local-authority-district/22UN,Corporate Services,1100 - Head of Corporate Services and Admin Service Unit,4800 - Hospitality,02/01/2013,2104454-13,3.1,REDACTED PERSONAL DATA,REDACTED PERSONAL DATA
Tendring DC,http://statistics.data.gov.uk/id/local-authority-district/22UN,Corporate Services,1100 - Head of Corporate Services and Admin Service Unit,4800 - Hospitality,02/01/2013,2104454-14,32,REDACTED PERSONAL DATA,REDACTED PERSONAL DATA
Tendring DC,http://statistics.data.gov.uk/id/local-authority-district/22UN,Corporate Services,1100 - Head of Corporate Services and Admin Service Unit,4800 - Hospitality,02/01/2013,2104454-2,16.66,REDACTED PERSONAL DATA,REDACTED PERSONAL DATA
Tendring DC,http://statistics.data.gov.uk/id/local-authority-district/22UN,Corporate Services,1661 - Other Apportionable Overheads - Corporate Support,4700 - Postage,02/01/2013,2104454-3,1.5,REDACTED PERSONAL DATA,REDACTED PERSONAL DATA
Tendring DC,http://statistics.data.gov.uk/id/local-authority-district/22UN,Corporate Services,1780 - Health & Safety,4210 - Protective Clothing,02/01/2013,2104454-4,37.55,REDACTED PERSONAL DATA,REDACTED PERSONAL DATA
Tendring DC,http://statistics.data.gov.uk/id/local-authority-district/22UN,Corporate Services,1661 - Other Apportionable Overheads - Corporate Support,4700 - Postage,02/01/2013,2104454-5,1.5,REDACTED PERSONAL DATA,REDACTED PERSONAL DATA
Tendring DC,http://statistics.data.gov.uk/id/local-authority-district/22UN,Corporate Services,1661 - Other Apportionable Overheads - Corporate Support,4700 - Postage,02/01/2013,2104454-6,1.5,REDACTED PERSONAL DATA,REDACTED PERSONAL DATA
Tendring DC,http://statistics.data.gov.uk/id/local-authority-district/22UN,Corporate Services,1661 - Other Apportionable Overheads - Corporate Support,4700 - Postage,02/01/2013,2104454-7,1.5,REDACTED PERSONAL DATA,REDACTED PERSONAL DATA
Tendring DC,http://statistics.data.gov.uk/id/local-authority-district/22UN,Corporate Services,1100 - Head of Corporate Services and Admin Service Unit,4800 - Hospitality,02/01/2013,2104454-8,3.75,REDACTED PERSONAL DATA,REDACTED PERSONAL DATA
Tendring DC,http://statistics.data.gov.uk/id/local-authority-district/22UN,Corporate Services,1100 - Head of Corporate Services and Admin Service Unit,4800 - Hospitality,02/01/2013,2104454-9,2.17,REDACTED PERSONAL DATA,REDACTED PERSONAL DATA
Tendring DC,http://statistics.data.gov.uk/id/local-authority-district/22UN,Corporate Services,7716 - Jaywick Team,4300 - Printing & Stationery,15/01/2013,2104720-1,5.97,REDACTED PERSONAL DATA,REDACTED PERSONAL DATA
Tendring DC,http://statistics.data.gov.uk/id/local-authority-district/22UN,Corporate Services,7030 - Crime and Disorder - Police Grant,4900 - Grants,22/01/2013,2105007-1,180,2101369 - The Colne Community School,Borderline Buffet
Tendring DC,http://statistics.data.gov.uk/id/local-authority-district/22UN,Corporate Services,1100 - Head of Corporate Services and Admin Service Unit,4880 - Subscriptions Paid,29/01/2013,7008801-1,35,2101451 - The Information Commissioner,RENEWAL OF ERO FOR TDC
Tendring DC,http://statistics.data.gov.uk/id/local-authority-district/22UN,Corporate Services,1880 - Office Accommodation Expenses,2100 - Building Repairs,22/01/2013,2105142-1,151,2112597 - The Security Centre,The Security Centre
Tendring DC,http://statistics.data.gov.uk/id/local-authority-district/22UN,Corporate Services,7716 - Jaywick Team,5500 - Miscellaneous Expenses,15/01/2013,2104659-1,130,2110342 - Total Carpet Cleaning,Vehicle Valeting
Tendring DC,http://statistics.data.gov.uk/id/local-authority-district/22UN,Corporate Services,1880 - Office Accommodation Expenses,2100 - Building Repairs,02/01/2013,2104324-1,112.4,2101457 - Town Council of Frinton and Walton,Town Council of F&W
Tendring DC,http://statistics.data.gov.uk/id/local-authority-district/22UN,Corporate Services,1880 - Office Accommodation Expenses,2100 - Building Repairs,29/01/2013,2105252-1,101.99,2101457 - Town Council of Frinton and Walton,Town Council F&W
Tendring DC,http://statistics.data.gov.uk/id/local-authority-district/22UN,Corporate Services,1860 - Depots General,2100 - Building Repairs,15/01/2013,2104648-1,145.5,REDACTED PERSONAL DATA,REDACTED PERSONAL DATA
Tendring DC,http://statistics.data.gov.uk/id/local-authority-district/22UN,Corporate Services,1120 - Accountancy Service Unit,4753 - Computer - Application Software,15/01/2013,2104633-1,285,REDACTED PERSONAL DATA,REDACTED PERSONAL DATA
Tendring DC,http://statistics.data.gov.uk/id/local-authority-district/22UN,Corporate Services,1880 - Office Accommodation Expenses,2100 - Building Repairs,15/01/2013,2104638-1,425.5,REDACTED PERSONAL DATA,REDACTED PERSONAL DATA
Tendring DC,http://statistics.data.gov.uk/id/local-authority-district/22UN,Corporate Services,1860 - Depots General,4446 - Bulk Bin Collection,02/01/2013,2104325-1,98.48,2101092 - Veolia ES (UK) Limited,Veolia
Tendring DC,http://statistics.data.gov.uk/id/local-authority-district/22UN,Corporate Services,1880 - Office Accommodation Expenses,4446 - Bulk Bin Collection,22/01/2013,2105143-1,210.1,2101092 - Veolia ES (UK) Limited,Veolia CT
Tendring DC,http://statistics.data.gov.uk/id/local-authority-district/22UN,Corporate Services,1880 - Office Accommodation Expenses,4446 - Bulk Bin Collection,22/01/2013,2105144-1,497.1,2101092 - Veolia ES (UK) Limited,Veolia TH
Tendring DC,http://statistics.data.gov.uk/id/local-authority-district/22UN,Corporate Services,1860 - Depots General,4446 - Bulk Bin Collection,29/01/2013,2105253-1,78.43,2101092 - Veolia ES (UK) Limited,Veolia - N Bourne
Tendring DC,http://statistics.data.gov.uk/id/local-authority-district/22UN,Corporate Services,7716 - Jaywick Team,4716 - Mobile Telephone Costs,22/01/2013,2104989-1,182.39,2101522 - Vodafone Corporate,Oct-09
Tendring DC,http://statistics.data.gov.uk/id/local-authority-district/22UN,Corporate Services,7025 - CDRP Support,4716 - Mobile Telephone Costs,22/01/2013,2104989-2,11.43,2101522 - Vodafone Corporate,Oct-09
Tendring DC,http://statistics.data.gov.uk/id/local-authority-district/22UN,Corporate Services,1040 - Regeneration Service Unit,4716 - Mobile Telephone Costs,22/01/2013,2104989-3,13.62,2101522 - Vodafone Corporate,Oct-09
Tendring DC,http://statistics.data.gov.uk/id/local-authority-district/22UN,Corporate Services,1760 - IT Direct Service Costs,4715 - Data Communication Charge,22/01/2013,2105019-1,13.21,2101532 - Vodafone Ltd,Vodafone 07786268261
Tendring DC,http://statistics.data.gov.uk/id/local-authority-district/22UN,Corporate Services,1320 - Print Unit Service Unit,4350 - Photocopier Hire,02/01/2013,1050717-1,828.31,2101517 - Xerox (UK) Ltd,4127 COPIES
Tendring DC,http://statistics.data.gov.uk/id/local-authority-district/22UN,Corporate Services,1320 - Print Unit Service Unit,4350 - Photocopier Hire,15/01/2013,2104772-1,3360.57,2101517 - Xerox (UK) Ltd,252 Basic Charges & Copies
Tendring DC,http://statistics.data.gov.uk/id/local-authority-district/22UN,Corporate Services,1150 - Other Corporate Services Mgt & Central Admin Service Unit,4300 - Printing & Stationery,22/01/2013,2105000-1,73.5,2107546 - XMA Limited,XMA HR Ink
Tendring DC,http://statistics.data.gov.uk/id/local-authority-district/22UN,Corporate Services,1320 - Print Unit Service Unit,4302 - External Print Unit Expenses,29/01/2013,2105382-1,30,2101635 - Xpressions.com,Job 488
Tendring DC,http://statistics.data.gov.uk/id/local-authority-district/22UN,Life Opportunities,6160 - Princes Theatre,4000 - Furniture,22/01/2013,2105027-1,45,2100091 - A Warrender,Piano Tuning
Tendring DC,http://statistics.data.gov.uk/id/local-authority-district/22UN,Life Opportunities,5480 - HRA - Repair & Maintenance,2073 - Smoke Alarm Service/Testing,08/01/2013,7008688-1,66.22,2111360 - Aaron Services Ltd,Gas Service and Repair North Area 12/13
Tendring DC,http://statistics.data.gov.uk/id/local-authority-district/22UN,Life Opportunities,5480 - HRA - Repair & Maintenance,2075 - Gas Service Contract Servicing/Testing (Domestic I,08/01/2013,7008688-2,1145.76,2111360 - Aaron Services Ltd,Gas Service and Repair North Area 12/13
Tendring DC,http://statistics.data.gov.uk/id/local-authority-district/22UN,Life Opportunities,5480 - HRA - Repair & Maintenance,2076 - Gas Service Contract Other Refurbishment/Repairs (,08/01/2013,7008688-3,8379.95,2111360 - Aaron Services Ltd,Gas Service and Repair North Area 12/13
Tendring DC,http://statistics.data.gov.uk/id/local-authority-district/22UN,Life Opportunities,8520 - Frinton & Walton Swimming Pool,2100 - Building Repairs,22/01/2013,2105138-1,45,2108452 - Access Automation Ltd,Frinton Pool
Tendring DC,http://statistics.data.gov.uk/id/local-authority-district/22UN,Life Opportunities,8540 - Leisure Centre Clacton,2100 - Building Repairs,22/01/2013,2105195-1,60,2108452 - Access Automation Ltd,
Tendring DC,http://statistics.data.gov.uk/id/local-authority-district/22UN,Life Opportunities,8540 - Leisure Centre Clacton,2510 - Water Services - Unmetered,02/01/2013,2104405-1,1129.25,REDACTED PERSONAL DATA,REDACTED PERSONAL DATA
Tendring DC,http://statistics.data.gov.uk/id/local-authority-district/22UN,Life Opportunities,8520 - Frinton & Walton Swimming Pool,2308 - Energy Costs - Gas (Including LPG),02/01/2013,2104421-1,629.46,REDACTED PERSONAL DATA,REDACTED PERSONAL DATA
Tendring DC,http://statistics.data.gov.uk/id/local-authority-district/22UN,Life Opportunities,6040 - Miscellaneous Seafront Activities,2500 - Water Services - Metered,08/01/2013,2104472-1,135.72,REDACTED COMMERCIAL CONFIDENTIALITY,REDACTED COMMERCIAL CONFIDENTIALITY
Tendring DC,http://statistics.data.gov.uk/id/local-authority-district/22UN,Life Opportunities,6040 - Miscellaneous Seafront Activities,2520 - Sewerage & Environmental Charges,08/01/2013,2104472-2,166.88,REDACTED COMMERCIAL CONFIDENTIALITY,REDACTED COMMERCIAL CONFIDENTIALITY
Tendring DC,http://statistics.data.gov.uk/id/local-authority-district/22UN,Life Opportunities,6040 - Miscellaneous Seafront Activities,2510 - Water Services - Unmetered,08/01/2013,2104473-1,65.81,REDACTED COMMERCIAL CONFIDENTIALITY,REDACTED COMMERCIAL CONFIDENTIALITY
Tendring DC,http://statistics.data.gov.uk/id/local-authority-district/22UN,Life Opportunities,6040 - Miscellaneous Seafront Activities,2510 - Water Services - Unmetered,08/01/2013,2104474-1,1053.98,REDACTED COMMERCIAL CONFIDENTIALITY,REDACTED COMMERCIAL CONFIDENTIALITY
Tendring DC,http://statistics.data.gov.uk/id/local-authority-district/22UN,Life Opportunities,5920 - Open Spaces,2500 - Water Services - Metered,08/01/2013,2104475-1,52.66,REDACTED COMMERCIAL CONFIDENTIALITY,REDACTED COMMERCIAL CONFIDENTIALITY
Tendring DC,http://statistics.data.gov.uk/id/local-authority-district/22UN,Life Opportunities,5920 - Open Spaces,2500 - Water Services - Metered,08/01/2013,2104476-1,144.74,REDACTED COMMERCIAL CONFIDENTIALITY,REDACTED COMMERCIAL CONFIDENTIALITY
Tendring DC,http://statistics.data.gov.uk/id/local-authority-district/22UN,Life Opportunities,5920 - Open Spaces,2500 - Water Services - Metered,08/01/2013,2104477-1,2.2,REDACTED COMMERCIAL CONFIDENTIALITY,REDACTED COMMERCIAL CONFIDENTIALITY
Tendring DC,http://statistics.data.gov.uk/id/local-authority-district/22UN,Life Opportunities,4820 - Public Conveniences,2500 - Water Services - Metered,08/01/2013,2104477-2,34.53,REDACTED COMMERCIAL CONFIDENTIALITY,REDACTED COMMERCIAL CONFIDENTIALITY
Tendring DC,http://statistics.data.gov.uk/id/local-authority-district/22UN,Life Opportunities,5920 - Open Spaces,2500 - Water Services - Metered,08/01/2013,2104478-1,13.2,REDACTED COMMERCIAL CONFIDENTIALITY,REDACTED COMMERCIAL CONFIDENTIALITY
Tendring DC,http://statistics.data.gov.uk/id/local-authority-district/22UN,Life Opportunities,5920 - Open Spaces,2500 - Water Services - Metered,08/01/2013,2104479-1,56.8,REDACTED COMMERCIAL CONFIDENTIALITY,REDACTED COMMERCIAL CONFIDENTIALITY
Tendring DC,http://statistics.data.gov.uk/id/local-authority-district/22UN,Life Opportunities,5920 - Open Spaces,2500 - Water Services - Metered,08/01/2013,2104480-1,156.25,REDACTED COMMERCIAL CONFIDENTIALITY,REDACTED COMMERCIAL CONFIDENTIALITY
Tendring DC,http://statistics.data.gov.uk/id/local-authority-district/22UN,Life Opportunities,5920 - Open Spaces,2500 - Water Services - Metered,08/01/2013,2104481-1,36.22,REDACTED COMMERCIAL CONFIDENTIALITY,REDACTED COMMERCIAL CONFIDENTIALITY
Tendring DC,http://statistics.data.gov.uk/id/local-authority-district/22UN,Life Opportunities,6040 - Miscellaneous Seafront Activities,2510 - Water Services - Unmetered,08/01/2013,2104482-1,34.57,REDACTED COMMERCIAL CONFIDENTIALITY,REDACTED COMMERCIAL CONFIDENTIALITY
Tendring DC,http://statistics.data.gov.uk/id/local-authority-district/22UN,Life Opportunities,5920 - Open Spaces,2500 - Water Services - Metered,08/01/2013,2104483-1,235.17,REDACTED COMMERCIAL CONFIDENTIALITY,REDACTED COMMERCIAL CONFIDENTIALITY
Tendring DC,http://statistics.data.gov.uk/id/local-authority-district/22UN,Life Opportunities,6040 - Miscellaneous Seafront Activities,2510 - Water Services - Unmetered,08/01/2013,2104484-1,137.37,REDACTED COMMERCIAL CONFIDENTIALITY,REDACTED COMMERCIAL CONFIDENTIALITY
Tendring DC,http://statistics.data.gov.uk/id/local-authority-district/22UN,Life Opportunities,6040 - Miscellaneous Seafront Activities,2500 - Water Services - Metered,08/01/2013,2104485-1,32.93,REDACTED COMMERCIAL CONFIDENTIALITY,REDACTED COMMERCIAL CONFIDENTIALITY
Tendring DC,http://statistics.data.gov.uk/id/local-authority-district/22UN,Life Opportunities,6040 - Miscellaneous Seafront Activities,2520 - Sewerage & Environmental Charges,08/01/2013,2104485-2,85.31,REDACTED COMMERCIAL CONFIDENTIALITY,REDACTED COMMERCIAL CONFIDENTIALITY
Tendring DC,http://statistics.data.gov.uk/id/local-authority-district/22UN,Life Opportunities,5920 - Open Spaces,2500 - Water Services - Metered,08/01/2013,2104486-1,13.2,REDACTED COMMERCIAL CONFIDENTIALITY,REDACTED COMMERCIAL CONFIDENTIALITY
Tendring DC,http://statistics.data.gov.uk/id/local-authority-district/22UN,Life Opportunities,5920 - Open Spaces,2500 - Water Services - Metered,08/01/2013,2104487-1,93.77,REDACTED COMMERCIAL CONFIDENTIALITY,REDACTED COMMERCIAL CONFIDENTIALITY
Tendring DC,http://statistics.data.gov.uk/id/local-authority-district/22UN,Life Opportunities,5920 - Open Spaces,2500 - Water Services - Metered,08/01/2013,2104488-1,13.2,REDACTED COMMERCIAL CONFIDENTIALITY,REDACTED COMMERCIAL CONFIDENTIALITY
Tendring DC,http://statistics.data.gov.uk/id/local-authority-district/22UN,Life Opportunities,5920 - Open Spaces,2500 - Water Services - Metered,08/01/2013,2104489-1,17.34,REDACTED COMMERCIAL CONFIDENTIALITY,REDACTED COMMERCIAL CONFIDENTIALITY
Tendring DC,http://statistics.data.gov.uk/id/local-authority-district/22UN,Life Opportunities,5920 - Open Spaces,2500 - Water Services - Metered,08/01/2013,2104490-1,82.2,REDACTED COMMERCIAL CONFIDENTIALITY,REDACTED COMMERCIAL CONFIDENTIALITY
Tendring DC,http://statistics.data.gov.uk/id/local-authority-district/22UN,Life Opportunities,5920 - Open Spaces,2500 - Water Services - Metered,08/01/2013,2104491-1,14.84,REDACTED COMMERCIAL CONFIDENTIALITY,REDACTED COMMERCIAL CONFIDENTIALITY
Tendring DC,http://statistics.data.gov.uk/id/local-authority-district/22UN,Life Opportunities,5920 - Open Spaces,2500 - Water Services - Metered,08/01/2013,2104492-1,516.33,REDACTED COMMERCIAL CONFIDENTIALITY,REDACTED COMMERCIAL CONFIDENTIALITY
Tendring DC,http://statistics.data.gov.uk/id/local-authority-district/22UN,Life Opportunities,5920 - Open Spaces,2500 - Water Services - Metered,08/01/2013,2104493-1,59.24,REDACTED COMMERCIAL CONFIDENTIALITY,REDACTED COMMERCIAL CONFIDENTIALITY
Tendring DC,http://statistics.data.gov.uk/id/local-authority-district/22UN,Life Opportunities,5920 - Open Spaces,2500 - Water Services - Metered,08/01/2013,2104494-1,17.34,REDACTED COMMERCIAL CONFIDENTIALITY,REDACTED COMMERCIAL CONFIDENTIALITY
Tendring DC,http://statistics.data.gov.uk/id/local-authority-district/22UN,Life Opportunities,5920 - Open Spaces,2500 - Water Services - Metered,08/01/2013,2104495-1,13.2,REDACTED COMMERCIAL CONFIDENTIALITY,REDACTED COMMERCIAL CONFIDENTIALITY
Tendring DC,http://statistics.data.gov.uk/id/local-authority-district/22UN,Life Opportunities,6040 - Miscellaneous Seafront Activities,2510 - Water Services - Unmetered,08/01/2013,2104521-1,105.28,REDACTED PERSONAL DATA,REDACTED PERSONAL DATA
Tendring DC,http://statistics.data.gov.uk/id/local-authority-district/22UN,Life Opportunities,5920 - Open Spaces,2500 - Water Services - Metered,08/01/2013,2104522-1,23.07,2112518 - Affinity Water Ltd (East Region),Drinking Troughs
Tendring DC,http://statistics.data.gov.uk/id/local-authority-district/22UN,Life Opportunities,5960 - Recreation Grounds,2500 - Water Services - Metered,08/01/2013,2104523-1,808.2,REDACTED COMMERCIAL CONFIDENTIALITY,REDACTED COMMERCIAL CONFIDENTIALITY
Tendring DC,http://statistics.data.gov.uk/id/local-authority-district/22UN,Life Opportunities,5920 - Open Spaces,2500 - Water Services - Metered,08/01/2013,2104524-1,13.2,REDACTED COMMERCIAL CONFIDENTIALITY,REDACTED COMMERCIAL CONFIDENTIALITY
Tendring DC,http://statistics.data.gov.uk/id/local-authority-district/22UN,Life Opportunities,4820 - Public Conveniences,2500 - Water Services - Metered,22/01/2013,2104900-1,78.92,2112518 - Affinity Water Ltd (East Region),S/Pipes & New Toilets
Tendring DC,http://statistics.data.gov.uk/id/local-authority-district/22UN,Life Opportunities,5960 - Recreation Grounds,2500 - Water Services - Metered,22/01/2013,2104900-2,2.2,2112518 - Affinity Water Ltd (East Region),S/Pipes & New Toilets
Tendring DC,http://statistics.data.gov.uk/id/local-authority-district/22UN,Life Opportunities,8510 - Dovercourt Swimming Pool & All Weather Facilities,2510 - Water Services - Unmetered,22/01/2013,2105226-1,461.55,2112518 - Affinity Water Ltd (East Region),Dovercourt Pool
Tendring DC,http://statistics.data.gov.uk/id/local-authority-district/22UN,Life Opportunities,8520 - Frinton & Walton Swimming Pool,2510 - Water Services - Unmetered,22/01/2013,2105227-1,568.63,2112518 - Affinity Water Ltd (East Region),Frinton Pool
Tendring DC,http://statistics.data.gov.uk/id/local-authority-district/22UN,Life Opportunities,8540 - Leisure Centre Clacton,2510 - Water Services - Unmetered,29/01/2013,2105340-1,1115.19,REDACTED PERSONAL DATA,REDACTED PERSONAL DATA
Tendring DC,http://statistics.data.gov.uk/id/local-authority-district/22UN,Life Opportunities,5920 - Open Spaces,2500 - Water Services - Metered,15/01/2013,7008725-1,14.66,2112518 - Affinity Water Ltd (East Region),Martello Tower Gardens
Tendring DC,http://statistics.data.gov.uk/id/local-authority-district/22UN,Life Opportunities,5920 - Open Spaces,2500 - Water Services - Metered,15/01/2013,7008726-1,6.1,2112518 - Affinity Water Ltd (East Region),Martello Tower Gardens
Tendring DC,http://statistics.data.gov.uk/id/local-authority-district/22UN,Life Opportunities,4965 - Local Housing Allowance,1700 - Training - Courses,22/01/2013,2105134-1,1730,2106864 - Airey Consultancy Services Ltd,Pan Essex CT Support 50%
Tendring DC,http://statistics.data.gov.uk/id/local-authority-district/22UN,Life Opportunities,H715 - Measures To Combat Condensation,C200 - Main Contractor,22/01/2013,2105087-1,808.7,2110902 - Airtech Environmental Systems,Pound Farm Drive
Tendring DC,http://statistics.data.gov.uk/id/local-authority-district/22UN,Life Opportunities,H715 - Measures To Combat Condensation,C200 - Main Contractor,22/01/2013,2105088-1,490.1,REDACTED PERSONAL DATA,REDACTED PERSONAL DATA
Tendring DC,http://statistics.data.gov.uk/id/local-authority-district/22UN,Life Opportunities,5360 - HRA - Sheltered Units,2702 - Window Cleaning,29/01/2013,2105299-1,1350,REDACTED PERSONAL DATA,REDACTED PERSONAL DATA
Tendring DC,http://statistics.data.gov.uk/id/local-authority-district/22UN,Life Opportunities,5360 - HRA - Sheltered Units,4601 - Hired services - Cleaning,29/01/2013,2105300-1,200,REDACTED PERSONAL DATA,REDACTED PERSONAL DATA
Tendring DC,http://statistics.data.gov.uk/id/local-authority-district/22UN,Life Opportunities,8540 - Leisure Centre Clacton,2100 - Building Repairs,29/01/2013,2105349-1,150,2110677 - Alders TV,
Tendring DC,http://statistics.data.gov.uk/id/local-authority-district/22UN,Life Opportunities,8510 - Dovercourt Swimming Pool & All Weather Facilities,2100 - Building Repairs,29/01/2013,2105357-1,82,2110677 - Alders TV,Dovercourt Pool
Tendring DC,http://statistics.data.gov.uk/id/local-authority-district/22UN,Life Opportunities,6740 - Careline,3060 - Running Costs - Diesel,15/01/2013,2104613-1,633.89,REDACTED PERSONAL DATA,REDACTED PERSONAL DATA
Tendring DC,http://statistics.data.gov.uk/id/local-authority-district/22UN,Life Opportunities,5820 - Harwich Sports Centre,2100 - Building Repairs,08/01/2013,2104546-1,262.5,2105419 - Ambi-Rad Ltd,Repair to Sq Crt Heating
Tendring DC,http://statistics.data.gov.uk/id/local-authority-district/22UN,Life Opportunities,5820 - Harwich Sports Centre,2100 - Building Repairs,15/01/2013,2104765-1,388.72,2105419 - Ambi-Rad Ltd,New Gas Valve
Tendring DC,http://statistics.data.gov.uk/id/local-authority-district/22UN,Life Opportunities,8540 - Leisure Centre Clacton,4880 - Subscriptions Paid,22/01/2013,2104936-1,64,REDACTED PERSONAL DATA,REDACTED PERSONAL DATA
Tendring DC,http://statistics.data.gov.uk/id/local-authority-district/22UN,Life Opportunities,"1580 - Benefits, Revenues and Customer Contact SU",4462 - Legal Fees incl. Bailiffs re debt recovery,22/01/2013,2105162-1,51.49,2111631 - Anglia Courier Express (East Anglia) Ltd,Courier Services 3/1/13
Tendring DC,http://statistics.data.gov.uk/id/local-authority-district/22UN,Life Opportunities,8510 - Dovercourt Swimming Pool & All Weather Facilities,2520 - Sewerage & Environmental Charges,22/01/2013,2105224-1,2731.95,2112315 - Anglian Water Business,Dovercourt Pool
Tendring DC,http://statistics.data.gov.uk/id/local-authority-district/22UN,Life Opportunities,8540 - Leisure Centre Clacton,2520 - Sewerage & Environmental Charges,29/01/2013,2105341-1,1882.95,REDACTED PERSONAL DATA,REDACTED PERSONAL DATA
Tendring DC,http://statistics.data.gov.uk/id/local-authority-district/22UN,Life Opportunities,5240 - HRA - Managing Tenancies,5242 - Tenant Relations,15/01/2013,7008704-1,10,REDACTED PERSONAL DATA,REDACTED PERSONAL DATA
Tendring DC,http://statistics.data.gov.uk/id/local-authority-district/22UN,Life Opportunities,5240 - HRA - Managing Tenancies,5242 - Tenant Relations,29/01/2013,7008798-1,10,REDACTED PERSONAL DATA,REDACTED PERSONAL DATA
Tendring DC,http://statistics.data.gov.uk/id/local-authority-district/22UN,Life Opportunities,6740 - Careline,5160 - Advertising,02/01/2013,2104378-1,200,2102337 - Archant Regional Ltd,Archant - Coastal Life
Tendring DC,http://statistics.data.gov.uk/id/local-authority-district/22UN,Life Opportunities,6740 - Careline,5160 - Advertising,15/01/2013,2104785-1,60,2102337 - Archant Regional Ltd,Recorder extended media - Dec
Tendring DC,http://statistics.data.gov.uk/id/local-authority-district/22UN,Life Opportunities,7520 - Tourism Publicity Marketing Promotion,5160 - Advertising,15/01/2013,7008728-1,178.25,2102337 - Archant Regional Ltd,Visit Essex
Tendring DC,http://statistics.data.gov.uk/id/local-authority-district/22UN,Life Opportunities,5240 - HRA - Managing Tenancies,4312 - Tenancy Stationery,29/01/2013,2105311-1,51.24,REDACTED COMMERCIAL CONFIDENTIALITY,REDACTED COMMERCIAL CONFIDENTIALITY
Tendring DC,http://statistics.data.gov.uk/id/local-authority-district/22UN,Life Opportunities,5480 - HRA - Repair & Maintenance,2088 - Disabled Adaptations,22/01/2013,1050724-1,120,REDACTED PERSONAL DATA,REDACTED PERSONAL DATA
Tendring DC,http://statistics.data.gov.uk/id/local-authority-district/22UN,Life Opportunities,5480 - HRA - Repair & Maintenance,2088 - Disabled Adaptations,22/01/2013,1050724-2,619,REDACTED PERSONAL DATA,REDACTED PERSONAL DATA
Tendring DC,http://statistics.data.gov.uk/id/local-authority-district/22UN,Life Opportunities,H860 - Disabled Adaptations,C200 - Main Contractor,22/01/2013,1050725-1,1150,REDACTED PERSONAL DATA,REDACTED PERSONAL DATA
Tendring DC,http://statistics.data.gov.uk/id/local-authority-district/22UN,Life Opportunities,H860 - Disabled Adaptations,C200 - Main Contractor,22/01/2013,1050725-2,4224,REDACTED PERSONAL DATA,REDACTED PERSONAL DATA
Tendring DC,http://statistics.data.gov.uk/id/local-authority-district/22UN,Life Opportunities,5480 - HRA - Repair & Maintenance,2088 - Disabled Adaptations,02/01/2013,2104238-1,70,REDACTED COMMERCIAL CONFIDENTIALITY,REDACTED COMMERCIAL CONFIDENTIALITY
Tendring DC,http://statistics.data.gov.uk/id/local-authority-district/22UN,Life Opportunities,5480 - HRA - Repair & Maintenance,2088 - Disabled Adaptations,02/01/2013,2104238-2,280,REDACTED COMMERCIAL CONFIDENTIALITY,REDACTED COMMERCIAL CONFIDENTIALITY
Tendring DC,http://statistics.data.gov.uk/id/local-authority-district/22UN,Life Opportunities,H860 - Disabled Adaptations,C200 - Main Contractor,02/01/2013,2104239-1,1150,REDACTED COMMERCIAL CONFIDENTIALITY,REDACTED COMMERCIAL CONFIDENTIALITY
Tendring DC,http://statistics.data.gov.uk/id/local-authority-district/22UN,Life Opportunities,H860 - Disabled Adaptations,C200 - Main Contractor,02/01/2013,2104239-2,4507,REDACTED COMMERCIAL CONFIDENTIALITY,REDACTED COMMERCIAL CONFIDENTIALITY
Tendring DC,http://statistics.data.gov.uk/id/local-authority-district/22UN,Life Opportunities,H860 - Disabled Adaptations,C200 - Main Contractor,15/01/2013,2104824-1,4025,REDACTED PERSONAL DATA,REDACTED PERSONAL DATA
Tendring DC,http://statistics.data.gov.uk/id/local-authority-district/22UN,Life Opportunities,H860 - Disabled Adaptations,C200 - Main Contractor,15/01/2013,2104824-2,1150,REDACTED PERSONAL DATA,REDACTED PERSONAL DATA
Tendring DC,http://statistics.data.gov.uk/id/local-authority-district/22UN,Life Opportunities,8540 - Leisure Centre Clacton,5300 - Resaleable Items,15/01/2013,2104835-1,195.71,2100088 - ASA Merchandising Ltd,
Tendring DC,http://statistics.data.gov.uk/id/local-authority-district/22UN,Life Opportunities,8520 - Frinton & Walton Swimming Pool,5300 - Resaleable Items,22/01/2013,2105005-1,84.6,2100088 - ASA Merchandising Ltd,Frinton & Walton Pool
Tendring DC,http://statistics.data.gov.uk/id/local-authority-district/22UN,Life Opportunities,5220 - HRA - Policy & Management,5253 - HRA Health & Safety Expenses,29/01/2013,1050797-1,60,REDACTED COMMERCIAL CONFIDENTIALITY,REDACTED COMMERCIAL CONFIDENTIALITY
Tendring DC,http://statistics.data.gov.uk/id/local-authority-district/22UN,Life Opportunities,5860 - Manningtree Sports Centre,4597 - Hired Services - Payments to Contractors,15/01/2013,2104760-1,180,2110101 - ASM Ltd,Football Coaching for Dec
Tendring DC,http://statistics.data.gov.uk/id/local-authority-district/22UN,Life Opportunities,5480 - HRA - Repair & Maintenance,2012 - Responsive Maintenance - Clearance And Cleaning,29/01/2013,1050778-1,60,REDACTED PERSONAL DATA,REDACTED PERSONAL DATA
Tendring DC,http://statistics.data.gov.uk/id/local-authority-district/22UN,Life Opportunities,5480 - HRA - Repair & Maintenance,2012 - Responsive Maintenance - Clearance And Cleaning,29/01/2013,1050779-1,40,REDACTED PERSONAL DATA,REDACTED PERSONAL DATA
Tendring DC,http://statistics.data.gov.uk/id/local-authority-district/22UN,Life Opportunities,5480 - HRA - Repair & Maintenance,2012 - Responsive Maintenance - Clearance And Cleaning,29/01/2013,1050780-1,80,REDACTED PERSONAL DATA,REDACTED PERSONAL DATA
Tendring DC,http://statistics.data.gov.uk/id/local-authority-district/22UN,Life Opportunities,5480 - HRA - Repair & Maintenance,2012 - Responsive Maintenance - Clearance And Cleaning,29/01/2013,1050781-1,30,REDACTED PERSONAL DATA,REDACTED PERSONAL DATA
Tendring DC,http://statistics.data.gov.uk/id/local-authority-district/22UN,Life Opportunities,5480 - HRA - Repair & Maintenance,2012 - Responsive Maintenance - Clearance And Cleaning,29/01/2013,1050782-1,50,REDACTED PERSONAL DATA,REDACTED PERSONAL DATA
Tendring DC,http://statistics.data.gov.uk/id/local-authority-district/22UN,Life Opportunities,5480 - HRA - Repair & Maintenance,2012 - Responsive Maintenance - Clearance And Cleaning,29/01/2013,1050783-1,20,REDACTED PERSONAL DATA,REDACTED PERSONAL DATA
Tendring DC,http://statistics.data.gov.uk/id/local-authority-district/22UN,Life Opportunities,5480 - HRA - Repair & Maintenance,2012 - Responsive Maintenance - Clearance And Cleaning,29/01/2013,1050784-1,40,REDACTED PERSONAL DATA,REDACTED PERSONAL DATA
Tendring DC,http://statistics.data.gov.uk/id/local-authority-district/22UN,Life Opportunities,5480 - HRA - Repair & Maintenance,2012 - Responsive Maintenance - Clearance And Cleaning,29/01/2013,1050785-1,20,REDACTED PERSONAL DATA,REDACTED PERSONAL DATA
Tendring DC,http://statistics.data.gov.uk/id/local-authority-district/22UN,Life Opportunities,5480 - HRA - Repair & Maintenance,2012 - Responsive Maintenance - Clearance And Cleaning,02/01/2013,2104218-1,100,REDACTED PERSONAL DATA,REDACTED PERSONAL DATA
Tendring DC,http://statistics.data.gov.uk/id/local-authority-district/22UN,Life Opportunities,5480 - HRA - Repair & Maintenance,2012 - Responsive Maintenance - Clearance And Cleaning,02/01/2013,2104219-1,60,REDACTED PERSONAL DATA,REDACTED PERSONAL DATA
Tendring DC,http://statistics.data.gov.uk/id/local-authority-district/22UN,Life Opportunities,5480 - HRA - Repair & Maintenance,2012 - Responsive Maintenance - Clearance And Cleaning,02/01/2013,2104220-1,50,REDACTED PERSONAL DATA,REDACTED PERSONAL DATA
Tendring DC,http://statistics.data.gov.uk/id/local-authority-district/22UN,Life Opportunities,5480 - HRA - Repair & Maintenance,2012 - Responsive Maintenance - Clearance And Cleaning,02/01/2013,2104221-1,80,REDACTED PERSONAL DATA,REDACTED PERSONAL DATA
Tendring DC,http://statistics.data.gov.uk/id/local-authority-district/22UN,Life Opportunities,5480 - HRA - Repair & Maintenance,2012 - Responsive Maintenance - Clearance And Cleaning,02/01/2013,2104222-1,60,REDACTED PERSONAL DATA,REDACTED PERSONAL DATA
Tendring DC,http://statistics.data.gov.uk/id/local-authority-district/22UN,Life Opportunities,5480 - HRA - Repair & Maintenance,2012 - Responsive Maintenance - Clearance And Cleaning,02/01/2013,2104293-1,180,REDACTED PERSONAL DATA,REDACTED PERSONAL DATA
Tendring DC,http://statistics.data.gov.uk/id/local-authority-district/22UN,Life Opportunities,5480 - HRA - Repair & Maintenance,2012 - Responsive Maintenance - Clearance And Cleaning,02/01/2013,2104294-1,80,REDACTED PERSONAL DATA,REDACTED PERSONAL DATA
Tendring DC,http://statistics.data.gov.uk/id/local-authority-district/22UN,Life Opportunities,5480 - HRA - Repair & Maintenance,2012 - Responsive Maintenance - Clearance And Cleaning,02/01/2013,2104295-1,60,REDACTED PERSONAL DATA,REDACTED PERSONAL DATA
Tendring DC,http://statistics.data.gov.uk/id/local-authority-district/22UN,Life Opportunities,5480 - HRA - Repair & Maintenance,2012 - Responsive Maintenance - Clearance And Cleaning,15/01/2013,2104630-1,50,REDACTED PERSONAL DATA,REDACTED PERSONAL DATA
Tendring DC,http://statistics.data.gov.uk/id/local-authority-district/22UN,Life Opportunities,5480 - HRA - Repair & Maintenance,2012 - Responsive Maintenance - Clearance And Cleaning,22/01/2013,2105086-1,100,2107707 - ASP Cleaning Ltd,Sayers House
Tendring DC,http://statistics.data.gov.uk/id/local-authority-district/22UN,Life Opportunities,8520 - Frinton & Walton Swimming Pool,4000 - Furniture,29/01/2013,7008829-1,8.97,2103481 - AtoZ Supplies,FRINTON POOL
Tendring DC,http://statistics.data.gov.uk/id/local-authority-district/22UN,Life Opportunities,5880 - Management Of Sport & Leisure Facilities,2100 - Building Repairs,15/01/2013,2104624-1,1243.8,2100019 - Audience Systems Ltd,
Tendring DC,http://statistics.data.gov.uk/id/local-authority-district/22UN,Life Opportunities,5880 - Management Of Sport & Leisure Facilities,2100 - Building Repairs,15/01/2013,2104625-1,264.85,2100019 - Audience Systems Ltd,
Tendring DC,http://statistics.data.gov.uk/id/local-authority-district/22UN,Life Opportunities,8520 - Frinton & Walton Swimming Pool,4400 - Maintenance Under Service Agreements,22/01/2013,2105044-1,81.07,REDACTED PERSONAL DATA,REDACTED PERSONAL DATA
Tendring DC,http://statistics.data.gov.uk/id/local-authority-district/22UN,Life Opportunities,6740 - Careline,3050 - Vehicle Repairs,15/01/2013,2104784-1,165.95,2100059 - Autoglass Limited,Glass Repair x 3
Tendring DC,http://statistics.data.gov.uk/id/local-authority-district/22UN,Life Opportunities,8540 - Leisure Centre Clacton,2100 - Building Repairs,29/01/2013,2105342-1,300,REDACTED PERSONAL DATA,REDACTED PERSONAL DATA
Tendring DC,http://statistics.data.gov.uk/id/local-authority-district/22UN,Life Opportunities,8540 - Leisure Centre Clacton,4200 - Clothing & Uniforms,15/01/2013,2104836-1,38.97,2109068 - Ballantyne Edwards Ltd,
Tendring DC,http://statistics.data.gov.uk/id/local-authority-district/22UN,Life Opportunities,8540 - Leisure Centre Clacton,4200 - Clothing & Uniforms,15/01/2013,2104836-2,16.79,2109068 - Ballantyne Edwards Ltd,
Tendring DC,http://statistics.data.gov.uk/id/local-authority-district/22UN,Life Opportunities,5240 - HRA - Managing Tenancies,4312 - Tenancy Stationery,02/01/2013,2104278-1,118.1,REDACTED PERSONAL DATA,REDACTED PERSONAL DATA
Tendring DC,http://statistics.data.gov.uk/id/local-authority-district/22UN,Life Opportunities,5480 - HRA - Repair & Maintenance,4312 - Tenancy Stationery,08/01/2013,2104566-1,14.61,REDACTED COMMERCIAL CONFIDENTIALITY,REDACTED COMMERCIAL CONFIDENTIALITY
Tendring DC,http://statistics.data.gov.uk/id/local-authority-district/22UN,Life Opportunities,5240 - HRA - Managing Tenancies,4312 - Tenancy Stationery,08/01/2013,2104567-1,69.78,REDACTED COMMERCIAL CONFIDENTIALITY,REDACTED COMMERCIAL CONFIDENTIALITY
Tendring DC,http://statistics.data.gov.uk/id/local-authority-district/22UN,Life Opportunities,5240 - HRA - Managing Tenancies,4312 - Tenancy Stationery,08/01/2013,2104568-1,6.34,REDACTED COMMERCIAL CONFIDENTIALITY,REDACTED COMMERCIAL CONFIDENTIALITY
Tendring DC,http://statistics.data.gov.uk/id/local-authority-district/22UN,Life Opportunities,1565 - Careline / CCTV Service Unit,4300 - Printing & Stationery,15/01/2013,2104612-1,48.73,REDACTED PERSONAL DATA,REDACTED PERSONAL DATA
Tendring DC,http://statistics.data.gov.uk/id/local-authority-district/22UN,Life Opportunities,5820 - Harwich Sports Centre,4300 - Printing & Stationery,22/01/2013,2105001-1,41.06,2100111 - Banner Business Supplies Ltd,Stationery
Tendring DC,http://statistics.data.gov.uk/id/local-authority-district/22UN,Life Opportunities,5820 - Harwich Sports Centre,4300 - Printing & Stationery,22/01/2013,2105002-1,24.34,2100111 - Banner Business Supplies Ltd,Stationery
Tendring DC,http://statistics.data.gov.uk/id/local-authority-district/22UN,Life Opportunities,5240 - HRA - Managing Tenancies,4312 - Tenancy Stationery,22/01/2013,2105039-1,163.97,REDACTED PERSONAL DATA,REDACTED PERSONAL DATA
Tendring DC,http://statistics.data.gov.uk/id/local-authority-district/22UN,Life Opportunities,1050 - Leisure Service Unit,4300 - Printing & Stationery,22/01/2013,2105039-2,24.74,REDACTED PERSONAL DATA,REDACTED PERSONAL DATA
Tendring DC,http://statistics.data.gov.uk/id/local-authority-district/22UN,Life Opportunities,5240 - HRA - Managing Tenancies,4312 - Tenancy Stationery,29/01/2013,2105308-1,43.02,REDACTED COMMERCIAL CONFIDENTIALITY,REDACTED COMMERCIAL CONFIDENTIALITY
Tendring DC,http://statistics.data.gov.uk/id/local-authority-district/22UN,Life Opportunities,5860 - Manningtree Sports Centre,5196 - Credit Card Charges,15/01/2013,2104698-1,16.95,2100141 - Barclaycard Merchant Services,PDQ Invoice for December
Tendring DC,http://statistics.data.gov.uk/id/local-authority-district/22UN,Life Opportunities,5860 - Manningtree Sports Centre,5196 - Credit Card Charges,15/01/2013,2104698-2,51.55,2100141 - Barclaycard Merchant Services,PDQ Invoice for December
Tendring DC,http://statistics.data.gov.uk/id/local-authority-district/22UN,Life Opportunities,5820 - Harwich Sports Centre,5196 - Credit Card Charges,18/01/2013,2105166-1,16.95,2100141 - Barclaycard Merchant Services,PDQ Barclaycard
Tendring DC,http://statistics.data.gov.uk/id/local-authority-district/22UN,Life Opportunities,5820 - Harwich Sports Centre,5196 - Credit Card Charges,18/01/2013,2105166-2,22.97,2100141 - Barclaycard Merchant Services,PDQ Barclaycard
Tendring DC,http://statistics.data.gov.uk/id/local-authority-district/22UN,Life Opportunities,8520 - Frinton & Walton Swimming Pool,5196 - Credit Card Charges,18/01/2013,2105167-1,87,2100141 - Barclaycard Merchant Services,Frinton Pool
Tendring DC,http://statistics.data.gov.uk/id/local-authority-district/22UN,Life Opportunities,8520 - Frinton & Walton Swimming Pool,5196 - Credit Card Charges,18/01/2013,2105167-2,17.57,2100141 - Barclaycard Merchant Services,Frinton Pool
Tendring DC,http://statistics.data.gov.uk/id/local-authority-district/22UN,Life Opportunities,8520 - Frinton & Walton Swimming Pool,5196 - Credit Card Charges,18/01/2013,2105167-3,16.95,2100141 - Barclaycard Merchant Services,Frinton Pool
Tendring DC,http://statistics.data.gov.uk/id/local-authority-district/22UN,Life Opportunities,8540 - Leisure Centre Clacton,5196 - Credit Card Charges,18/01/2013,2105168-1,33.9,2100141 - Barclaycard Merchant Services,December
Tendring DC,http://statistics.data.gov.uk/id/local-authority-district/22UN,Life Opportunities,8540 - Leisure Centre Clacton,5196 - Credit Card Charges,18/01/2013,2105168-2,338,2100141 - Barclaycard Merchant Services,December
Tendring DC,http://statistics.data.gov.uk/id/local-authority-district/22UN,Life Opportunities,8510 - Dovercourt Swimming Pool & All Weather Facilities,5196 - Credit Card Charges,30/01/2013,2105360-1,88.24,2100141 - Barclaycard Merchant Services,Dovercourt Pool
Tendring DC,http://statistics.data.gov.uk/id/local-authority-district/22UN,Life Opportunities,8510 - Dovercourt Swimming Pool & All Weather Facilities,5196 - Credit Card Charges,30/01/2013,2105360-2,16.95,2100141 - Barclaycard Merchant Services,Dovercourt Pool
Tendring DC,http://statistics.data.gov.uk/id/local-authority-district/22UN,Life Opportunities,8540 - Leisure Centre Clacton,4300 - Printing & Stationery,02/01/2013,2104406-1,329.96,REDACTED PERSONAL DATA,REDACTED PERSONAL DATA
Tendring DC,http://statistics.data.gov.uk/id/local-authority-district/22UN,Life Opportunities,8540 - Leisure Centre Clacton,2300 - Energy Costs - Fuel Oil,02/01/2013,2104411-1,1723.75,REDACTED PERSONAL DATA,REDACTED PERSONAL DATA
Tendring DC,http://statistics.data.gov.uk/id/local-authority-district/22UN,Life Opportunities,8540 - Leisure Centre Clacton,2300 - Energy Costs - Fuel Oil,29/01/2013,2105347-1,2660,2112681 - BIRLEM Ltd,
Tendring DC,http://statistics.data.gov.uk/id/local-authority-district/22UN,Life Opportunities,8540 - Leisure Centre Clacton,2300 - Energy Costs - Fuel Oil,29/01/2013,2105348-1,2423.5,2112681 - BIRLEM Ltd,
Tendring DC,http://statistics.data.gov.uk/id/local-authority-district/22UN,Life Opportunities,8540 - Leisure Centre Clacton,2300 - Energy Costs - Fuel Oil,15/01/2013,7008782-1,2678,2112681 - BIRLEM Ltd,
Tendring DC,http://statistics.data.gov.uk/id/local-authority-district/22UN,Life Opportunities,8540 - Leisure Centre Clacton,2300 - Energy Costs - Fuel Oil,15/01/2013,7008783-1,2399.95,2112681 - BIRLEM Ltd,
Tendring DC,http://statistics.data.gov.uk/id/local-authority-district/22UN,Life Opportunities,8540 - Leisure Centre Clacton,2300 - Energy Costs - Fuel Oil,15/01/2013,7008784-1,2412.88,2112681 - BIRLEM Ltd,
Tendring DC,http://statistics.data.gov.uk/id/local-authority-district/22UN,Life Opportunities,5140 - Homelessness,4683 - Other Homelessness Expenses,02/01/2013,2104449-1,344.3,REDACTED PERSONAL DATA,REDACTED PERSONAL DATA
Tendring DC,http://statistics.data.gov.uk/id/local-authority-district/22UN,Life Opportunities,6160 - Princes Theatre,4080 - Materials & Consumables,08/01/2013,2104525-1,650.6,2111425 - BPS Ltd,Thermal Tickets
Tendring DC,http://statistics.data.gov.uk/id/local-authority-district/22UN,Life Opportunities,5240 - HRA - Managing Tenancies,5242 - Tenant Relations,15/01/2013,7008708-1,10,REDACTED PERSONAL DATA,REDACTED PERSONAL DATA
Tendring DC,http://statistics.data.gov.uk/id/local-authority-district/22UN,Life Opportunities,5480 - HRA - Repair & Maintenance,2008 - Responsive Maintenance - Floor Wall And Ceiling Fi,02/01/2013,2104299-1,495,REDACTED PERSONAL DATA,REDACTED PERSONAL DATA
Tendring DC,http://statistics.data.gov.uk/id/local-authority-district/22UN,Life Opportunities,5240 - HRA - Managing Tenancies,5242 - Tenant Relations,08/01/2013,2104562-1,22,REDACTED PERSONAL DATA,REDACTED PERSONAL DATA
Tendring DC,http://statistics.data.gov.uk/id/local-authority-district/22UN,Life Opportunities,5960 - Recreation Grounds,2304 - Energy Costs - Electricity,22/01/2013,2104899-1,20.09,2100118 - British Gas Business,Old Road Changing Rooms
Tendring DC,http://statistics.data.gov.uk/id/local-authority-district/22UN,Life Opportunities,6740 - Careline,2304 - Energy Costs - Electricity,02/01/2013,2104282-1,116.81,2100197 - British Gas Trading Ltd,British Gas - Dec
Tendring DC,http://statistics.data.gov.uk/id/local-authority-district/22UN,Life Opportunities,5340 - HRA - Communal Central Heating,2304 - Energy Costs - Electricity,02/01/2013,2104283-1,1074.02,2100197 - British Gas Trading Ltd,Comm Elec Nov 12
Tendring DC,http://statistics.data.gov.uk/id/local-authority-district/22UN,Life Opportunities,5360 - HRA - Sheltered Units,2304 - Energy Costs - Electricity,02/01/2013,2104283-2,71.69,2100197 - British Gas Trading Ltd,Comm Elec Nov 12
Tendring DC,http://statistics.data.gov.uk/id/local-authority-district/22UN,Life Opportunities,5440 - HRA - Communal Electricity,2304 - Energy Costs - Electricity,02/01/2013,2104283-3,8175.7,2100197 - British Gas Trading Ltd,Comm Elec Nov 12
Tendring DC,http://statistics.data.gov.uk/id/local-authority-district/22UN,Life Opportunities,5440 - HRA - Communal Electricity,2304 - Energy Costs - Electricity,02/01/2013,2104283-4,1085.65,2100197 - British Gas Trading Ltd,Comm Elec Nov 12
Tendring DC,http://statistics.data.gov.uk/id/local-authority-district/22UN,Life Opportunities,5440 - HRA - Communal Electricity,2304 - Energy Costs - Electricity,02/01/2013,2104283-5,-682.75,2100197 - British Gas Trading Ltd,Comm Elec Nov 12
Tendring DC,http://statistics.data.gov.uk/id/local-authority-district/22UN,Life Opportunities,8520 - Frinton & Walton Swimming Pool,2304 - Energy Costs - Electricity,02/01/2013,2104308-1,202.73,2100197 - British Gas Trading Ltd,Frinton Pool
Tendring DC,http://statistics.data.gov.uk/id/local-authority-district/22UN,Life Opportunities,5960 - Recreation Grounds,2304 - Energy Costs - Electricity,08/01/2013,2104569-1,591.4,2100197 - British Gas Trading Ltd,Electric December
Tendring DC,http://statistics.data.gov.uk/id/local-authority-district/22UN,Life Opportunities,6080 - Shops & Kiosks,2304 - Energy Costs - Electricity,08/01/2013,2104569-2,83.74,2100197 - British Gas Trading Ltd,Electric December
Tendring DC,http://statistics.data.gov.uk/id/local-authority-district/22UN,Life Opportunities,1915 - Low Road Depot,2304 - Energy Costs - Electricity,08/01/2013,2104569-3,85.32,2100197 - British Gas Trading Ltd,Electric December
Tendring DC,http://statistics.data.gov.uk/id/local-authority-district/22UN,Life Opportunities,6040 - Miscellaneous Seafront Activities,2304 - Energy Costs - Electricity,08/01/2013,2104569-4,127.2,2100197 - British Gas Trading Ltd,Electric December
Tendring DC,http://statistics.data.gov.uk/id/local-authority-district/22UN,Life Opportunities,7600 - Tourist Information Centres,2304 - Energy Costs - Electricity,08/01/2013,2104569-5,25.72,2100197 - British Gas Trading Ltd,Electric December
Tendring DC,http://statistics.data.gov.uk/id/local-authority-district/22UN,Life Opportunities,6000 - Beach Hut Sites,2304 - Energy Costs - Electricity,08/01/2013,2104569-6,112.56,2100197 - British Gas Trading Ltd,Electric December
Tendring DC,http://statistics.data.gov.uk/id/local-authority-district/22UN,Life Opportunities,5820 - Harwich Sports Centre,2304 - Energy Costs - Electricity,08/01/2013,2104569-7,566.4,2100197 - British Gas Trading Ltd,Electric December
Tendring DC,http://statistics.data.gov.uk/id/local-authority-district/22UN,Life Opportunities,5960 - Recreation Grounds,2304 - Energy Costs - Electricity,08/01/2013,2104569-8,110.41,2100197 - British Gas Trading Ltd,Electric December
Tendring DC,http://statistics.data.gov.uk/id/local-authority-district/22UN,Life Opportunities,5960 - Recreation Grounds,2304 - Energy Costs - Electricity,08/01/2013,2104569-9,-193.79,2100197 - British Gas Trading Ltd,Electric December
Tendring DC,http://statistics.data.gov.uk/id/local-authority-district/22UN,Life Opportunities,6740 - Careline,2304 - Energy Costs - Electricity,29/01/2013,2105313-1,53.57,2100197 - British Gas Trading Ltd,British Gas - Jan
Tendring DC,http://statistics.data.gov.uk/id/local-authority-district/22UN,Life Opportunities,5340 - HRA - Communal Central Heating,2304 - Energy Costs - Electricity,29/01/2013,2105315-1,2325.93,2100197 - British Gas Trading Ltd,Com Elec Dec 12
Tendring DC,http://statistics.data.gov.uk/id/local-authority-district/22UN,Life Opportunities,5360 - HRA - Sheltered Units,2304 - Energy Costs - Electricity,29/01/2013,2105315-2,1110.62,2100197 - British Gas Trading Ltd,Com Elec Dec 12
Tendring DC,http://statistics.data.gov.uk/id/local-authority-district/22UN,Life Opportunities,5440 - HRA - Communal Electricity,2304 - Energy Costs - Electricity,29/01/2013,2105315-3,8250.43,2100197 - British Gas Trading Ltd,Com Elec Dec 12
Tendring DC,http://statistics.data.gov.uk/id/local-authority-district/22UN,Life Opportunities,5440 - HRA - Communal Electricity,2304 - Energy Costs - Electricity,29/01/2013,2105315-4,822.89,2100197 - British Gas Trading Ltd,Com Elec Dec 12
Tendring DC,http://statistics.data.gov.uk/id/local-authority-district/22UN,Life Opportunities,5440 - HRA - Communal Electricity,2304 - Energy Costs - Electricity,29/01/2013,2105315-5,-1576.98,2100197 - British Gas Trading Ltd,Com Elec Dec 12
Tendring DC,http://statistics.data.gov.uk/id/local-authority-district/22UN,Life Opportunities,5360 - HRA - Sheltered Units,2304 - Energy Costs - Electricity,29/01/2013,2105315-6,-879.85,2100197 - British Gas Trading Ltd,Com Elec Dec 12
Tendring DC,http://statistics.data.gov.uk/id/local-authority-district/22UN,Life Opportunities,6080 - Shops & Kiosks,2304 - Energy Costs - Electricity,29/01/2013,2105317-1,121.61,2100197 - British Gas Trading Ltd,December Electric
Tendring DC,http://statistics.data.gov.uk/id/local-authority-district/22UN,Life Opportunities,6080 - Shops & Kiosks,2304 - Energy Costs - Electricity,29/01/2013,2105317-10,-29.95,2100197 - British Gas Trading Ltd,December Electric
Tendring DC,http://statistics.data.gov.uk/id/local-authority-district/22UN,Life Opportunities,5960 - Recreation Grounds,2304 - Energy Costs - Electricity,29/01/2013,2105317-2,439.07,2100197 - British Gas Trading Ltd,December Electric
Tendring DC,http://statistics.data.gov.uk/id/local-authority-district/22UN,Life Opportunities,7600 - Tourist Information Centres,2304 - Energy Costs - Electricity,29/01/2013,2105317-3,13.14,2100197 - British Gas Trading Ltd,December Electric
Tendring DC,http://statistics.data.gov.uk/id/local-authority-district/22UN,Life Opportunities,6040 - Miscellaneous Seafront Activities,2304 - Energy Costs - Electricity,29/01/2013,2105317-4,115.09,2100197 - British Gas Trading Ltd,December Electric
Tendring DC,http://statistics.data.gov.uk/id/local-authority-district/22UN,Life Opportunities,6000 - Beach Hut Sites,2304 - Energy Costs - Electricity,29/01/2013,2105317-5,114.62,2100197 - British Gas Trading Ltd,December Electric
Tendring DC,http://statistics.data.gov.uk/id/local-authority-district/22UN,Life Opportunities,1915 - Low Road Depot,2304 - Energy Costs - Electricity,29/01/2013,2105317-6,49.12,2100197 - British Gas Trading Ltd,December Electric
Tendring DC,http://statistics.data.gov.uk/id/local-authority-district/22UN,Life Opportunities,5820 - Harwich Sports Centre,2304 - Energy Costs - Electricity,29/01/2013,2105317-7,513.16,2100197 - British Gas Trading Ltd,December Electric
Tendring DC,http://statistics.data.gov.uk/id/local-authority-district/22UN,Life Opportunities,5960 - Recreation Grounds,2304 - Energy Costs - Electricity,29/01/2013,2105317-8,116.53,2100197 - British Gas Trading Ltd,December Electric
Tendring DC,http://statistics.data.gov.uk/id/local-authority-district/22UN,Life Opportunities,5860 - Manningtree Sports Centre,2304 - Energy Costs - Electricity,29/01/2013,2105317-9,2060.74,2100197 - British Gas Trading Ltd,December Electric
Tendring DC,http://statistics.data.gov.uk/id/local-authority-district/22UN,Life Opportunities,8520 - Frinton & Walton Swimming Pool,2304 - Energy Costs - Electricity,29/01/2013,7008839-1,196.94,2100197 - British Gas Trading Ltd,WALTON POOL
Tendring DC,http://statistics.data.gov.uk/id/local-authority-district/22UN,Life Opportunities,8540 - Leisure Centre Clacton,4597 - Hired Services - Payments to Contractors,15/01/2013,2104833-1,217,2100148 - British Gymnastics,
Tendring DC,http://statistics.data.gov.uk/id/local-authority-district/22UN,Life Opportunities,8540 - Leisure Centre Clacton,4597 - Hired Services - Payments to Contractors,15/01/2013,7008775-1,213.5,2100148 - British Gymnastics,
Tendring DC,http://statistics.data.gov.uk/id/local-authority-district/22UN,Life Opportunities,1920 - Mill Lane Depot,4710 - Telephones - Charges,02/01/2013,2104305-1,51.6,REDACTED PERSONAL DATA,REDACTED PERSONAL DATA
Tendring DC,http://statistics.data.gov.uk/id/local-authority-district/22UN,Life Opportunities,5860 - Manningtree Sports Centre,4710 - Telephones - Charges,02/01/2013,2104305-10,526.34,REDACTED PERSONAL DATA,REDACTED PERSONAL DATA
Tendring DC,http://statistics.data.gov.uk/id/local-authority-district/22UN,Life Opportunities,8540 - Leisure Centre Clacton,4710 - Telephones - Charges,02/01/2013,2104305-11,458.76,REDACTED PERSONAL DATA,REDACTED PERSONAL DATA
Tendring DC,http://statistics.data.gov.uk/id/local-authority-district/22UN,Life Opportunities,4540 - Cemeteries,4710 - Telephones - Charges,02/01/2013,2104305-12,14.45,REDACTED PERSONAL DATA,REDACTED PERSONAL DATA
Tendring DC,http://statistics.data.gov.uk/id/local-authority-district/22UN,Life Opportunities,4560 - Crematorium,4710 - Telephones - Charges,02/01/2013,2104305-13,57.21,REDACTED PERSONAL DATA,REDACTED PERSONAL DATA
Tendring DC,http://statistics.data.gov.uk/id/local-authority-district/22UN,Life Opportunities,5800 - Brightlingsea Sports Centre,4710 - Telephones - Charges,02/01/2013,2104305-14,88.68,REDACTED PERSONAL DATA,REDACTED PERSONAL DATA
Tendring DC,http://statistics.data.gov.uk/id/local-authority-district/22UN,Life Opportunities,8510 - Dovercourt Swimming Pool & All Weather Facilities,4710 - Telephones - Charges,02/01/2013,2104305-15,379.27,REDACTED PERSONAL DATA,REDACTED PERSONAL DATA
Tendring DC,http://statistics.data.gov.uk/id/local-authority-district/22UN,Life Opportunities,1915 - Low Road Depot,4710 - Telephones - Charges,02/01/2013,2104305-2,15.01,REDACTED PERSONAL DATA,REDACTED PERSONAL DATA
Tendring DC,http://statistics.data.gov.uk/id/local-authority-district/22UN,Life Opportunities,8125 - Horticultural Services,4710 - Telephones - Charges,02/01/2013,2104305-3,24.17,REDACTED PERSONAL DATA,REDACTED PERSONAL DATA
Tendring DC,http://statistics.data.gov.uk/id/local-authority-district/22UN,Life Opportunities,7600 - Tourist Information Centres,4710 - Telephones - Charges,02/01/2013,2104305-4,80.47,REDACTED PERSONAL DATA,REDACTED PERSONAL DATA
Tendring DC,http://statistics.data.gov.uk/id/local-authority-district/22UN,Life Opportunities,6160 - Princes Theatre,4710 - Telephones - Charges,02/01/2013,2104305-5,126.68,REDACTED PERSONAL DATA,REDACTED PERSONAL DATA
Tendring DC,http://statistics.data.gov.uk/id/local-authority-district/22UN,Life Opportunities,6060 - First Aid Posts,4710 - Telephones - Charges,02/01/2013,2104305-6,66.24,REDACTED PERSONAL DATA,REDACTED PERSONAL DATA
Tendring DC,http://statistics.data.gov.uk/id/local-authority-district/22UN,Life Opportunities,6040 - Miscellaneous Seafront Activities,4710 - Telephones - Charges,02/01/2013,2104305-7,218.75,REDACTED PERSONAL DATA,REDACTED PERSONAL DATA
Tendring DC,http://statistics.data.gov.uk/id/local-authority-district/22UN,Life Opportunities,8520 - Frinton & Walton Swimming Pool,4710 - Telephones - Charges,02/01/2013,2104305-8,131.56,REDACTED PERSONAL DATA,REDACTED PERSONAL DATA
Tendring DC,http://statistics.data.gov.uk/id/local-authority-district/22UN,Life Opportunities,5820 - Harwich Sports Centre,4710 - Telephones - Charges,02/01/2013,2104305-9,335.75,REDACTED PERSONAL DATA,REDACTED PERSONAL DATA
Tendring DC,http://statistics.data.gov.uk/id/local-authority-district/22UN,Life Opportunities,6740 - Careline,4710 - Telephones - Charges,02/01/2013,2104381-1,74.17,2100168 - British Telecommunications plc,BT Bill - Harwich Broadband
Tendring DC,http://statistics.data.gov.uk/id/local-authority-district/22UN,Life Opportunities,6740 - Careline,4716 - Mobile Telephone Costs,02/01/2013,2104382-1,16,2100168 - British Telecommunications plc,BT Bill - Harwich Broadband
Tendring DC,http://statistics.data.gov.uk/id/local-authority-district/22UN,Life Opportunities,7000 - CCTV,4718 - Fixed Communication Lines,02/01/2013,2104383-1,93.81,2100168 - British Telecommunications plc,BT Bill Harwich
Tendring DC,http://statistics.data.gov.uk/id/local-authority-district/22UN,Life Opportunities,6740 - Careline,4710 - Telephones - Charges,02/01/2013,2104455-1,60.6,2100168 - British Telecommunications plc,BT Bill - Harwich
Tendring DC,http://statistics.data.gov.uk/id/local-authority-district/22UN,Life Opportunities,6740 - Careline,4710 - Telephones - Charges,08/01/2013,2104544-1,247.01,2100168 - British Telecommunications plc,BT Bill PNC
Tendring DC,http://statistics.data.gov.uk/id/local-authority-district/22UN,Life Opportunities,6740 - Careline,4710 - Telephones - Charges,15/01/2013,7008790-1,121.83,2100168 - British Telecommunications plc,BT Bill - December 2012
Tendring DC,http://statistics.data.gov.uk/id/local-authority-district/22UN,Life Opportunities,H815 - Re-roofing,C200 - Main Contractor,02/01/2013,2104240-1,1140,REDACTED PERSONAL DATA,REDACTED PERSONAL DATA
Tendring DC,http://statistics.data.gov.uk/id/local-authority-district/22UN,Life Opportunities,5820 - Harwich Sports Centre,2700 - Cleaning Materials,02/01/2013,2104290-1,13.62,2101624 - Bunzl,Disposable Gloves
Tendring DC,http://statistics.data.gov.uk/id/local-authority-district/22UN,Life Opportunities,8540 - Leisure Centre Clacton,2700 - Cleaning Materials,02/01/2013,2104409-1,226.65,REDACTED PERSONAL DATA,REDACTED PERSONAL DATA
Tendring DC,http://statistics.data.gov.uk/id/local-authority-district/22UN,Life Opportunities,5860 - Manningtree Sports Centre,2100 - Building Repairs,15/01/2013,2104634-1,174.74,REDACTED PERSONAL DATA,REDACTED PERSONAL DATA
Tendring DC,http://statistics.data.gov.uk/id/local-authority-district/22UN,Life Opportunities,8520 - Frinton & Walton Swimming Pool,2700 - Cleaning Materials,22/01/2013,2105203-1,123.6,2101624 - Bunzl,Frinton Pool
Tendring DC,http://statistics.data.gov.uk/id/local-authority-district/22UN,Life Opportunities,8510 - Dovercourt Swimming Pool & All Weather Facilities,2700 - Cleaning Materials,22/01/2013,2105209-1,193.51,2101624 - Bunzl,Dovercourt Pool
Tendring DC,http://statistics.data.gov.uk/id/local-authority-district/22UN,Life Opportunities,8510 - Dovercourt Swimming Pool & All Weather Facilities,2700 - Cleaning Materials,15/01/2013,7008732-1,20.8,2101624 - Bunzl,Dovercourt Pool
Tendring DC,http://statistics.data.gov.uk/id/local-authority-district/22UN,Life Opportunities,8540 - Leisure Centre Clacton,2700 - Cleaning Materials,15/01/2013,7008778-1,158.4,2101624 - Bunzl,
Tendring DC,http://statistics.data.gov.uk/id/local-authority-district/22UN,Life Opportunities,8520 - Frinton & Walton Swimming Pool,2520 - Sewerage & Environmental Charges,22/01/2013,2105225-1,2303.96,2102199 - Business Partner,Frinton Pool
Tendring DC,http://statistics.data.gov.uk/id/local-authority-district/22UN,Life Opportunities,8510 - Dovercourt Swimming Pool & All Weather Facilities,2100 - Building Repairs,22/01/2013,2105214-1,378,2100280 - C H Lindsey & Son Ltd,Dovercourt Pool
Tendring DC,http://statistics.data.gov.uk/id/local-authority-district/22UN,Life Opportunities,8520 - Frinton & Walton Swimming Pool,2100 - Building Repairs,22/01/2013,2105223-1,198,2100280 - C H Lindsey & Son Ltd,Frinton Pool
Tendring DC,http://statistics.data.gov.uk/id/local-authority-district/22UN,Life Opportunities,6160 - Princes Theatre,4105 - Bar/Catering Expenses,29/01/2013,1050788-1,160,2112687 - Cabana Soft Drinks (Essex) Ltd,SOFT DRINKS ORDER
Tendring DC,http://statistics.data.gov.uk/id/local-authority-district/22UN,Life Opportunities,5860 - Manningtree Sports Centre,4400 - Maintenance Under Service Agreements,22/01/2013,2105098-1,14.55,2100281 - Cannon Hygiene,Sanitary Bins Quarterly
Tendring DC,http://statistics.data.gov.uk/id/local-authority-district/22UN,Life Opportunities,8540 - Leisure Centre Clacton,4400 - Maintenance Under Service Agreements,22/01/2013,2105196-1,318.36,2100281 - Cannon Hygiene,Jan-Mar
Tendring DC,http://statistics.data.gov.uk/id/local-authority-district/22UN,Life Opportunities,8510 - Dovercourt Swimming Pool & All Weather Facilities,4400 - Maintenance Under Service Agreements,22/01/2013,2105221-1,38.49,2100281 - Cannon Hygiene,Dovercourt Pool
Tendring DC,http://statistics.data.gov.uk/id/local-authority-district/22UN,Life Opportunities,8520 - Frinton & Walton Swimming Pool,4400 - Maintenance Under Service Agreements,22/01/2013,2105222-1,108.15,2100281 - Cannon Hygiene,
Tendring DC,http://statistics.data.gov.uk/id/local-authority-district/22UN,Life Opportunities,1244 - Life Opportunities - Administration,1700 - Training - Courses,22/01/2013,2105101-1,350,REDACTED COMMERCIAL CONFIDENTIALITY,REDACTED COMMERCIAL CONFIDENTIALITY
Tendring DC,http://statistics.data.gov.uk/id/local-authority-district/22UN,Life Opportunities,5240 - HRA - Managing Tenancies,5242 - Tenant Relations,08/01/2013,2104537-1,93.75,REDACTED COMMERCIAL CONFIDENTIALITY,REDACTED COMMERCIAL CONFIDENTIALITY
Tendring DC,http://statistics.data.gov.uk/id/local-authority-district/22UN,Life Opportunities,"1580 - Benefits, Revenues and Customer Contact SU",3312 - Car Allowances - Car Hire,22/01/2013,2105045-1,15,REDACTED PERSONAL DATA,REDACTED PERSONAL DATA
Tendring DC,http://statistics.data.gov.uk/id/local-authority-district/22UN,Life Opportunities,"1580 - Benefits, Revenues and Customer Contact SU",3062 - Running Costs - Petrol,22/01/2013,2105045-2,4.17,REDACTED PERSONAL DATA,REDACTED PERSONAL DATA
Tendring DC,http://statistics.data.gov.uk/id/local-authority-district/22UN,Life Opportunities,"1580 - Benefits, Revenues and Customer Contact SU",3312 - Car Allowances - Car Hire,22/01/2013,2105046-1,20,REDACTED PERSONAL DATA,REDACTED PERSONAL DATA
Tendring DC,http://statistics.data.gov.uk/id/local-authority-district/22UN,Life Opportunities,"1580 - Benefits, Revenues and Customer Contact SU",3312 - Car Allowances - Car Hire,29/01/2013,7008842-1,18,REDACTED PERSONAL DATA,REDACTED PERSONAL DATA
Tendring DC,http://statistics.data.gov.uk/id/local-authority-district/22UN,Life Opportunities,5220 - HRA - Policy & Management,5253 - HRA Health & Safety Expenses,22/01/2013,2104895-1,25,REDACTED PERSONAL DATA,REDACTED PERSONAL DATA
Tendring DC,http://statistics.data.gov.uk/id/local-authority-district/22UN,Life Opportunities,8510 - Dovercourt Swimming Pool & All Weather Facilities,4200 - Clothing & Uniforms,29/01/2013,2105356-1,57,2100205 - Chelmsford Safety Supplies Ltd,Dovercourt Pool
Tendring DC,http://statistics.data.gov.uk/id/local-authority-district/22UN,Life Opportunities,5800 - Brightlingsea Sports Centre,5160 - Advertising,08/01/2013,2104553-1,104,REDACTED PERSONAL DATA,REDACTED PERSONAL DATA
Tendring DC,http://statistics.data.gov.uk/id/local-authority-district/22UN,Life Opportunities,6160 - Princes Theatre,5308 - Ice Cream,02/01/2013,2104229-1,52.16,2108623 - CICC Ltd,Ice Cream
Tendring DC,http://statistics.data.gov.uk/id/local-authority-district/22UN,Life Opportunities,6160 - Princes Theatre,5308 - Ice Cream,08/01/2013,2104463-1,73.02,2108623 - CICC Ltd,Ice Cream
Tendring DC,http://statistics.data.gov.uk/id/local-authority-district/22UN,Life Opportunities,6160 - Princes Theatre,5308 - Ice Cream,08/01/2013,2104464-1,215.82,2108623 - CICC Ltd,Ice Cream
Tendring DC,http://statistics.data.gov.uk/id/local-authority-district/22UN,Life Opportunities,6160 - Princes Theatre,5308 - Ice Cream,08/01/2013,2104465-1,685.63,2108623 - CICC Ltd,Ice Cream
Tendring DC,http://statistics.data.gov.uk/id/local-authority-district/22UN,Life Opportunities,6160 - Princes Theatre,5308 - Ice Cream,08/01/2013,2104466-1,455.73,2108623 - CICC Ltd,Ice Cream
Tendring DC,http://statistics.data.gov.uk/id/local-authority-district/22UN,Life Opportunities,6160 - Princes Theatre,5308 - Ice Cream,08/01/2013,2104467-1,73.02,2108623 - CICC Ltd,Ice Cream
Tendring DC,http://statistics.data.gov.uk/id/local-authority-district/22UN,Life Opportunities,6160 - Princes Theatre,5308 - Ice Cream,22/01/2013,2104913-1,206.72,2108623 - CICC Ltd,Ice Cream
Tendring DC,http://statistics.data.gov.uk/id/local-authority-district/22UN,Life Opportunities,8540 - Leisure Centre Clacton,2100 - Building Repairs,15/01/2013,7008779-1,25.3,2100267 - City Electrical Factors Ltd Anglia Division,
Tendring DC,http://statistics.data.gov.uk/id/local-authority-district/22UN,Life Opportunities,8540 - Leisure Centre Clacton,2100 - Building Repairs,15/01/2013,7008780-1,56.9,2100267 - City Electrical Factors Ltd Anglia Division,
Tendring DC,http://statistics.data.gov.uk/id/local-authority-district/22UN,Life Opportunities,5960 - Recreation Grounds,9272 - Pitch Bookings,02/01/2013,2104391-1,50.75,REDACTED PERSONAL DATA,REDACTED PERSONAL DATA
Tendring DC,http://statistics.data.gov.uk/id/local-authority-district/22UN,Life Opportunities,5960 - Recreation Grounds,9272 - Pitch Bookings,22/01/2013,2104950-1,33.83,REDACTED PERSONAL DATA,REDACTED PERSONAL DATA
Tendring DC,http://statistics.data.gov.uk/id/local-authority-district/22UN,Life Opportunities,6160 - Princes Theatre,4040 - Equipment & Tools,22/01/2013,2105190-1,82,2100268 - Clacton Tool Hire,Paslode Gun
Tendring DC,http://statistics.data.gov.uk/id/local-authority-district/22UN,Life Opportunities,H860 - Disabled Adaptations,C200 - Main Contractor,22/01/2013,1050735-1,400,REDACTED PERSONAL DATA,REDACTED PERSONAL DATA
Tendring DC,http://statistics.data.gov.uk/id/local-authority-district/22UN,Life Opportunities,H860 - Disabled Adaptations,C200 - Main Contractor,15/01/2013,2104640-1,5904.67,REDACTED PERSONAL DATA,REDACTED PERSONAL DATA
Tendring DC,http://statistics.data.gov.uk/id/local-authority-district/22UN,Life Opportunities,"1580 - Benefits, Revenues and Customer Contact SU",5189 - External Debt Recovery Commission,22/01/2013,2105160-1,351.61,2100381 - Collect Services Ltd,15% Comission Recovered
Tendring DC,http://statistics.data.gov.uk/id/local-authority-district/22UN,Life Opportunities,"1580 - Benefits, Revenues and Customer Contact SU",4462 - Legal Fees incl. Bailiffs re debt recovery,29/01/2013,7008834-1,3388.97,2100381 - Collect Services Ltd,VAT ON FEES COLLECT
Tendring DC,http://statistics.data.gov.uk/id/local-authority-district/22UN,Life Opportunities,"1580 - Benefits, Revenues and Customer Contact SU",4462 - Legal Fees incl. Bailiffs re debt recovery,29/01/2013,7008834-2,-3388.97,2100381 - Collect Services Ltd,VAT ON FEES COLLECT
Tendring DC,http://statistics.data.gov.uk/id/local-authority-district/22UN,Life Opportunities,"1580 - Benefits, Revenues and Customer Contact SU",4462 - Legal Fees incl. Bailiffs re debt recovery,29/01/2013,7008834-3,76.13,2100381 - Collect Services Ltd,VAT ON FEES COLLECT
Tendring DC,http://statistics.data.gov.uk/id/local-authority-district/22UN,Life Opportunities,"1580 - Benefits, Revenues and Customer Contact SU",4462 - Legal Fees incl. Bailiffs re debt recovery,29/01/2013,7008834-4,-76.13,2100381 - Collect Services Ltd,VAT ON FEES COLLECT
Tendring DC,http://statistics.data.gov.uk/id/local-authority-district/22UN,Life Opportunities,"1580 - Benefits, Revenues and Customer Contact SU",4462 - Legal Fees incl. Bailiffs re debt recovery,29/01/2013,7008834-5,36.19,2100381 - Collect Services Ltd,VAT ON FEES COLLECT
Tendring DC,http://statistics.data.gov.uk/id/local-authority-district/22UN,Life Opportunities,"1580 - Benefits, Revenues and Customer Contact SU",4462 - Legal Fees incl. Bailiffs re debt recovery,29/01/2013,7008834-6,-36.19,2100381 - Collect Services Ltd,VAT ON FEES COLLECT
Tendring DC,http://statistics.data.gov.uk/id/local-authority-district/22UN,Life Opportunities,"1580 - Benefits, Revenues and Customer Contact SU",4462 - Legal Fees incl. Bailiffs re debt recovery,29/01/2013,7008835-1,92.35,2100381 - Collect Services Ltd,VAT IN FEES COLLECTED NNDR
Tendring DC,http://statistics.data.gov.uk/id/local-authority-district/22UN,Life Opportunities,"1580 - Benefits, Revenues and Customer Contact SU",4462 - Legal Fees incl. Bailiffs re debt recovery,29/01/2013,7008835-2,-92.35,2100381 - Collect Services Ltd,VAT IN FEES COLLECTED NNDR
Tendring DC,http://statistics.data.gov.uk/id/local-authority-district/22UN,Life Opportunities,9900 - General Fund Balance Sheet,B863 - Bailiff Payments Holding Account,08/01/2013,7008694-1,4441.24,2112596 - Collect Services Ltd Clients Account,Barcode Payment to Collect
Tendring DC,http://statistics.data.gov.uk/id/local-authority-district/22UN,Life Opportunities,5365 - HRA - Colne Housing Soc Shel Units,4404 - Service Agreement - Foundry Court,08/01/2013,2104461-1,1501.63,2100342 - Colne Housing Society Ltd,Ironside Walk
Tendring DC,http://statistics.data.gov.uk/id/local-authority-district/22UN,Life Opportunities,"1580 - Benefits, Revenues and Customer Contact SU",4462 - Legal Fees incl. Bailiffs re debt recovery,18/01/2013,2105165-1,4,2105795 - Companies House,Companies House Dec 12
Tendring DC,http://statistics.data.gov.uk/id/local-authority-district/22UN,Life Opportunities,5140 - Homelessness,4683 - Other Homelessness Expenses,15/01/2013,2104715-1,550,REDACTED PERSONAL DATA,REDACTED PERSONAL DATA
Tendring DC,http://statistics.data.gov.uk/id/local-authority-district/22UN,Life Opportunities,6355 - Community Activity Network,4597 - Hired Services - Payments to Contractors,02/01/2013,2104235-1,983,2112705 - Continental Sports Ltd,Gymnastics Equipment
Tendring DC,http://statistics.data.gov.uk/id/local-authority-district/22UN,Life Opportunities,6355 - Community Activity Network,4597 - Hired Services - Payments to Contractors,02/01/2013,2104288-1,852,2112705 - Continental Sports Ltd,Gymnastics Training Beam
Tendring DC,http://statistics.data.gov.uk/id/local-authority-district/22UN,Life Opportunities,5260 - HRA - Rent Collection And Accounting,4460 - Legal & Professional Expenses,18/01/2013,2105170-1,930,REDACTED COMMERCIAL CONFIDENTIALITY,REDACTED COMMERCIAL CONFIDENTIALITY
Tendring DC,http://statistics.data.gov.uk/id/local-authority-district/22UN,Life Opportunities,6620 - Corporate Management - General,5190 - Bank Commission Charges,18/01/2013,2105170-2,2,REDACTED COMMERCIAL CONFIDENTIALITY,REDACTED COMMERCIAL CONFIDENTIALITY
Tendring DC,http://statistics.data.gov.uk/id/local-authority-district/22UN,Life Opportunities,5860 - Manningtree Sports Centre,2100 - Building Repairs,02/01/2013,2104241-1,428.21,REDACTED COMMERCIAL CONFIDENTIALITY,REDACTED COMMERCIAL CONFIDENTIALITY
Tendring DC,http://statistics.data.gov.uk/id/local-authority-district/22UN,Life Opportunities,8540 - Leisure Centre Clacton,2100 - Building Repairs,02/01/2013,2104408-1,373,2100314 - Cooper & Brome (Plumbing & Heating) Ltd,
Tendring DC,http://statistics.data.gov.uk/id/local-authority-district/22UN,Life Opportunities,5820 - Harwich Sports Centre,2100 - Building Repairs,15/01/2013,2104571-1,128.32,REDACTED PERSONAL DATA,REDACTED PERSONAL DATA
Tendring DC,http://statistics.data.gov.uk/id/local-authority-district/22UN,Life Opportunities,5340 - HRA - Communal Central Heating,2308 - Energy Costs - Gas (Including LPG),22/01/2013,2105042-1,9175.5,REDACTED PERSONAL DATA,REDACTED PERSONAL DATA
Tendring DC,http://statistics.data.gov.uk/id/local-authority-district/22UN,Life Opportunities,5360 - HRA - Sheltered Units,2308 - Energy Costs - Gas (Including LPG),22/01/2013,2105042-2,101.07,REDACTED PERSONAL DATA,REDACTED PERSONAL DATA
Tendring DC,http://statistics.data.gov.uk/id/local-authority-district/22UN,Life Opportunities,8540 - Leisure Centre Clacton,2308 - Energy Costs - Gas (Including LPG),22/01/2013,2105198-1,3021.25,2104620 - Corona Energy Retail 4 Limited,December
Tendring DC,http://statistics.data.gov.uk/id/local-authority-district/22UN,Life Opportunities,8520 - Frinton & Walton Swimming Pool,2308 - Energy Costs - Gas (Including LPG),22/01/2013,2105205-1,3366.28,2104620 - Corona Energy Retail 4 Limited,Frinton Pool
Tendring DC,http://statistics.data.gov.uk/id/local-authority-district/22UN,Life Opportunities,8510 - Dovercourt Swimming Pool & All Weather Facilities,2308 - Energy Costs - Gas (Including LPG),22/01/2013,2105206-1,3193.19,2104620 - Corona Energy Retail 4 Limited,Dovercourt Pool
Tendring DC,http://statistics.data.gov.uk/id/local-authority-district/22UN,Life Opportunities,5240 - HRA - Managing Tenancies,5242 - Tenant Relations,22/01/2013,2105094-1,486,REDACTED COMMERCIAL CONFIDENTIALITY,REDACTED COMMERCIAL CONFIDENTIALITY
Tendring DC,http://statistics.data.gov.uk/id/local-authority-district/22UN,Life Opportunities,5880 - Management Of Sport & Leisure Facilities,2100 - Building Repairs,22/01/2013,2105228-1,979,2112749 - Country Leisure GRP Ltd,Frinton Pool
Tendring DC,http://statistics.data.gov.uk/id/local-authority-district/22UN,Life Opportunities,6160 - Princes Theatre,4080 - Materials & Consumables,22/01/2013,2104914-1,225,2102038 - Crispins Sandwich Bar Ltd,Buffet
Tendring DC,http://statistics.data.gov.uk/id/local-authority-district/22UN,Life Opportunities,H860 - Disabled Adaptations,C200 - Main Contractor,22/01/2013,1050732-1,4235,REDACTED PERSONAL DATA,REDACTED PERSONAL DATA
Tendring DC,http://statistics.data.gov.uk/id/local-authority-district/22UN,Life Opportunities,5360 - HRA - Sheltered Units,4710 - Telephones - Charges,08/01/2013,2104542-1,295.47,2106704 - Daisy Communications Ltd,Daisy Bill - Nov 12
Tendring DC,http://statistics.data.gov.uk/id/local-authority-district/22UN,Life Opportunities,5360 - HRA - Sheltered Units,4710 - Telephones - Charges,29/01/2013,2105297-1,292.47,2106704 - Daisy Communications Ltd,Daisy Bill December
Tendring DC,http://statistics.data.gov.uk/id/local-authority-district/22UN,Life Opportunities,6160 - Princes Theatre,4220 - Laundry,22/01/2013,2104905-1,28.6,2100397 - Danes of Colchester Ltd,Theatre Laundry
Tendring DC,http://statistics.data.gov.uk/id/local-authority-district/22UN,Life Opportunities,6160 - Princes Theatre,4220 - Laundry,22/01/2013,2104905-2,0.44,2100397 - Danes of Colchester Ltd,Theatre Laundry
Tendring DC,http://statistics.data.gov.uk/id/local-authority-district/22UN,Life Opportunities,6160 - Princes Theatre,4220 - Laundry,22/01/2013,2104906-1,13,2100397 - Danes of Colchester Ltd,Table Cloth Laundry
Tendring DC,http://statistics.data.gov.uk/id/local-authority-district/22UN,Life Opportunities,6160 - Princes Theatre,4220 - Laundry,22/01/2013,2104906-2,0.2,2100397 - Danes of Colchester Ltd,Table Cloth Laundry
Tendring DC,http://statistics.data.gov.uk/id/local-authority-district/22UN,Life Opportunities,4750 - Housing Disrepair,4080 - Materials & Consumables,15/01/2013,2104878-1,33.32,REDACTED PERSONAL DATA,REDACTED PERSONAL DATA
Tendring DC,http://statistics.data.gov.uk/id/local-authority-district/22UN,Life Opportunities,4750 - Housing Disrepair,4080 - Materials & Consumables,29/01/2013,1050786-1,78,REDACTED PERSONAL DATA,REDACTED PERSONAL DATA
Tendring DC,http://statistics.data.gov.uk/id/local-authority-district/22UN,Life Opportunities,8540 - Leisure Centre Clacton,4400 - Maintenance Under Service Agreements,02/01/2013,2104412-1,83.34,REDACTED PERSONAL DATA,REDACTED PERSONAL DATA
Tendring DC,http://statistics.data.gov.uk/id/local-authority-district/22UN,Life Opportunities,5800 - Brightlingsea Sports Centre,4000 - Furniture,22/01/2013,2105012-1,40,2100493 - Eastern Waste Disposal Limited,Easter Waste Disposal
Tendring DC,http://statistics.data.gov.uk/id/local-authority-district/22UN,Life Opportunities,8540 - Leisure Centre Clacton,2304 - Energy Costs - Electricity,22/01/2013,2105132-1,6116.51,2105146 - EDF Energy 1 Ltd,December
Tendring DC,http://statistics.data.gov.uk/id/local-authority-district/22UN,Life Opportunities,8510 - Dovercourt Swimming Pool & All Weather Facilities,2304 - Energy Costs - Electricity,15/01/2013,7008734-1,2657.36,2105146 - EDF Energy 1 Ltd,Dovercourt Pool
Tendring DC,http://statistics.data.gov.uk/id/local-authority-district/22UN,Life Opportunities,6740 - Careline,9050 - Careline Income - General,29/01/2013,7008795-1,7.59,REDACTED PERSONAL DATA,REDACTED PERSONAL DATA
Tendring DC,http://statistics.data.gov.uk/id/local-authority-district/22UN,Life Opportunities,5860 - Manningtree Sports Centre,2100 - Building Repairs,29/01/2013,1050796-1,146.5,2103477 - Entrac Electrical,ANNUAL TEST FOR EMERGENCY LIGHTS
Tendring DC,http://statistics.data.gov.uk/id/local-authority-district/22UN,Life Opportunities,5860 - Manningtree Sports Centre,2100 - Building Repairs,15/01/2013,2104643-1,354.58,2103477 - Entrac Electrical,Replace/Repair faulty lights
Tendring DC,http://statistics.data.gov.uk/id/local-authority-district/22UN,Life Opportunities,5820 - Harwich Sports Centre,4597 - Hired Services - Payments to Contractors,22/01/2013,2104903-1,126.5,2103477 - Entrac Electrical,Annual Light Test
Tendring DC,http://statistics.data.gov.uk/id/local-authority-district/22UN,Life Opportunities,5480 - HRA - Repair & Maintenance,2017 - Mechanical Equipment /Extract Fans,08/01/2013,2104549-1,78.05,REDACTED PERSONAL DATA,REDACTED PERSONAL DATA
Tendring DC,http://statistics.data.gov.uk/id/local-authority-district/22UN,Life Opportunities,8530 - Brightlingsea Swimming Pool,2304 - Energy Costs - Electricity,02/01/2013,2104316-1,3124.54,2107644 - Eon,26/5/12 - 6/12/12
Tendring DC,http://statistics.data.gov.uk/id/local-authority-district/22UN,Life Opportunities,6740 - Careline,2304 - Energy Costs - Electricity,15/01/2013,2104790-1,33.51,2107644 - Eon,Electricity Oct-Dec 2012
Tendring DC,http://statistics.data.gov.uk/id/local-authority-district/22UN,Life Opportunities,5440 - HRA - Communal Electricity,2304 - Energy Costs - Electricity,22/01/2013,2105100-1,25.39,2107644 - Eon,TV Amp
Tendring DC,http://statistics.data.gov.uk/id/local-authority-district/22UN,Life Opportunities,7560 - Tourism Publications,4668 - Production Expenses,02/01/2013,2104366-1,-528,2100498 - Essex County Council,Tourism & Leisure Show
Tendring DC,http://statistics.data.gov.uk/id/local-authority-district/22UN,Life Opportunities,7560 - Tourism Publications,4668 - Production Expenses,08/01/2013,2104468-1,500,2100498 - Essex County Council,Leaflet Distribution
Tendring DC,http://statistics.data.gov.uk/id/local-authority-district/22UN,Life Opportunities,5860 - Manningtree Sports Centre,4040 - Equipment & Tools,02/01/2013,2104237-1,162,2105226 - Essex Inflatables,Bouncy Castle Fan
Tendring DC,http://statistics.data.gov.uk/id/local-authority-district/22UN,Life Opportunities,7520 - Tourism Publicity Marketing Promotion,5160 - Advertising,02/01/2013,2104306-1,200,2109598 - Expo Management,Coach Monthly
Tendring DC,http://statistics.data.gov.uk/id/local-authority-district/22UN,Life Opportunities,8510 - Dovercourt Swimming Pool & All Weather Facilities,4400 - Maintenance Under Service Agreements,22/01/2013,2105213-1,65,2102677 - Felgains Care & Mobility,Dovercourt Pool
Tendring DC,http://statistics.data.gov.uk/id/local-authority-district/22UN,Life Opportunities,5480 - HRA - Repair & Maintenance,2057 - Fire Alarms Servicing,08/01/2013,2104548-1,110,REDACTED PERSONAL DATA,REDACTED PERSONAL DATA
Tendring DC,http://statistics.data.gov.uk/id/local-authority-district/22UN,Life Opportunities,5480 - HRA - Repair & Maintenance,2058 - Fire Alarms Repairs,08/01/2013,2104560-1,80,REDACTED PERSONAL DATA,REDACTED PERSONAL DATA
Tendring DC,http://statistics.data.gov.uk/id/local-authority-district/22UN,Life Opportunities,5480 - HRA - Repair & Maintenance,2057 - Fire Alarms Servicing,15/01/2013,2104855-1,135,REDACTED PERSONAL DATA,REDACTED PERSONAL DATA
Tendring DC,http://statistics.data.gov.uk/id/local-authority-district/22UN,Life Opportunities,5480 - HRA - Repair & Maintenance,2058 - Fire Alarms Repairs,15/01/2013,2104856-1,100,REDACTED PERSONAL DATA,REDACTED PERSONAL DATA
Tendring DC,http://statistics.data.gov.uk/id/local-authority-district/22UN,Life Opportunities,7600 - Tourist Information Centres,9356 - Commission Sales,15/01/2013,7008714-1,1080,2103743 - First Essex Buses Ltd,December Commission
Tendring DC,http://statistics.data.gov.uk/id/local-authority-district/22UN,Life Opportunities,8540 - Leisure Centre Clacton,2904 - Premises Licensing - Other,18/01/2013,2105182-1,284.68,REDACTED COMMERCIAL CONFIDENTIALITY,REDACTED COMMERCIAL CONFIDENTIALITY
Tendring DC,http://statistics.data.gov.uk/id/local-authority-district/22UN,Life Opportunities,8540 - Leisure Centre Clacton,2904 - Premises Licensing - Other,18/01/2013,2105187-1,284.68,2107806 - Fitness Professionals Ltd,Body Training System
Tendring DC,http://statistics.data.gov.uk/id/local-authority-district/22UN,Life Opportunities,5140 - Homelessness,4683 - Other Homelessness Expenses,15/01/2013,2104714-1,585,REDACTED PERSONAL DATA,REDACTED PERSONAL DATA
Tendring DC,http://statistics.data.gov.uk/id/local-authority-district/22UN,Life Opportunities,8025 - Car Parks - Off St,4040 - Equipment & Tools,29/01/2013,2105286-1,113.67,2109684 - Frank Howard Tools & Fixings Ltd,Frank Howard Tools
Tendring DC,http://statistics.data.gov.uk/id/local-authority-district/22UN,Life Opportunities,H920 - DFGs,C400 - Grant payments,02/01/2013,2104384-1,5455,REDACTED PERSONAL DATA,REDACTED PERSONAL DATA
Tendring DC,http://statistics.data.gov.uk/id/local-authority-district/22UN,Life Opportunities,8520 - Frinton & Walton Swimming Pool,2100 - Building Repairs,22/01/2013,2105032-1,155,REDACTED PERSONAL DATA,REDACTED PERSONAL DATA
Tendring DC,http://statistics.data.gov.uk/id/local-authority-district/22UN,Life Opportunities,5860 - Manningtree Sports Centre,1700 - Training - Courses,29/01/2013,1050795-1,85,2107351 - Frinton Training Services Ltd,1ST AID C HOLMES
Tendring DC,http://statistics.data.gov.uk/id/local-authority-district/22UN,Life Opportunities,5820 - Harwich Sports Centre,4597 - Hired Services - Payments to Contractors,08/01/2013,2104540-1,85,2107351 - Frinton Training Services Ltd,Training Course
Tendring DC,http://statistics.data.gov.uk/id/local-authority-district/22UN,Life Opportunities,8540 - Leisure Centre Clacton,1700 - Training - Courses,29/01/2013,2105343-1,255,REDACTED PERSONAL DATA,REDACTED PERSONAL DATA
Tendring DC,http://statistics.data.gov.uk/id/local-authority-district/22UN,Life Opportunities,8540 - Leisure Centre Clacton,1700 - Training - Courses,15/01/2013,7008774-1,155,2107351 - Frinton Training Services Ltd,
Tendring DC,http://statistics.data.gov.uk/id/local-authority-district/22UN,Life Opportunities,5140 - Homelessness,4683 - Other Homelessness Expenses,02/01/2013,2104446-1,549,REDACTED PERSONAL DATA,REDACTED PERSONAL DATA
Tendring DC,http://statistics.data.gov.uk/id/local-authority-district/22UN,Life Opportunities,5480 - HRA - Repair & Maintenance,2089 - Sewer Repairs,15/01/2013,2104857-1,230,REDACTED PERSONAL DATA,REDACTED PERSONAL DATA
Tendring DC,http://statistics.data.gov.uk/id/local-authority-district/22UN,Life Opportunities,8540 - Leisure Centre Clacton,2100 - Building Repairs,15/01/2013,7008791-1,300,2112291 - G Greenwood Waste Disposal,
Tendring DC,http://statistics.data.gov.uk/id/local-authority-district/22UN,Life Opportunities,"1580 - Benefits, Revenues and Customer Contact SU",4635 - Cash Collection Contract,22/01/2013,2105237-1,-51.02,2101233 - G4S Cash Services (UK) Limited,CR for missed collection
Tendring DC,http://statistics.data.gov.uk/id/local-authority-district/22UN,Life Opportunities,"1580 - Benefits, Revenues and Customer Contact SU",4635 - Cash Collection Contract,22/01/2013,2105238-1,470.49,2101233 - G4S Cash Services (UK) Limited,G4S Feb 13
Tendring DC,http://statistics.data.gov.uk/id/local-authority-district/22UN,Life Opportunities,5860 - Manningtree Sports Centre,4635 - Cash Collection Contract,22/01/2013,2105238-10,69.57,2101233 - G4S Cash Services (UK) Limited,G4S Feb 13
Tendring DC,http://statistics.data.gov.uk/id/local-authority-district/22UN,Life Opportunities,5820 - Harwich Sports Centre,4635 - Cash Collection Contract,22/01/2013,2105238-11,69.57,2101233 - G4S Cash Services (UK) Limited,G4S Feb 13
Tendring DC,http://statistics.data.gov.uk/id/local-authority-district/22UN,Life Opportunities,5260 - HRA - Rent Collection And Accounting,4635 - Cash Collection Contract,22/01/2013,2105238-2,119.64,2101233 - G4S Cash Services (UK) Limited,G4S Feb 13
Tendring DC,http://statistics.data.gov.uk/id/local-authority-district/22UN,Life Opportunities,5260 - HRA - Rent Collection And Accounting,4635 - Cash Collection Contract,22/01/2013,2105238-3,19.58,2101233 - G4S Cash Services (UK) Limited,G4S Feb 13
Tendring DC,http://statistics.data.gov.uk/id/local-authority-district/22UN,Life Opportunities,1560 - Cashiers Service Unit,4635 - Cash Collection Contract,22/01/2013,2105238-4,29.11,2101233 - G4S Cash Services (UK) Limited,G4S Feb 13
Tendring DC,http://statistics.data.gov.uk/id/local-authority-district/22UN,Life Opportunities,8025 - Car Parks - Off St,4635 - Cash Collection Contract,22/01/2013,2105238-5,68.11,2101233 - G4S Cash Services (UK) Limited,G4S Feb 13
Tendring DC,http://statistics.data.gov.uk/id/local-authority-district/22UN,Life Opportunities,8540 - Leisure Centre Clacton,4635 - Cash Collection Contract,22/01/2013,2105238-6,208.7,2101233 - G4S Cash Services (UK) Limited,G4S Feb 13
Tendring DC,http://statistics.data.gov.uk/id/local-authority-district/22UN,Life Opportunities,8510 - Dovercourt Swimming Pool & All Weather Facilities,4635 - Cash Collection Contract,22/01/2013,2105238-7,139.13,2101233 - G4S Cash Services (UK) Limited,G4S Feb 13
Tendring DC,http://statistics.data.gov.uk/id/local-authority-district/22UN,Life Opportunities,5800 - Brightlingsea Sports Centre,4635 - Cash Collection Contract,22/01/2013,2105238-8,69.57,2101233 - G4S Cash Services (UK) Limited,G4S Feb 13
Tendring DC,http://statistics.data.gov.uk/id/local-authority-district/22UN,Life Opportunities,8520 - Frinton & Walton Swimming Pool,4635 - Cash Collection Contract,22/01/2013,2105238-9,139.13,2101233 - G4S Cash Services (UK) Limited,G4S Feb 13
Tendring DC,http://statistics.data.gov.uk/id/local-authority-district/22UN,Life Opportunities,H920 - DFGs,C400 - Grant payments,15/01/2013,2104877-1,2845.04,REDACTED PERSONAL DATA,REDACTED PERSONAL DATA
Tendring DC,http://statistics.data.gov.uk/id/local-authority-district/22UN,Life Opportunities,6740 - Careline,4040 - Equipment & Tools,29/01/2013,2105298-1,200,2101874 - GBS,AA & AAA Batteries Jan 13
Tendring DC,http://statistics.data.gov.uk/id/local-authority-district/22UN,Life Opportunities,7000 - CCTV,4400 - Maintenance Under Service Agreements,08/01/2013,2104543-1,90,2100546 - GCS Alarms,Burn CCTV
Tendring DC,http://statistics.data.gov.uk/id/local-authority-district/22UN,Life Opportunities,5860 - Manningtree Sports Centre,4400 - Maintenance Under Service Agreements,08/01/2013,2104558-1,70,2100546 - GCS Alarms,Check Alarm Contracts After New Doors Installed
Tendring DC,http://statistics.data.gov.uk/id/local-authority-district/22UN,Life Opportunities,8025 - Car Parks - Off St,4597 - Hired Services - Payments to Contractors,15/01/2013,2104780-1,50,2100546 - GCS Alarms,Repair Cam 26
Tendring DC,http://statistics.data.gov.uk/id/local-authority-district/22UN,Life Opportunities,7000 - CCTV,4400 - Maintenance Under Service Agreements,15/01/2013,2104781-1,50,2100546 - GCS Alarms,No power cam 37
Tendring DC,http://statistics.data.gov.uk/id/local-authority-district/22UN,Life Opportunities,7000 - CCTV,4400 - Maintenance Under Service Agreements,15/01/2013,2104782-1,50,2100546 - GCS Alarms,Re-programme camera 35
Tendring DC,http://statistics.data.gov.uk/id/local-authority-district/22UN,Life Opportunities,7000 - CCTV,4400 - Maintenance Under Service Agreements,15/01/2013,2104787-1,50,2100546 - GCS Alarms,Harwich Cameras Dec
Tendring DC,http://statistics.data.gov.uk/id/local-authority-district/22UN,Life Opportunities,7000 - CCTV,4400 - Maintenance Under Service Agreements,15/01/2013,2104788-1,59,2100546 - GCS Alarms,Network viewer
Tendring DC,http://statistics.data.gov.uk/id/local-authority-district/22UN,Life Opportunities,7000 - CCTV,4400 - Maintenance Under Service Agreements,15/01/2013,2104789-1,50,2100546 - GCS Alarms,London Roundabout 27
Tendring DC,http://statistics.data.gov.uk/id/local-authority-district/22UN,Life Opportunities,7000 - CCTV,4400 - Maintenance Under Service Agreements,22/01/2013,2105074-1,50,2100546 - GCS Alarms,Repair Dots Cam 32
Tendring DC,http://statistics.data.gov.uk/id/local-authority-district/22UN,Life Opportunities,7000 - CCTV,4400 - Maintenance Under Service Agreements,22/01/2013,2105075-1,50,2100546 - GCS Alarms,Check Wahoo Cam 50
Tendring DC,http://statistics.data.gov.uk/id/local-authority-district/22UN,Life Opportunities,7000 - CCTV,4400 - Maintenance Under Service Agreements,22/01/2013,2105076-1,50,2100546 - GCS Alarms,Fountain Cam 2 Intermitent
Tendring DC,http://statistics.data.gov.uk/id/local-authority-district/22UN,Life Opportunities,5860 - Manningtree Sports Centre,4400 - Maintenance Under Service Agreements,22/01/2013,2105096-1,50,2100546 - GCS Alarms,2 x 7 Amp Batteries - Intruder Alarm
Tendring DC,http://statistics.data.gov.uk/id/local-authority-district/22UN,Life Opportunities,8540 - Leisure Centre Clacton,2100 - Building Repairs,22/01/2013,2105200-1,83.5,2100546 - GCS Alarms,
Tendring DC,http://statistics.data.gov.uk/id/local-authority-district/22UN,Life Opportunities,8540 - Leisure Centre Clacton,2100 - Building Repairs,22/01/2013,2105201-1,216,2100546 - GCS Alarms,
Tendring DC,http://statistics.data.gov.uk/id/local-authority-district/22UN,Life Opportunities,7000 - CCTV,4400 - Maintenance Under Service Agreements,29/01/2013,2105378-1,50,2100546 - GCS Alarms,CAM 49 Tamerisk Way
Tendring DC,http://statistics.data.gov.uk/id/local-authority-district/22UN,Life Opportunities,7000 - CCTV,4400 - Maintenance Under Service Agreements,29/01/2013,2105379-1,70,2100546 - GCS Alarms,Check CCTV Burning Equipment
Tendring DC,http://statistics.data.gov.uk/id/local-authority-district/22UN,Life Opportunities,7000 - CCTV,4400 - Maintenance Under Service Agreements,29/01/2013,2105380-1,50,2100546 - GCS Alarms,Check Cam 33 Sweet Tinas
Tendring DC,http://statistics.data.gov.uk/id/local-authority-district/22UN,Life Opportunities,7000 - CCTV,4400 - Maintenance Under Service Agreements,29/01/2013,2105381-1,320,2100546 - GCS Alarms,Cam 2 - Fountain
Tendring DC,http://statistics.data.gov.uk/id/local-authority-district/22UN,Life Opportunities,7000 - CCTV,4400 - Maintenance Under Service Agreements,29/01/2013,2105399-1,50,2100546 - GCS Alarms,Re powered codec
Tendring DC,http://statistics.data.gov.uk/id/local-authority-district/22UN,Life Opportunities,8510 - Dovercourt Swimming Pool & All Weather Facilities,4400 - Maintenance Under Service Agreements,15/01/2013,7008731-1,40,2100546 - GCS Alarms,Dovercourt Pool
Tendring DC,http://statistics.data.gov.uk/id/local-authority-district/22UN,Life Opportunities,5480 - HRA - Repair & Maintenance,2018 - Other Responsive Repairs,22/01/2013,2105104-1,26.5,REDACTED PERSONAL DATA,REDACTED PERSONAL DATA
Tendring DC,http://statistics.data.gov.uk/id/local-authority-district/22UN,Life Opportunities,8540 - Leisure Centre Clacton,2900 - Premises Licensing - Public Entertainment,18/01/2013,2105181-1,50,REDACTED COMMERCIAL CONFIDENTIALITY,REDACTED COMMERCIAL CONFIDENTIALITY
Tendring DC,http://statistics.data.gov.uk/id/local-authority-district/22UN,Life Opportunities,8540 - Leisure Centre Clacton,2900 - Premises Licensing - Public Entertainment,18/01/2013,2105184-1,50,REDACTED COMMERCIAL CONFIDENTIALITY,REDACTED COMMERCIAL CONFIDENTIALITY
Tendring DC,http://statistics.data.gov.uk/id/local-authority-district/22UN,Life Opportunities,8540 - Leisure Centre Clacton,2700 - Cleaning Materials,29/01/2013,2105346-1,72.1,2100509 - Granwax Products Ltd,
Tendring DC,http://statistics.data.gov.uk/id/local-authority-district/22UN,Life Opportunities,6160 - Princes Theatre,4105 - Bar/Catering Expenses,02/01/2013,2104280-1,346.87,REDACTED PERSONAL DATA,REDACTED PERSONAL DATA
Tendring DC,http://statistics.data.gov.uk/id/local-authority-district/22UN,Life Opportunities,6160 - Princes Theatre,4105 - Bar/Catering Expenses,29/01/2013,2105318-1,393.01,2112641 - Greene King Brewing and Retailing Ltd,Bar Supplies
Tendring DC,http://statistics.data.gov.uk/id/local-authority-district/22UN,Life Opportunities,5480 - HRA - Repair & Maintenance,2017 - Mechanical Equipment /Extract Fans,08/01/2013,2104458-1,95,REDACTED COMMERCIAL CONFIDENTIALITY,REDACTED COMMERCIAL CONFIDENTIALITY
Tendring DC,http://statistics.data.gov.uk/id/local-authority-district/22UN,Life Opportunities,5480 - HRA - Repair & Maintenance,2017 - Mechanical Equipment /Extract Fans,08/01/2013,2104459-1,385,REDACTED PERSONAL DATA,REDACTED PERSONAL DATA
Tendring DC,http://statistics.data.gov.uk/id/local-authority-district/22UN,Life Opportunities,5480 - HRA - Repair & Maintenance,2017 - Mechanical Equipment /Extract Fans,08/01/2013,2104460-1,335,REDACTED PERSONAL DATA,REDACTED PERSONAL DATA
Tendring DC,http://statistics.data.gov.uk/id/local-authority-district/22UN,Life Opportunities,5240 - HRA - Managing Tenancies,5242 - Tenant Relations,02/01/2013,2104394-1,250,REDACTED PERSONAL DATA,REDACTED PERSONAL DATA
Tendring DC,http://statistics.data.gov.uk/id/local-authority-district/22UN,Life Opportunities,H920 - DFGs,C400 - Grant payments,02/01/2013,2104439-1,375,REDACTED PERSONAL DATA,REDACTED PERSONAL DATA
Tendring DC,http://statistics.data.gov.uk/id/local-authority-district/22UN,Life Opportunities,8510 - Dovercourt Swimming Pool & All Weather Facilities,2100 - Building Repairs,02/01/2013,2104309-1,80.6,REDACTED PERSONAL DATA,REDACTED PERSONAL DATA
Tendring DC,http://statistics.data.gov.uk/id/local-authority-district/22UN,Life Opportunities,5240 - HRA - Managing Tenancies,5242 - Tenant Relations,15/01/2013,2104768-1,64,REDACTED PERSONAL DATA,REDACTED PERSONAL DATA
Tendring DC,http://statistics.data.gov.uk/id/local-authority-district/22UN,Life Opportunities,5140 - Homelessness,4683 - Other Homelessness Expenses,29/01/2013,2105337-1,480,REDACTED PERSONAL DATA,REDACTED PERSONAL DATA
Tendring DC,http://statistics.data.gov.uk/id/local-authority-district/22UN,Life Opportunities,7600 - Tourist Information Centres,9356 - Commission Sales,15/01/2013,7008713-1,258.1,2100635 - Hedingham & District Omnibuses Ltd,December Commission for Clacton TIC Sales
Tendring DC,http://statistics.data.gov.uk/id/local-authority-district/22UN,Life Opportunities,8510 - Dovercourt Swimming Pool & All Weather Facilities,2100 - Building Repairs,22/01/2013,2105220-1,100,2112468 - Henry Ashe Projects Ltd,Dovercourt Pool
Tendring DC,http://statistics.data.gov.uk/id/local-authority-district/22UN,Life Opportunities,5860 - Manningtree Sports Centre,4040 - Equipment & Tools,15/01/2013,2104763-1,200,2112071 - Hightime Technical Consultants Ltd,Climbing Wall Inspection
Tendring DC,http://statistics.data.gov.uk/id/local-authority-district/22UN,Life Opportunities,"1580 - Benefits, Revenues and Customer Contact SU",4462 - Legal Fees incl. Bailiffs re debt recovery,22/01/2013,2104996-1,220.5,2100636 - HM Land Registry,Ownership Change Indicator Jan 13
Tendring DC,http://statistics.data.gov.uk/id/local-authority-district/22UN,Life Opportunities,5260 - HRA - Rent Collection And Accounting,4460 - Legal & Professional Expenses,15/01/2013,2104889-1,45,REDACTED COMMERCIAL CONFIDENTIALITY,REDACTED COMMERCIAL CONFIDENTIALITY
Tendring DC,http://statistics.data.gov.uk/id/local-authority-district/22UN,Life Opportunities,5260 - HRA - Rent Collection And Accounting,4460 - Legal & Professional Expenses,15/01/2013,2104890-1,110,REDACTED COMMERCIAL CONFIDENTIALITY,REDACTED COMMERCIAL CONFIDENTIALITY
Tendring DC,http://statistics.data.gov.uk/id/local-authority-district/22UN,Life Opportunities,5240 - HRA - Managing Tenancies,5242 - Tenant Relations,15/01/2013,7008697-1,150,REDACTED COMMERCIAL CONFIDENTIALITY,REDACTED COMMERCIAL CONFIDENTIALITY
Tendring DC,http://statistics.data.gov.uk/id/local-authority-district/22UN,Life Opportunities,8540 - Leisure Centre Clacton,2100 - Building Repairs,02/01/2013,2104315-1,41.67,2111080 - Homecraft Contracts Electrical Ltd,
Tendring DC,http://statistics.data.gov.uk/id/local-authority-district/22UN,Life Opportunities,8540 - Leisure Centre Clacton,2100 - Building Repairs,15/01/2013,2104642-1,158.33,2111080 - Homecraft Contracts Electrical Ltd,
Tendring DC,http://statistics.data.gov.uk/id/local-authority-district/22UN,Life Opportunities,8520 - Frinton & Walton Swimming Pool,2100 - Building Repairs,22/01/2013,2105136-1,10,2111080 - Homecraft Contracts Electrical Ltd,Frinton Pool
Tendring DC,http://statistics.data.gov.uk/id/local-authority-district/22UN,Life Opportunities,8510 - Dovercourt Swimming Pool & All Weather Facilities,2100 - Building Repairs,22/01/2013,2105215-1,84,2111080 - Homecraft Contracts Electrical Ltd,Dovercourt Pool
Tendring DC,http://statistics.data.gov.uk/id/local-authority-district/22UN,Life Opportunities,H920 - DFGs,C400 - Grant payments,08/01/2013,2104514-1,7532.37,REDACTED PERSONAL DATA,REDACTED PERSONAL DATA
Tendring DC,http://statistics.data.gov.uk/id/local-authority-district/22UN,Life Opportunities,H920 - DFGs,C400 - Grant payments,22/01/2013,2105025-1,3180.47,REDACTED PERSONAL DATA,REDACTED PERSONAL DATA
Tendring DC,http://statistics.data.gov.uk/id/local-authority-district/22UN,Life Opportunities,8520 - Frinton & Walton Swimming Pool,2100 - Building Repairs,22/01/2013,2105137-1,445,2101848 - Homecraft Contracts Ltd,Frinton Pool
Tendring DC,http://statistics.data.gov.uk/id/local-authority-district/22UN,Life Opportunities,8510 - Dovercourt Swimming Pool & All Weather Facilities,2100 - Building Repairs,22/01/2013,2105216-1,495,2101848 - Homecraft Contracts Ltd,Dovercourt Pool
Tendring DC,http://statistics.data.gov.uk/id/local-authority-district/22UN,Life Opportunities,8510 - Dovercourt Swimming Pool & All Weather Facilities,2100 - Building Repairs,22/01/2013,2105026-1,12.48,2100677 - Homecraft DIY Ltd,Dovercourt Pool
Tendring DC,http://statistics.data.gov.uk/id/local-authority-district/22UN,Life Opportunities,"1580 - Benefits, Revenues and Customer Contact SU",4300 - Printing & Stationery,22/01/2013,2105069-1,158.75,REDACTED PERSONAL DATA,REDACTED PERSONAL DATA
Tendring DC,http://statistics.data.gov.uk/id/local-authority-district/22UN,Life Opportunities,1650 - Building Services Service Unit,4300 - Printing & Stationery,15/01/2013,2104766-1,274.94,REDACTED PERSONAL DATA,REDACTED PERSONAL DATA
Tendring DC,http://statistics.data.gov.uk/id/local-authority-district/22UN,Life Opportunities,5480 - HRA - Repair & Maintenance,2014 - Decoration Allowances,15/01/2013,7008724-1,632.77,REDACTED PERSONAL DATA,REDACTED PERSONAL DATA
Tendring DC,http://statistics.data.gov.uk/id/local-authority-district/22UN,Life Opportunities,5860 - Manningtree Sports Centre,4090 - Lease of Vending Machines,15/01/2013,2104762-1,35,2100702 - ING Lease (UK) Ltd,Annual Admin Fee - Lease on Vending Machines
Tendring DC,http://statistics.data.gov.uk/id/local-authority-district/22UN,Life Opportunities,5820 - Harwich Sports Centre,4400 - Maintenance Under Service Agreements,22/01/2013,2104902-1,194.7,2104976 - Initial Washroom Solutions,Water Hygiene Service
Tendring DC,http://statistics.data.gov.uk/id/local-authority-district/22UN,Life Opportunities,6740 - Careline,4448 - Confidential Waste,15/01/2013,2104783-1,11.75,2110936 - IPPlus (UK) Ltd,5 x Shredding Sacks
Tendring DC,http://statistics.data.gov.uk/id/local-authority-district/22UN,Life Opportunities,8520 - Frinton & Walton Swimming Pool,4300 - Printing & Stationery,02/01/2013,2104420-1,377,REDACTED PERSONAL DATA,REDACTED PERSONAL DATA
Tendring DC,http://statistics.data.gov.uk/id/local-authority-district/22UN,Life Opportunities,8520 - Frinton & Walton Swimming Pool,4400 - Maintenance Under Service Agreements,22/01/2013,2105204-1,50,2111218 - J Cripps,Frinton Pool
Tendring DC,http://statistics.data.gov.uk/id/local-authority-district/22UN,Life Opportunities,8540 - Leisure Centre Clacton,5300 - Resaleable Items,15/01/2013,2104840-1,102.2,2100755 - J P Lennard Ltd,
Tendring DC,http://statistics.data.gov.uk/id/local-authority-district/22UN,Life Opportunities,5800 - Brightlingsea Sports Centre,4000 - Furniture,22/01/2013,2105011-1,366.52,2100755 - J P Lennard Ltd,J P Lennard
Tendring DC,http://statistics.data.gov.uk/id/local-authority-district/22UN,Life Opportunities,8540 - Leisure Centre Clacton,4200 - Clothing & Uniforms,22/01/2013,2105131-1,46.03,2100755 - J P Lennard Ltd,
Tendring DC,http://statistics.data.gov.uk/id/local-authority-district/22UN,Life Opportunities,8520 - Frinton & Walton Swimming Pool,4000 - Furniture,22/01/2013,2105135-1,11.8,2100755 - J P Lennard Ltd,Frinton Pool
Tendring DC,http://statistics.data.gov.uk/id/local-authority-district/22UN,Life Opportunities,8520 - Frinton & Walton Swimming Pool,4000 - Furniture,22/01/2013,2105139-1,11.8,2100755 - J P Lennard Ltd,Frinton Pool
Tendring DC,http://statistics.data.gov.uk/id/local-authority-district/22UN,Life Opportunities,8510 - Dovercourt Swimming Pool & All Weather Facilities,4200 - Clothing & Uniforms,22/01/2013,2105217-1,81.95,2100755 - J P Lennard Ltd,Dovercourt Pool
Tendring DC,http://statistics.data.gov.uk/id/local-authority-district/22UN,Life Opportunities,8510 - Dovercourt Swimming Pool & All Weather Facilities,4000 - Furniture,15/01/2013,7008733-1,130.85,2100755 - J P Lennard Ltd,Dovercourt Pool
Tendring DC,http://statistics.data.gov.uk/id/local-authority-district/22UN,Life Opportunities,8540 - Leisure Centre Clacton,4597 - Hired Services - Payments to Contractors,15/01/2013,7008777-1,90,REDACTED PERSONAL DATA,REDACTED PERSONAL DATA
Tendring DC,http://statistics.data.gov.uk/id/local-authority-district/22UN,Life Opportunities,"1580 - Benefits, Revenues and Customer Contact SU",3300 - Public Transport - Officers,22/01/2013,2104953-1,20,REDACTED PERSONAL DATA,REDACTED PERSONAL DATA
Tendring DC,http://statistics.data.gov.uk/id/local-authority-district/22UN,Life Opportunities,5800 - Brightlingsea Sports Centre,3311 - Travelling Career Track,29/01/2013,2105338-1,20,REDACTED PERSONAL DATA,REDACTED PERSONAL DATA
Tendring DC,http://statistics.data.gov.uk/id/local-authority-district/22UN,Life Opportunities,"1580 - Benefits, Revenues and Customer Contact SU",3311 - Travelling Career Track,29/01/2013,2105403-1,20,REDACTED PERSONAL DATA,REDACTED PERSONAL DATA
Tendring DC,http://statistics.data.gov.uk/id/local-authority-district/22UN,Life Opportunities,8540 - Leisure Centre Clacton,9275 - Lifestyles Plus - DD,22/01/2013,2104935-1,35.83,REDACTED PERSONAL DATA,REDACTED PERSONAL DATA
Tendring DC,http://statistics.data.gov.uk/id/local-authority-district/22UN,Life Opportunities,1240 - Housing Services Service Unit,3302 - Car Allowances - Officers,22/01/2013,2104954-1,30.8,REDACTED PERSONAL DATA,REDACTED PERSONAL DATA
Tendring DC,http://statistics.data.gov.uk/id/local-authority-district/22UN,Life Opportunities,1240 - Housing Services Service Unit,3302 - Car Allowances - Officers,15/01/2013,7008710-1,34.5,REDACTED PERSONAL DATA,REDACTED PERSONAL DATA
Tendring DC,http://statistics.data.gov.uk/id/local-authority-district/22UN,Life Opportunities,5240 - HRA - Managing Tenancies,5242 - Tenant Relations,15/01/2013,2104880-1,10,REDACTED PERSONAL DATA,REDACTED PERSONAL DATA
Tendring DC,http://statistics.data.gov.uk/id/local-authority-district/22UN,Life Opportunities,5880 - Management Of Sport & Leisure Facilities,2100 - Building Repairs,02/01/2013,2104231-1,2500,2100777 - Johns Slater and Haward,Additional Fee
Tendring DC,http://statistics.data.gov.uk/id/local-authority-district/22UN,Life Opportunities,H920 - DFGs,C400 - Grant payments,08/01/2013,2104511-1,4686,2110327 - JPS Plumbing & General Building,7 Keith Close
Tendring DC,http://statistics.data.gov.uk/id/local-authority-district/22UN,Life Opportunities,8540 - Leisure Centre Clacton,5500 - Miscellaneous Expenses,02/01/2013,2104413-1,77,REDACTED PERSONAL DATA,REDACTED PERSONAL DATA
Tendring DC,http://statistics.data.gov.uk/id/local-authority-district/22UN,Life Opportunities,8540 - Leisure Centre Clacton,4597 - Hired Services - Payments to Contractors,02/01/2013,2104414-1,207.5,REDACTED PERSONAL DATA,REDACTED PERSONAL DATA
Tendring DC,http://statistics.data.gov.uk/id/local-authority-district/22UN,Life Opportunities,5480 - HRA - Repair & Maintenance,2064 - Domestic Appliance Repairs,29/01/2013,2105302-1,25,REDACTED PERSONAL DATA,REDACTED PERSONAL DATA
Tendring DC,http://statistics.data.gov.uk/id/local-authority-district/22UN,Life Opportunities,5480 - HRA - Repair & Maintenance,2064 - Domestic Appliance Repairs,29/01/2013,2105303-1,25,REDACTED PERSONAL DATA,REDACTED PERSONAL DATA
Tendring DC,http://statistics.data.gov.uk/id/local-authority-district/22UN,Life Opportunities,5480 - HRA - Repair & Maintenance,2064 - Domestic Appliance Repairs,29/01/2013,2105304-1,25,REDACTED PERSONAL DATA,REDACTED PERSONAL DATA
Tendring DC,http://statistics.data.gov.uk/id/local-authority-district/22UN,Life Opportunities,5480 - HRA - Repair & Maintenance,2064 - Domestic Appliance Repairs,29/01/2013,2105305-1,25,REDACTED PERSONAL DATA,REDACTED PERSONAL DATA
Tendring DC,http://statistics.data.gov.uk/id/local-authority-district/22UN,Life Opportunities,H860 - Disabled Adaptations,C200 - Main Contractor,22/01/2013,1050727-1,2525,REDACTED PERSONAL DATA,REDACTED PERSONAL DATA
Tendring DC,http://statistics.data.gov.uk/id/local-authority-district/22UN,Life Opportunities,H860 - Disabled Adaptations,C200 - Main Contractor,22/01/2013,1050727-2,1960,REDACTED PERSONAL DATA,REDACTED PERSONAL DATA
Tendring DC,http://statistics.data.gov.uk/id/local-authority-district/22UN,Life Opportunities,8540 - Leisure Centre Clacton,4597 - Hired Services - Payments to Contractors,22/01/2013,2105194-1,75,REDACTED PERSONAL DATA,REDACTED PERSONAL DATA
Tendring DC,http://statistics.data.gov.uk/id/local-authority-district/22UN,Life Opportunities,6160 - Princes Theatre,4800 - Hospitality,22/01/2013,2105191-1,44.8,2103413 - K H Catering Equipment Hire,Bar Stock Hire
Tendring DC,http://statistics.data.gov.uk/id/local-authority-district/22UN,Life Opportunities,5140 - Homelessness,4683 - Other Homelessness Expenses,02/01/2013,2104447-1,425,REDACTED PERSONAL DATA,REDACTED PERSONAL DATA
Tendring DC,http://statistics.data.gov.uk/id/local-authority-district/22UN,Life Opportunities,5140 - Homelessness,4683 - Other Homelessness Expenses,02/01/2013,2104448-1,425,REDACTED PERSONAL DATA,REDACTED PERSONAL DATA
Tendring DC,http://statistics.data.gov.uk/id/local-authority-district/22UN,Life Opportunities,8540 - Leisure Centre Clacton,4000 - Furniture,15/01/2013,2104834-1,102.6,2100719 - Kaiser & Kraft Ltd,
Tendring DC,http://statistics.data.gov.uk/id/local-authority-district/22UN,Life Opportunities,5480 - HRA - Repair & Maintenance,2018 - Other Responsive Repairs,08/01/2013,2104457-1,275,REDACTED PERSONAL DATA,REDACTED PERSONAL DATA
Tendring DC,http://statistics.data.gov.uk/id/local-authority-district/22UN,Life Opportunities,5480 - HRA - Repair & Maintenance,2018 - Other Responsive Repairs,22/01/2013,2105103-1,385,REDACTED PERSONAL DATA,REDACTED PERSONAL DATA
Tendring DC,http://statistics.data.gov.uk/id/local-authority-district/22UN,Life Opportunities,5860 - Manningtree Sports Centre,4040 - Equipment & Tools,15/01/2013,2104764-1,36.25,2100870 - Kingswood Leisure Services Ltd,Indoor Footballs
Tendring DC,http://statistics.data.gov.uk/id/local-authority-district/22UN,Life Opportunities,5820 - Harwich Sports Centre,5300 - Resaleable Items,22/01/2013,2104904-1,83.6,2100870 - Kingswood Leisure Services Ltd,Sports Sales Stock
Tendring DC,http://statistics.data.gov.uk/id/local-authority-district/22UN,Life Opportunities,5860 - Manningtree Sports Centre,4601 - Hired services - Cleaning,29/01/2013,1050803-1,136,2100851 - KO-SHEEN Contract Cleaning Ltd,CONTRACT CLEANING DECEMBER
Tendring DC,http://statistics.data.gov.uk/id/local-authority-district/22UN,Life Opportunities,5860 - Manningtree Sports Centre,4601 - Hired services - Cleaning,02/01/2013,2104234-1,289,2100851 - KO-SHEEN Contract Cleaning Ltd,Contract Cleaning November
Tendring DC,http://statistics.data.gov.uk/id/local-authority-district/22UN,Life Opportunities,5860 - Manningtree Sports Centre,4601 - Hired services - Cleaning,02/01/2013,2104367-1,-12.75,2100851 - KO-SHEEN Contract Cleaning Ltd,Credit for Contract Cleaning
Tendring DC,http://statistics.data.gov.uk/id/local-authority-district/22UN,Life Opportunities,5860 - Manningtree Sports Centre,4601 - Hired services - Cleaning,29/01/2013,2105261-1,-12.75,REDACTED PERSONAL DATA,REDACTED PERSONAL DATA
Tendring DC,http://statistics.data.gov.uk/id/local-authority-district/22UN,Life Opportunities,5360 - HRA - Sheltered Units,4601 - Hired services - Cleaning,29/01/2013,2105283-1,588.88,REDACTED PERSONAL DATA,REDACTED PERSONAL DATA
Tendring DC,http://statistics.data.gov.uk/id/local-authority-district/22UN,Life Opportunities,5360 - HRA - Sheltered Units,4601 - Hired services - Cleaning,29/01/2013,2105284-1,323,REDACTED PERSONAL DATA,REDACTED PERSONAL DATA
Tendring DC,http://statistics.data.gov.uk/id/local-authority-district/22UN,Life Opportunities,5360 - HRA - Sheltered Units,4601 - Hired services - Cleaning,29/01/2013,2105285-1,1037,REDACTED PERSONAL DATA,REDACTED PERSONAL DATA
Tendring DC,http://statistics.data.gov.uk/id/local-authority-district/22UN,Life Opportunities,5800 - Brightlingsea Sports Centre,4650 - TV Licensing,15/01/2013,2104717-1,145.5,REDACTED PERSONAL DATA,REDACTED PERSONAL DATA
Tendring DC,http://statistics.data.gov.uk/id/local-authority-district/22UN,Life Opportunities,5800 - Brightlingsea Sports Centre,4000 - Furniture,22/01/2013,2105021-1,136.4,2110135 - L Anderson,Glasdon UK Ltd
Tendring DC,http://statistics.data.gov.uk/id/local-authority-district/22UN,Life Opportunities,5480 - HRA - Repair & Maintenance,2018 - Other Responsive Repairs,29/01/2013,2105273-1,560,REDACTED PERSONAL DATA,REDACTED PERSONAL DATA
Tendring DC,http://statistics.data.gov.uk/id/local-authority-district/22UN,Life Opportunities,"1580 - Benefits, Revenues and Customer Contact SU",4462 - Legal Fees incl. Bailiffs re debt recovery,22/01/2013,2105065-1,1128,REDACTED PERSONAL DATA,REDACTED PERSONAL DATA
Tendring DC,http://statistics.data.gov.uk/id/local-authority-district/22UN,Life Opportunities,"1580 - Benefits, Revenues and Customer Contact SU",4462 - Legal Fees incl. Bailiffs re debt recovery,22/01/2013,2105065-2,114,REDACTED PERSONAL DATA,REDACTED PERSONAL DATA
Tendring DC,http://statistics.data.gov.uk/id/local-authority-district/22UN,Life Opportunities,5240 - HRA - Managing Tenancies,5242 - Tenant Relations,15/01/2013,2104881-1,10,REDACTED PERSONAL DATA,REDACTED PERSONAL DATA
Tendring DC,http://statistics.data.gov.uk/id/local-authority-district/22UN,Life Opportunities,5240 - HRA - Managing Tenancies,5242 - Tenant Relations,15/01/2013,7008706-1,10,REDACTED PERSONAL DATA,REDACTED PERSONAL DATA
Tendring DC,http://statistics.data.gov.uk/id/local-authority-district/22UN,Life Opportunities,5800 - Brightlingsea Sports Centre,4000 - Furniture,08/01/2013,2104551-1,43,REDACTED PERSONAL DATA,REDACTED PERSONAL DATA
Tendring DC,http://statistics.data.gov.uk/id/local-authority-district/22UN,Life Opportunities,5820 - Harwich Sports Centre,5160 - Advertising,02/01/2013,2104291-1,360,2104253 - Local Authority Publishing Co Ltd,Advertisement HSC + DSP
Tendring DC,http://statistics.data.gov.uk/id/local-authority-district/22UN,Life Opportunities,5820 - Harwich Sports Centre,5160 - Advertising,02/01/2013,2104291-2,40,2104253 - Local Authority Publishing Co Ltd,Advertisement HSC + DSP
Tendring DC,http://statistics.data.gov.uk/id/local-authority-district/22UN,Life Opportunities,6740 - Careline,3300 - Public Transport - Officers,02/01/2013,2104440-1,55.2,REDACTED PERSONAL DATA,REDACTED PERSONAL DATA
Tendring DC,http://statistics.data.gov.uk/id/local-authority-district/22UN,Life Opportunities,8540 - Leisure Centre Clacton,4400 - Maintenance Under Service Agreements,15/01/2013,2104837-1,80,2100837 - M A Williams,
Tendring DC,http://statistics.data.gov.uk/id/local-authority-district/22UN,Life Opportunities,8510 - Dovercourt Swimming Pool & All Weather Facilities,4597 - Hired Services - Payments to Contractors,15/01/2013,7008773-1,155,2111940 - M Frost & Associates Ltd,Dovercourt Pool
Tendring DC,http://statistics.data.gov.uk/id/local-authority-district/22UN,Life Opportunities,8520 - Frinton & Walton Swimming Pool,4597 - Hired Services - Payments to Contractors,15/01/2013,7008773-2,155,2111940 - M Frost & Associates Ltd,Dovercourt Pool
Tendring DC,http://statistics.data.gov.uk/id/local-authority-district/22UN,Life Opportunities,6160 - Princes Theatre,4105 - Bar/Catering Expenses,02/01/2013,2104307-1,208.48,2105052 - Maddisons,Tea/Coffee Supplies
Tendring DC,http://statistics.data.gov.uk/id/local-authority-district/22UN,Life Opportunities,6160 - Princes Theatre,4105 - Bar/Catering Expenses,02/01/2013,2104307-2,51.84,2105052 - Maddisons,Tea/Coffee Supplies
Tendring DC,http://statistics.data.gov.uk/id/local-authority-district/22UN,Life Opportunities,5240 - HRA - Managing Tenancies,5242 - Tenant Relations,15/01/2013,7008702-1,10,REDACTED PERSONAL DATA,REDACTED PERSONAL DATA
Tendring DC,http://statistics.data.gov.uk/id/local-authority-district/22UN,Life Opportunities,H815 - Re-roofing,C200 - Main Contractor,08/01/2013,7008687-1,24403.97,2111055 - Mansell Roofing Ltd,Kate Daniels Roofing Works
Tendring DC,http://statistics.data.gov.uk/id/local-authority-district/22UN,Life Opportunities,5860 - Manningtree Sports Centre,5160 - Advertising,22/01/2013,2105099-1,288,2111922 - Mansion House Publishing (UK) Ltd,Advertising
Tendring DC,http://statistics.data.gov.uk/id/local-authority-district/22UN,Life Opportunities,5140 - Homelessness,4680 - Bed & Breakfast Accommodation,02/01/2013,2104270-1,140,REDACTED PERSONAL DATA,REDACTED PERSONAL DATA
Tendring DC,http://statistics.data.gov.uk/id/local-authority-district/22UN,Life Opportunities,5140 - Homelessness,9032 - Homelessness Accommodation Charges,02/01/2013,2104270-2,-16.45,REDACTED PERSONAL DATA,REDACTED PERSONAL DATA
Tendring DC,http://statistics.data.gov.uk/id/local-authority-district/22UN,Life Opportunities,5140 - Homelessness,4680 - Bed & Breakfast Accommodation,02/01/2013,2104271-1,140,REDACTED PERSONAL DATA,REDACTED PERSONAL DATA
Tendring DC,http://statistics.data.gov.uk/id/local-authority-district/22UN,Life Opportunities,5140 - Homelessness,9032 - Homelessness Accommodation Charges,02/01/2013,2104271-2,-16.45,REDACTED PERSONAL DATA,REDACTED PERSONAL DATA
Tendring DC,http://statistics.data.gov.uk/id/local-authority-district/22UN,Life Opportunities,5140 - Homelessness,4680 - Bed & Breakfast Accommodation,02/01/2013,2104272-1,60,REDACTED PERSONAL DATA,REDACTED PERSONAL DATA
Tendring DC,http://statistics.data.gov.uk/id/local-authority-district/22UN,Life Opportunities,5140 - Homelessness,9032 - Homelessness Accommodation Charges,02/01/2013,2104272-2,-2.35,REDACTED PERSONAL DATA,REDACTED PERSONAL DATA
Tendring DC,http://statistics.data.gov.uk/id/local-authority-district/22UN,Life Opportunities,5140 - Homelessness,4680 - Bed & Breakfast Accommodation,02/01/2013,2104273-1,180,REDACTED PERSONAL DATA,REDACTED PERSONAL DATA
Tendring DC,http://statistics.data.gov.uk/id/local-authority-district/22UN,Life Opportunities,5140 - Homelessness,9032 - Homelessness Accommodation Charges,02/01/2013,2104273-2,-7.05,REDACTED PERSONAL DATA,REDACTED PERSONAL DATA
Tendring DC,http://statistics.data.gov.uk/id/local-authority-district/22UN,Life Opportunities,5140 - Homelessness,4680 - Bed & Breakfast Accommodation,22/01/2013,2105028-1,300,REDACTED PERSONAL DATA,REDACTED PERSONAL DATA
Tendring DC,http://statistics.data.gov.uk/id/local-authority-district/22UN,Life Opportunities,5140 - Homelessness,9032 - Homelessness Accommodation Charges,22/01/2013,2105028-2,-11.75,REDACTED PERSONAL DATA,REDACTED PERSONAL DATA
Tendring DC,http://statistics.data.gov.uk/id/local-authority-district/22UN,Life Opportunities,5140 - Homelessness,4680 - Bed & Breakfast Accommodation,22/01/2013,2105029-1,100,REDACTED PERSONAL DATA,REDACTED PERSONAL DATA
Tendring DC,http://statistics.data.gov.uk/id/local-authority-district/22UN,Life Opportunities,5140 - Homelessness,9032 - Homelessness Accommodation Charges,22/01/2013,2105029-2,-11.75,REDACTED PERSONAL DATA,REDACTED PERSONAL DATA
Tendring DC,http://statistics.data.gov.uk/id/local-authority-district/22UN,Life Opportunities,5140 - Homelessness,4680 - Bed & Breakfast Accommodation,22/01/2013,2105030-1,140,REDACTED PERSONAL DATA,REDACTED PERSONAL DATA
Tendring DC,http://statistics.data.gov.uk/id/local-authority-district/22UN,Life Opportunities,5140 - Homelessness,9032 - Homelessness Accommodation Charges,22/01/2013,2105030-2,-16.45,REDACTED PERSONAL DATA,REDACTED PERSONAL DATA
Tendring DC,http://statistics.data.gov.uk/id/local-authority-district/22UN,Life Opportunities,5140 - Homelessness,4680 - Bed & Breakfast Accommodation,22/01/2013,2105031-1,140,REDACTED PERSONAL DATA,REDACTED PERSONAL DATA
Tendring DC,http://statistics.data.gov.uk/id/local-authority-district/22UN,Life Opportunities,5140 - Homelessness,9032 - Homelessness Accommodation Charges,22/01/2013,2105031-2,-16.45,REDACTED PERSONAL DATA,REDACTED PERSONAL DATA
Tendring DC,http://statistics.data.gov.uk/id/local-authority-district/22UN,Life Opportunities,8540 - Leisure Centre Clacton,9245 - Room Hire - Main Hall,15/01/2013,2104721-1,8.33,REDACTED PERSONAL DATA,REDACTED PERSONAL DATA
Tendring DC,http://statistics.data.gov.uk/id/local-authority-district/22UN,Life Opportunities,6740 - Careline,5160 - Advertising,02/01/2013,2104379-1,600,2102946 - Mellow 1557 Ltd,Dream 100 - Careline Ad November
Tendring DC,http://statistics.data.gov.uk/id/local-authority-district/22UN,Life Opportunities,6160 - Princes Theatre,5160 - Advertising,22/01/2013,2104898-1,150,REDACTED COMMERCIAL CONFIDENTIALITY,REDACTED COMMERCIAL CONFIDENTIALITY
Tendring DC,http://statistics.data.gov.uk/id/local-authority-district/22UN,Life Opportunities,6740 - Careline,5160 - Advertising,22/01/2013,2105073-1,600,REDACTED PERSONAL DATA,REDACTED PERSONAL DATA
Tendring DC,http://statistics.data.gov.uk/id/local-authority-district/22UN,Life Opportunities,5140 - Homelessness,4683 - Other Homelessness Expenses,29/01/2013,2105334-1,425,REDACTED PERSONAL DATA,REDACTED PERSONAL DATA
Tendring DC,http://statistics.data.gov.uk/id/local-authority-district/22UN,Life Opportunities,9920 - HRA Balance Sheet,B860 - Housing Rents - Cash,29/01/2013,1050806-1,147.43,REDACTED PERSONAL DATA,REDACTED PERSONAL DATA
Tendring DC,http://statistics.data.gov.uk/id/local-authority-district/22UN,Life Opportunities,9920 - HRA Balance Sheet,B860 - Housing Rents - Cash,29/01/2013,2105413-1,14.2,REDACTED PERSONAL DATA,REDACTED PERSONAL DATA
Tendring DC,http://statistics.data.gov.uk/id/local-authority-district/22UN,Life Opportunities,9920 - HRA Balance Sheet,B860 - Housing Rents - Cash,29/01/2013,2105410-1,15,REDACTED PERSONAL DATA,REDACTED PERSONAL DATA
Tendring DC,http://statistics.data.gov.uk/id/local-authority-district/22UN,Life Opportunities,8540 - Leisure Centre Clacton,1700 - Training - Courses,02/01/2013,2104445-1,60,REDACTED PERSONAL DATA,REDACTED PERSONAL DATA
Tendring DC,http://statistics.data.gov.uk/id/local-authority-district/22UN,Life Opportunities,9920 - HRA Balance Sheet,B860 - Housing Rents - Cash,22/01/2013,2104939-1,555,REDACTED PERSONAL DATA,REDACTED PERSONAL DATA
Tendring DC,http://statistics.data.gov.uk/id/local-authority-district/22UN,Life Opportunities,8540 - Leisure Centre Clacton,4400 - Maintenance Under Service Agreements,15/01/2013,2104841-1,62.2,2104791 - Mobile Mini Uk Ltd,19/12/12 - 15/1/13
Tendring DC,http://statistics.data.gov.uk/id/local-authority-district/22UN,Life Opportunities,5240 - HRA - Managing Tenancies,6625 - Tenants Compensation Scheme,02/01/2013,2104392-1,50,REDACTED PERSONAL DATA,REDACTED PERSONAL DATA
Tendring DC,http://statistics.data.gov.uk/id/local-authority-district/22UN,Life Opportunities,9920 - HRA Balance Sheet,B860 - Housing Rents - Cash,22/01/2013,2104942-1,179.19,REDACTED PERSONAL DATA,REDACTED PERSONAL DATA
Tendring DC,http://statistics.data.gov.uk/id/local-authority-district/22UN,Life Opportunities,5240 - HRA - Managing Tenancies,5242 - Tenant Relations,15/01/2013,7008699-1,10,REDACTED PERSONAL DATA,REDACTED PERSONAL DATA
Tendring DC,http://statistics.data.gov.uk/id/local-authority-district/22UN,Life Opportunities,5240 - HRA - Managing Tenancies,5242 - Tenant Relations,15/01/2013,7008707-1,10,REDACTED PERSONAL DATA,REDACTED PERSONAL DATA
Tendring DC,http://statistics.data.gov.uk/id/local-authority-district/22UN,Life Opportunities,H920 - DFGs,C401 - Loan,15/01/2013,2104730-1,551.95,REDACTED PERSONAL DATA,REDACTED PERSONAL DATA
Tendring DC,http://statistics.data.gov.uk/id/local-authority-district/22UN,Life Opportunities,9920 - HRA Balance Sheet,B860 - Housing Rents - Cash,22/01/2013,2104940-1,799.93,REDACTED PERSONAL DATA,REDACTED PERSONAL DATA
Tendring DC,http://statistics.data.gov.uk/id/local-authority-district/22UN,Life Opportunities,5240 - HRA - Managing Tenancies,6625 - Tenants Compensation Scheme,29/01/2013,7008792-1,30,REDACTED PERSONAL DATA,REDACTED PERSONAL DATA
Tendring DC,http://statistics.data.gov.uk/id/local-authority-district/22UN,Life Opportunities,H920 - DFGs,C400 - Grant payments,08/01/2013,2104515-1,1620,REDACTED PERSONAL DATA,REDACTED PERSONAL DATA
Tendring DC,http://statistics.data.gov.uk/id/local-authority-district/22UN,Life Opportunities,5240 - HRA - Managing Tenancies,6625 - Tenants Compensation Scheme,02/01/2013,2104393-1,50,REDACTED PERSONAL DATA,REDACTED PERSONAL DATA
Tendring DC,http://statistics.data.gov.uk/id/local-authority-district/22UN,Life Opportunities,9920 - HRA Balance Sheet,B860 - Housing Rents - Cash,29/01/2013,2105408-1,38.44,REDACTED PERSONAL DATA,REDACTED PERSONAL DATA
Tendring DC,http://statistics.data.gov.uk/id/local-authority-district/22UN,Life Opportunities,5140 - Homelessness,4680 - Bed & Breakfast Accommodation,29/01/2013,2105335-1,360,REDACTED PERSONAL DATA,REDACTED PERSONAL DATA
Tendring DC,http://statistics.data.gov.uk/id/local-authority-district/22UN,Life Opportunities,9920 - HRA Balance Sheet,B860 - Housing Rents - Cash,14/01/2013,2104943-1,232.32,REDACTED PERSONAL DATA,REDACTED PERSONAL DATA
Tendring DC,http://statistics.data.gov.uk/id/local-authority-district/22UN,Life Opportunities,5240 - HRA - Managing Tenancies,5242 - Tenant Relations,15/01/2013,7008703-1,10,REDACTED PERSONAL DATA,REDACTED PERSONAL DATA
Tendring DC,http://statistics.data.gov.uk/id/local-authority-district/22UN,Life Opportunities,6160 - Princes Theatre,4040 - Equipment & Tools,08/01/2013,2104462-1,512,2103915 - MRL Productions,Jack Spot Moving Heads
Tendring DC,http://statistics.data.gov.uk/id/local-authority-district/22UN,Life Opportunities,9920 - HRA Balance Sheet,B860 - Housing Rents - Cash,29/01/2013,2105412-1,14.2,REDACTED PERSONAL DATA,REDACTED PERSONAL DATA
Tendring DC,http://statistics.data.gov.uk/id/local-authority-district/22UN,Life Opportunities,9920 - HRA Balance Sheet,B860 - Housing Rents - Cash,29/01/2013,2105409-1,82.84,REDACTED PERSONAL DATA,REDACTED PERSONAL DATA
Tendring DC,http://statistics.data.gov.uk/id/local-authority-district/22UN,Life Opportunities,9920 - HRA Balance Sheet,B860 - Housing Rents - Cash,22/01/2013,2104941-1,83.08,REDACTED PERSONAL DATA,REDACTED PERSONAL DATA
Tendring DC,http://statistics.data.gov.uk/id/local-authority-district/22UN,Life Opportunities,6160 - Princes Theatre,9352 - Opportunity Bookings,02/01/2013,2104441-1,41.67,REDACTED PERSONAL DATA,REDACTED PERSONAL DATA
Tendring DC,http://statistics.data.gov.uk/id/local-authority-district/22UN,Life Opportunities,6740 - Careline,9050 - Careline Income - General,29/01/2013,7008796-1,9.6,REDACTED PERSONAL DATA,REDACTED PERSONAL DATA
Tendring DC,http://statistics.data.gov.uk/id/local-authority-district/22UN,Life Opportunities,9920 - HRA Balance Sheet,B860 - Housing Rents - Cash,29/01/2013,2105407-1,109.04,REDACTED PERSONAL DATA,REDACTED PERSONAL DATA
Tendring DC,http://statistics.data.gov.uk/id/local-authority-district/22UN,Life Opportunities,9920 - HRA Balance Sheet,B860 - Housing Rents - Cash,22/01/2013,2104944-1,293.28,REDACTED PERSONAL DATA,REDACTED PERSONAL DATA
Tendring DC,http://statistics.data.gov.uk/id/local-authority-district/22UN,Life Opportunities,5240 - HRA - Managing Tenancies,5242 - Tenant Relations,15/01/2013,7008709-1,10,REDACTED PERSONAL DATA,REDACTED PERSONAL DATA
Tendring DC,http://statistics.data.gov.uk/id/local-authority-district/22UN,Life Opportunities,5240 - HRA - Managing Tenancies,5242 - Tenant Relations,29/01/2013,7008799-1,10,REDACTED PERSONAL DATA,REDACTED PERSONAL DATA
Tendring DC,http://statistics.data.gov.uk/id/local-authority-district/22UN,Life Opportunities,9920 - HRA Balance Sheet,B860 - Housing Rents - Cash,29/01/2013,2105411-1,14.2,REDACTED PERSONAL DATA,REDACTED PERSONAL DATA
Tendring DC,http://statistics.data.gov.uk/id/local-authority-district/22UN,Life Opportunities,5140 - Homelessness,4680 - Bed & Breakfast Accommodation,29/01/2013,2105336-1,275,REDACTED PERSONAL DATA,REDACTED PERSONAL DATA
Tendring DC,http://statistics.data.gov.uk/id/local-authority-district/22UN,Life Opportunities,5820 - Harwich Sports Centre,4597 - Hired Services - Payments to Contractors,22/01/2013,2105211-1,140,2112299 - My Time Fitness Ltd,Fitness Classes
Tendring DC,http://statistics.data.gov.uk/id/local-authority-district/22UN,Life Opportunities,5820 - Harwich Sports Centre,4597 - Hired Services - Payments to Contractors,22/01/2013,2105212-1,60,2112299 - My Time Fitness Ltd,Fitness Classes
Tendring DC,http://statistics.data.gov.uk/id/local-authority-district/22UN,Life Opportunities,H910 - Renovation Grants,C401 - Loan,15/01/2013,7008711-1,4333,REDACTED PERSONAL DATA,REDACTED PERSONAL DATA
Tendring DC,http://statistics.data.gov.uk/id/local-authority-district/22UN,Life Opportunities,8540 - Leisure Centre Clacton,2100 - Building Repairs,22/01/2013,2105197-1,490,2100967 - N Rudelhoff,
Tendring DC,http://statistics.data.gov.uk/id/local-authority-district/22UN,Life Opportunities,6160 - Princes Theatre,4105 - Bar/Catering Expenses,02/01/2013,2104395-1,40.38,REDACTED PERSONAL DATA,REDACTED PERSONAL DATA
Tendring DC,http://statistics.data.gov.uk/id/local-authority-district/22UN,Life Opportunities,7600 - Tourist Information Centres,9356 - Commission Sales,15/01/2013,2104655-1,882.62,2110032 - National Express Ltd,December Commission
Tendring DC,http://statistics.data.gov.uk/id/local-authority-district/22UN,Life Opportunities,6160 - Princes Theatre,5160 - Advertising,29/01/2013,1050789-1,113.4,2100989 - Newsquest (London) Ltd,THEATRE ADS
Tendring DC,http://statistics.data.gov.uk/id/local-authority-district/22UN,Life Opportunities,6160 - Princes Theatre,5160 - Advertising,02/01/2013,2104232-1,248.32,2100989 - Newsquest (London) Ltd,Theatre Adverts
Tendring DC,http://statistics.data.gov.uk/id/local-authority-district/22UN,Life Opportunities,6160 - Princes Theatre,5160 - Advertising,02/01/2013,2104233-1,172.8,2100989 - Newsquest (London) Ltd,Theatre Ads
Tendring DC,http://statistics.data.gov.uk/id/local-authority-district/22UN,Life Opportunities,8540 - Leisure Centre Clacton,5160 - Advertising,02/01/2013,2104313-1,682.8,2100989 - Newsquest (London) Ltd,
Tendring DC,http://statistics.data.gov.uk/id/local-authority-district/22UN,Life Opportunities,6160 - Princes Theatre,5160 - Advertising,08/01/2013,2104469-1,155.2,2100989 - Newsquest (London) Ltd,Theatre Ads
Tendring DC,http://statistics.data.gov.uk/id/local-authority-district/22UN,Life Opportunities,6160 - Princes Theatre,5160 - Advertising,08/01/2013,2104470-1,205,2100989 - Newsquest (London) Ltd,Theatre Ads
Tendring DC,http://statistics.data.gov.uk/id/local-authority-district/22UN,Life Opportunities,6160 - Princes Theatre,5160 - Advertising,08/01/2013,2104471-1,155.2,2100989 - Newsquest (London) Ltd,Theatre Ads
Tendring DC,http://statistics.data.gov.uk/id/local-authority-district/22UN,Life Opportunities,H875 - Compulsary Purchase and Refurbishment,C200 - Main Contractor,22/01/2013,2104976-1,553.34,REDACTED PERSONAL DATA,REDACTED PERSONAL DATA
Tendring DC,http://statistics.data.gov.uk/id/local-authority-district/22UN,Life Opportunities,5140 - Homelessness,4683 - Other Homelessness Expenses,15/01/2013,2104711-1,25,REDACTED PERSONAL DATA,REDACTED PERSONAL DATA
Tendring DC,http://statistics.data.gov.uk/id/local-authority-district/22UN,Life Opportunities,"1580 - Benefits, Revenues and Customer Contact SU",4753 - Computer - Application Software,22/01/2013,2105159-1,230,2101204 - Northgate Information Solutions UK Ltd,S&M HB Summary Nots
Tendring DC,http://statistics.data.gov.uk/id/local-authority-district/22UN,Life Opportunities,5140 - Homelessness,4683 - Other Homelessness Expenses,15/01/2013,2104852-1,60,REDACTED PERSONAL DATA,REDACTED PERSONAL DATA
Tendring DC,http://statistics.data.gov.uk/id/local-authority-district/22UN,Life Opportunities,5240 - HRA - Managing Tenancies,4644 - Energy Performance Certificate Costs,02/01/2013,2104296-1,840,REDACTED PERSONAL DATA,REDACTED PERSONAL DATA
Tendring DC,http://statistics.data.gov.uk/id/local-authority-district/22UN,Life Opportunities,5240 - HRA - Managing Tenancies,4644 - Energy Performance Certificate Costs,22/01/2013,2105089-1,390,REDACTED PERSONAL DATA,REDACTED PERSONAL DATA
Tendring DC,http://statistics.data.gov.uk/id/local-authority-district/22UN,Life Opportunities,8520 - Frinton & Walton Swimming Pool,2100 - Building Repairs,22/01/2013,2105202-1,10,2108273 - Nursing & Hygeine Maintenance,Frinton Pool
Tendring DC,http://statistics.data.gov.uk/id/local-authority-district/22UN,Life Opportunities,5140 - Homelessness,4683 - Other Homelessness Expenses,29/01/2013,7008806-1,450,REDACTED PERSONAL DATA,REDACTED PERSONAL DATA
Tendring DC,http://statistics.data.gov.uk/id/local-authority-district/22UN,Life Opportunities,5260 - HRA - Rent Collection And Accounting,4757 - IT External Charges,15/01/2013,2104767-1,47.23,REDACTED COMMERCIAL CONFIDENTIALITY,REDACTED COMMERCIAL CONFIDENTIALITY
Tendring DC,http://statistics.data.gov.uk/id/local-authority-district/22UN,Life Opportunities,5260 - HRA - Rent Collection And Accounting,4757 - IT External Charges,22/01/2013,2105095-1,2.83,REDACTED COMMERCIAL CONFIDENTIALITY,REDACTED COMMERCIAL CONFIDENTIALITY
Tendring DC,http://statistics.data.gov.uk/id/local-authority-district/22UN,Life Opportunities,5140 - Homelessness,4683 - Other Homelessness Expenses,15/01/2013,2104709-1,135,REDACTED PERSONAL DATA,REDACTED PERSONAL DATA
Tendring DC,http://statistics.data.gov.uk/id/local-authority-district/22UN,Life Opportunities,5140 - Homelessness,4683 - Other Homelessness Expenses,15/01/2013,2104710-1,775,REDACTED PERSONAL DATA,REDACTED PERSONAL DATA
Tendring DC,http://statistics.data.gov.uk/id/local-authority-district/22UN,Life Opportunities,H920 - DFGs,C400 - Grant payments,08/01/2013,2104513-1,3997.08,REDACTED PERSONAL DATA,REDACTED PERSONAL DATA
Tendring DC,http://statistics.data.gov.uk/id/local-authority-district/22UN,Life Opportunities,5860 - Manningtree Sports Centre,5311 - General Provisions - Vending,29/01/2013,1050794-1,14.2,2101083 - Osgood Smith,VENDING SUPPLIES
Tendring DC,http://statistics.data.gov.uk/id/local-authority-district/22UN,Life Opportunities,5860 - Manningtree Sports Centre,5311 - General Provisions - Vending,29/01/2013,1050794-2,223.93,2101083 - Osgood Smith,VENDING SUPPLIES
Tendring DC,http://statistics.data.gov.uk/id/local-authority-district/22UN,Life Opportunities,5860 - Manningtree Sports Centre,5311 - General Provisions - Vending,02/01/2013,2104236-1,266.72,2101083 - Osgood Smith,Vending Supplies
Tendring DC,http://statistics.data.gov.uk/id/local-authority-district/22UN,Life Opportunities,5820 - Harwich Sports Centre,5311 - General Provisions - Vending,02/01/2013,2104289-1,52.18,2101083 - Osgood Smith,Canteen Goods
Tendring DC,http://statistics.data.gov.uk/id/local-authority-district/22UN,Life Opportunities,8520 - Frinton & Walton Swimming Pool,5311 - General Provisions - Vending,02/01/2013,2104311-1,88.17,2101083 - Osgood Smith,Frinton & Walton Pool
Tendring DC,http://statistics.data.gov.uk/id/local-authority-district/22UN,Life Opportunities,5820 - Harwich Sports Centre,5311 - General Provisions - Vending,08/01/2013,2104547-1,94.14,2101083 - Osgood Smith,Canteen Goods
Tendring DC,http://statistics.data.gov.uk/id/local-authority-district/22UN,Life Opportunities,5860 - Manningtree Sports Centre,5311 - General Provisions - Vending,08/01/2013,2104557-1,78.07,2101083 - Osgood Smith,Vending Supplies
Tendring DC,http://statistics.data.gov.uk/id/local-authority-district/22UN,Life Opportunities,5860 - Manningtree Sports Centre,5311 - General Provisions - Vending,08/01/2013,2104557-2,6.3,2101083 - Osgood Smith,Vending Supplies
Tendring DC,http://statistics.data.gov.uk/id/local-authority-district/22UN,Life Opportunities,5860 - Manningtree Sports Centre,5311 - General Provisions - Vending,15/01/2013,2104759-1,48.11,2101083 - Osgood Smith,Vending Supplies
Tendring DC,http://statistics.data.gov.uk/id/local-authority-district/22UN,Life Opportunities,5860 - Manningtree Sports Centre,5311 - General Provisions - Vending,22/01/2013,2104907-1,222.2,2101083 - Osgood Smith,Vending Supplies
Tendring DC,http://statistics.data.gov.uk/id/local-authority-district/22UN,Life Opportunities,6160 - Princes Theatre,5306 - Confectionary,22/01/2013,2104908-1,122.63,2101083 - Osgood Smith,Confectionary
Tendring DC,http://statistics.data.gov.uk/id/local-authority-district/22UN,Life Opportunities,6160 - Princes Theatre,5306 - Confectionary,22/01/2013,2104909-1,111.82,2101083 - Osgood Smith,Confectionary
Tendring DC,http://statistics.data.gov.uk/id/local-authority-district/22UN,Life Opportunities,6160 - Princes Theatre,5306 - Confectionary,22/01/2013,2104910-1,254.18,2101083 - Osgood Smith,Confectionery
Tendring DC,http://statistics.data.gov.uk/id/local-authority-district/22UN,Life Opportunities,8520 - Frinton & Walton Swimming Pool,5311 - General Provisions - Vending,22/01/2013,2105004-1,287.49,2101083 - Osgood Smith,Frinton & Walton Pool
Tendring DC,http://statistics.data.gov.uk/id/local-authority-district/22UN,Life Opportunities,5800 - Brightlingsea Sports Centre,5316 - General Provisions,22/01/2013,2105128-1,165.23,2101083 - Osgood Smith,Osgood Smith
Tendring DC,http://statistics.data.gov.uk/id/local-authority-district/22UN,Life Opportunities,5820 - Harwich Sports Centre,5311 - General Provisions - Vending,22/01/2013,2105208-1,122.1,2101083 - Osgood Smith,Canteen Goods
Tendring DC,http://statistics.data.gov.uk/id/local-authority-district/22UN,Life Opportunities,8510 - Dovercourt Swimming Pool & All Weather Facilities,5311 - General Provisions - Vending,29/01/2013,2105359-1,119.07,2101083 - Osgood Smith,Dovercourt Pool
Tendring DC,http://statistics.data.gov.uk/id/local-authority-district/22UN,Life Opportunities,8540 - Leisure Centre Clacton,5311 - General Provisions - Vending,15/01/2013,7008785-1,136.88,2101083 - Osgood Smith,Dovercourt Pool
Tendring DC,http://statistics.data.gov.uk/id/local-authority-district/22UN,Life Opportunities,8540 - Leisure Centre Clacton,5311 - General Provisions - Vending,15/01/2013,7008786-1,41.7,2101083 - Osgood Smith,Dovercourt Pool
Tendring DC,http://statistics.data.gov.uk/id/local-authority-district/22UN,Life Opportunities,5480 - HRA - Repair & Maintenance,2017 - Mechanical Equipment /Extract Fans,15/01/2013,2104570-1,395,REDACTED PERSONAL DATA,REDACTED PERSONAL DATA
Tendring DC,http://statistics.data.gov.uk/id/local-authority-district/22UN,Life Opportunities,5480 - HRA - Repair & Maintenance,2017 - Mechanical Equipment /Extract Fans,15/01/2013,2104570-2,412,REDACTED PERSONAL DATA,REDACTED PERSONAL DATA
Tendring DC,http://statistics.data.gov.uk/id/local-authority-district/22UN,Life Opportunities,8540 - Leisure Centre Clacton,9245 - Room Hire - Main Hall,15/01/2013,2104722-1,8.33,REDACTED PERSONAL DATA,REDACTED PERSONAL DATA
Tendring DC,http://statistics.data.gov.uk/id/local-authority-district/22UN,Life Opportunities,8540 - Leisure Centre Clacton,5160 - Advertising,15/01/2013,7008776-1,250,2101097 - Peter Lockyer Advertising Ltd,
Tendring DC,http://statistics.data.gov.uk/id/local-authority-district/22UN,Life Opportunities,5140 - Homelessness,4683 - Other Homelessness Expenses,02/01/2013,2104451-1,495,REDACTED PERSONAL DATA,REDACTED PERSONAL DATA
Tendring DC,http://statistics.data.gov.uk/id/local-authority-district/22UN,Life Opportunities,"1580 - Benefits, Revenues and Customer Contact SU",5500 - Miscellaneous Expenses,22/01/2013,2105161-1,100,2101078 - Pier Avenue Baptist Church,Baptist Church Hall hire
Tendring DC,http://statistics.data.gov.uk/id/local-authority-district/22UN,Life Opportunities,5420 - HRA - Communal Cleaning,2706 - Communal Areas Cleaning Expenses,08/01/2013,2104559-1,3521.58,2107884 - Pinnacle Essex,Cleaning Dec 12
Tendring DC,http://statistics.data.gov.uk/id/local-authority-district/22UN,Life Opportunities,5480 - HRA - Repair & Maintenance,2001 - Responsive Maintenance - Concrete And Other Extern,02/01/2013,2104300-1,528,REDACTED PERSONAL DATA,REDACTED PERSONAL DATA
Tendring DC,http://statistics.data.gov.uk/id/local-authority-district/22UN,Life Opportunities,6160 - Princes Theatre,4622 - Hired Services - Artistes and Production Companies,02/01/2013,2104230-1,3254.71,2111649 - Polka Dot Pantomimes,6th Cinderella Payment
Tendring DC,http://statistics.data.gov.uk/id/local-authority-district/22UN,Life Opportunities,6160 - Princes Theatre,4622 - Hired Services - Artistes and Production Companies,22/01/2013,2105105-1,7106.38,REDACTED PERSONAL DATA,REDACTED PERSONAL DATA
Tendring DC,http://statistics.data.gov.uk/id/local-authority-district/22UN,Life Opportunities,5860 - Manningtree Sports Centre,4597 - Hired Services - Payments to Contractors,02/01/2013,2104286-1,30,2112059 - Polkadot Pilates,Pilates Instructor
Tendring DC,http://statistics.data.gov.uk/id/local-authority-district/22UN,Life Opportunities,H920 - DFGs,C400 - Grant payments,22/01/2013,2105024-1,1104,REDACTED PERSONAL DATA,REDACTED PERSONAL DATA
Tendring DC,http://statistics.data.gov.uk/id/local-authority-district/22UN,Life Opportunities,5140 - Homelessness,4682 - Rent Deposit Guarantees,29/01/2013,7008805-1,400,REDACTED PERSONAL DATA,REDACTED PERSONAL DATA
Tendring DC,http://statistics.data.gov.uk/id/local-authority-district/22UN,Life Opportunities,6160 - Princes Theatre,5160 - Advertising,29/01/2013,1050790-1,445.5,2107459 - Prospector,POSTER DISTRIBUTION
Tendring DC,http://statistics.data.gov.uk/id/local-authority-district/22UN,Life Opportunities,5140 - Homelessness,4683 - Other Homelessness Expenses,02/01/2013,2104450-1,440,REDACTED PERSONAL DATA,REDACTED PERSONAL DATA
Tendring DC,http://statistics.data.gov.uk/id/local-authority-district/22UN,Life Opportunities,7520 - Tourism Publicity Marketing Promotion,8460 - Sponsored Events income,29/01/2013,1050791-1,2100,2112212 - Quantum Theatre,QUANTUM PERFORMANCES
Tendring DC,http://statistics.data.gov.uk/id/local-authority-district/22UN,Life Opportunities,H810 - Electrical Re-wiring,C200 - Main Contractor,22/01/2013,2105229-1,1188,REDACTED PERSONAL DATA,REDACTED PERSONAL DATA
Tendring DC,http://statistics.data.gov.uk/id/local-authority-district/22UN,Life Opportunities,H810 - Electrical Re-wiring,C200 - Main Contractor,22/01/2013,2105230-1,1026,REDACTED PERSONAL DATA,REDACTED PERSONAL DATA
Tendring DC,http://statistics.data.gov.uk/id/local-authority-district/22UN,Life Opportunities,5800 - Brightlingsea Sports Centre,2100 - Building Repairs,08/01/2013,2104554-1,65.2,2111486 - Rentokil Initial Fire Services Ltd,Initial Facilities Fire
Tendring DC,http://statistics.data.gov.uk/id/local-authority-district/22UN,Life Opportunities,9900 - General Fund Balance Sheet,B382 - Rechargeable Works - Other,02/01/2013,2104224-1,748.72,REDACTED PERSONAL DATA,REDACTED PERSONAL DATA
Tendring DC,http://statistics.data.gov.uk/id/local-authority-district/22UN,Life Opportunities,9900 - General Fund Balance Sheet,B382 - Rechargeable Works - Other,02/01/2013,2104225-1,1957.17,REDACTED PERSONAL DATA,REDACTED PERSONAL DATA
Tendring DC,http://statistics.data.gov.uk/id/local-authority-district/22UN,Life Opportunities,H800 - Structural Repairs,C200 - Main Contractor,02/01/2013,2104226-1,160,REDACTED PERSONAL DATA,REDACTED PERSONAL DATA
Tendring DC,http://statistics.data.gov.uk/id/local-authority-district/22UN,Life Opportunities,H800 - Structural Repairs,C200 - Main Contractor,02/01/2013,2104227-1,2120,REDACTED PERSONAL DATA,REDACTED PERSONAL DATA
Tendring DC,http://statistics.data.gov.uk/id/local-authority-district/22UN,Life Opportunities,H880 - New Build Initiatives and Acquisitions,C200 - Main Contractor,15/01/2013,7008787-1,360,REDACTED PERSONAL DATA,REDACTED PERSONAL DATA
Tendring DC,http://statistics.data.gov.uk/id/local-authority-district/22UN,Life Opportunities,1240 - Housing Services Service Unit,4300 - Printing & Stationery,22/01/2013,2104977-1,276.8,REDACTED PERSONAL DATA,REDACTED PERSONAL DATA
Tendring DC,http://statistics.data.gov.uk/id/local-authority-district/22UN,Life Opportunities,1240 - Housing Services Service Unit,4300 - Printing & Stationery,22/01/2013,2105102-1,742.76,REDACTED COMMERCIAL CONFIDENTIALITY,REDACTED COMMERCIAL CONFIDENTIALITY
Tendring DC,http://statistics.data.gov.uk/id/local-authority-district/22UN,Life Opportunities,8510 - Dovercourt Swimming Pool & All Weather Facilities,4300 - Printing & Stationery,22/01/2013,2105219-1,28.7,2101090 - Ricoh UK Ltd,Dovercourt Pool
Tendring DC,http://statistics.data.gov.uk/id/local-authority-district/22UN,Life Opportunities,1650 - Building Services Service Unit,4880 - Subscriptions Paid,02/01/2013,2104281-1,400,2101196 - RICS,BCIS PAFI
Tendring DC,http://statistics.data.gov.uk/id/local-authority-district/22UN,Life Opportunities,H706 - Kitchen & Bathroom Replacement,C200 - Main Contractor,22/01/2013,1050728-1,4882.38,REDACTED PERSONAL DATA,REDACTED PERSONAL DATA
Tendring DC,http://statistics.data.gov.uk/id/local-authority-district/22UN,Life Opportunities,H706 - Kitchen & Bathroom Replacement,C200 - Main Contractor,22/01/2013,1050729-1,3009.27,REDACTED PERSONAL DATA,REDACTED PERSONAL DATA
Tendring DC,http://statistics.data.gov.uk/id/local-authority-district/22UN,Life Opportunities,H706 - Kitchen & Bathroom Replacement,C200 - Main Contractor,02/01/2013,2104242-1,4361.29,REDACTED PERSONAL DATA,REDACTED PERSONAL DATA
Tendring DC,http://statistics.data.gov.uk/id/local-authority-district/22UN,Life Opportunities,H706 - Kitchen & Bathroom Replacement,C200 - Main Contractor,02/01/2013,2104243-1,3565.8,REDACTED PERSONAL DATA,REDACTED PERSONAL DATA
Tendring DC,http://statistics.data.gov.uk/id/local-authority-district/22UN,Life Opportunities,H706 - Kitchen & Bathroom Replacement,C200 - Main Contractor,02/01/2013,2104244-1,3059.65,REDACTED PERSONAL DATA,REDACTED PERSONAL DATA
Tendring DC,http://statistics.data.gov.uk/id/local-authority-district/22UN,Life Opportunities,H706 - Kitchen & Bathroom Replacement,C200 - Main Contractor,02/01/2013,2104245-1,3870.07,REDACTED PERSONAL DATA,REDACTED PERSONAL DATA
Tendring DC,http://statistics.data.gov.uk/id/local-authority-district/22UN,Life Opportunities,H706 - Kitchen & Bathroom Replacement,C200 - Main Contractor,02/01/2013,2104246-1,2695.48,REDACTED PERSONAL DATA,REDACTED PERSONAL DATA
Tendring DC,http://statistics.data.gov.uk/id/local-authority-district/22UN,Life Opportunities,H706 - Kitchen & Bathroom Replacement,C200 - Main Contractor,02/01/2013,2104247-1,3845.91,REDACTED PERSONAL DATA,REDACTED PERSONAL DATA
Tendring DC,http://statistics.data.gov.uk/id/local-authority-district/22UN,Life Opportunities,H706 - Kitchen & Bathroom Replacement,C200 - Main Contractor,02/01/2013,2104248-1,5528.2,REDACTED PERSONAL DATA,REDACTED PERSONAL DATA
Tendring DC,http://statistics.data.gov.uk/id/local-authority-district/22UN,Life Opportunities,H706 - Kitchen & Bathroom Replacement,C200 - Main Contractor,02/01/2013,2104249-1,3712.94,REDACTED PERSONAL DATA,REDACTED PERSONAL DATA
Tendring DC,http://statistics.data.gov.uk/id/local-authority-district/22UN,Life Opportunities,7600 - Tourist Information Centres,2100 - Building Repairs,02/01/2013,2104250-1,196.75,REDACTED PERSONAL DATA,REDACTED PERSONAL DATA
Tendring DC,http://statistics.data.gov.uk/id/local-authority-district/22UN,Life Opportunities,5480 - HRA - Repair & Maintenance,2005 - Responsive Maintenance - Carpentry And Joinery,15/01/2013,2104816-1,17.91,REDACTED PERSONAL DATA,REDACTED PERSONAL DATA
Tendring DC,http://statistics.data.gov.uk/id/local-authority-district/22UN,Life Opportunities,H706 - Kitchen & Bathroom Replacement,C200 - Main Contractor,15/01/2013,2104816-2,3963.13,REDACTED PERSONAL DATA,REDACTED PERSONAL DATA
Tendring DC,http://statistics.data.gov.uk/id/local-authority-district/22UN,Life Opportunities,5480 - HRA - Repair & Maintenance,2007 - Responsive Maintenance - Electrical Installations,15/01/2013,2104817-1,270.84,REDACTED PERSONAL DATA,REDACTED PERSONAL DATA
Tendring DC,http://statistics.data.gov.uk/id/local-authority-district/22UN,Life Opportunities,5480 - HRA - Repair & Maintenance,2005 - Responsive Maintenance - Carpentry And Joinery,15/01/2013,2104817-2,17.91,REDACTED PERSONAL DATA,REDACTED PERSONAL DATA
Tendring DC,http://statistics.data.gov.uk/id/local-authority-district/22UN,Life Opportunities,H706 - Kitchen & Bathroom Replacement,C200 - Main Contractor,15/01/2013,2104817-3,3259.22,REDACTED PERSONAL DATA,REDACTED PERSONAL DATA
Tendring DC,http://statistics.data.gov.uk/id/local-authority-district/22UN,Life Opportunities,5480 - HRA - Repair & Maintenance,2088 - Disabled Adaptations,15/01/2013,2104825-1,60.92,REDACTED PERSONAL DATA,REDACTED PERSONAL DATA
Tendring DC,http://statistics.data.gov.uk/id/local-authority-district/22UN,Life Opportunities,5480 - HRA - Repair & Maintenance,2088 - Disabled Adaptations,15/01/2013,2104826-1,30.46,REDACTED PERSONAL DATA,REDACTED PERSONAL DATA
Tendring DC,http://statistics.data.gov.uk/id/local-authority-district/22UN,Life Opportunities,5480 - HRA - Repair & Maintenance,2088 - Disabled Adaptations,15/01/2013,2104827-1,137.62,REDACTED PERSONAL DATA,REDACTED PERSONAL DATA
Tendring DC,http://statistics.data.gov.uk/id/local-authority-district/22UN,Life Opportunities,5480 - HRA - Repair & Maintenance,2000 - Responsive Maintenance - Miscellaneous,15/01/2013,2104872-1,140746.48,REDACTED PERSONAL DATA,REDACTED PERSONAL DATA
Tendring DC,http://statistics.data.gov.uk/id/local-authority-district/22UN,Life Opportunities,5880 - Management Of Sport & Leisure Facilities,2100 - Building Repairs,22/01/2013,2105097-1,1988,2104019 - Roger Hyde Ltd,Scrub & Re-seal Small Hall Floor
Tendring DC,http://statistics.data.gov.uk/id/local-authority-district/22UN,Life Opportunities,H800 - Structural Repairs,C200 - Main Contractor,22/01/2013,1050736-1,4722.67,REDACTED PERSONAL DATA,REDACTED PERSONAL DATA
Tendring DC,http://statistics.data.gov.uk/id/local-authority-district/22UN,Life Opportunities,9900 - General Fund Balance Sheet,B382 - Rechargeable Works - Other,29/01/2013,2105272-1,6105.08,REDACTED PERSONAL DATA,REDACTED PERSONAL DATA
Tendring DC,http://statistics.data.gov.uk/id/local-authority-district/22UN,Life Opportunities,5240 - HRA - Managing Tenancies,5242 - Tenant Relations,15/01/2013,7008698-1,10,REDACTED PERSONAL DATA,REDACTED PERSONAL DATA
Tendring DC,http://statistics.data.gov.uk/id/local-authority-district/22UN,Life Opportunities,5240 - HRA - Managing Tenancies,5242 - Tenant Relations,15/01/2013,7008705-1,10,REDACTED PERSONAL DATA,REDACTED PERSONAL DATA
Tendring DC,http://statistics.data.gov.uk/id/local-authority-district/22UN,Life Opportunities,5240 - HRA - Managing Tenancies,5242 - Tenant Relations,08/01/2013,2104538-1,70,2101139 - Royal Mail,633665007
Tendring DC,http://statistics.data.gov.uk/id/local-authority-district/22UN,Life Opportunities,5240 - HRA - Managing Tenancies,5242 - Tenant Relations,08/01/2013,2104539-1,1.65,REDACTED COMMERCIAL CONFIDENTIALITY,REDACTED COMMERCIAL CONFIDENTIALITY
Tendring DC,http://statistics.data.gov.uk/id/local-authority-district/22UN,Life Opportunities,"1580 - Benefits, Revenues and Customer Contact SU",4700 - Postage,22/01/2013,2105070-1,1103.94,REDACTED PERSONAL DATA,REDACTED PERSONAL DATA
Tendring DC,http://statistics.data.gov.uk/id/local-authority-district/22UN,Life Opportunities,6740 - Careline,4700 - Postage,15/01/2013,7008788-1,25.79,2101139 - Royal Mail,Royal Mail - Nov 12
